"Capital, Revenue or Balance Sheet",Directorate,SERCOP High Level Category,SERCOP Detailed Category,Transaction Number,Date,Service Area,Expenses Type,Amount,Supplier Name
Revenue,Adult Services,Adult Social Care,Learning Disability Suppt-adults (18-64),5105691161,24.11.2021,Learning Disability Residential 18-64,Charges from Independent Providers,"10,813.88",COMMUNITY HOMES IN INTENSIVE CARE
Revenue,Adult Services,Adult Social Care,Central Codes (to be reallocated),5105691316,24.11.2021,Gouldings Resource Centre,Consumable Cleaning Materials,267.00,A & M APPLIANCE CARE
Revenue,Adult Services,Adult Social Care,Learning Disab Supp (to be reallocated),5105690352,17.11.2021,Plean Dene,Consumable Cleaning Materials,86.00,A & M APPLIANCE CARE
Revenue,Adult Services,Adult Social Care,Learning Disab Supp (to be reallocated),5105691871,29.11.2021,Saxonbury,Maintenance of Operational Equipment,136.43,A & M APPLIANCE CARE
Revenue,Adult Services,Adult Social Care,Central Codes (to be reallocated),5105690350,26.11.2021,Adelaide Resource Centre,Consumable Cleaning Materials,270.00,A & M APPLIANCE CARE
Revenue,Neighbourhoods,Cultural and Related Services,Open Spaces,5105691699,26.11.2021,Tree Felling / Replacement,Payment to Private Contractors,"4,783.00",A GUSTAR T/A IVY TREE CARE
Revenue,Neighbourhoods,Cultural and Related Services,Open Spaces,5105691699,26.11.2021,Tree Felling / Replacement,Payment to Private Contractors,"4,544.75",A GUSTAR T/A IVY TREE CARE
Revenue,Neighbourhoods,Cultural and Related Services,Open Spaces,5105689621,05.11.2021,Tree Felling / Replacement,Payment to Private Contractors,"2,299.75",A GUSTAR T/A IVY TREE CARE
Revenue,Neighbourhoods,Cultural and Related Services,Open Spaces,5105691699,26.11.2021,Other Grounds Maintenance,Payment to Private Contractors,200.25,A GUSTAR T/A IVY TREE CARE
Revenue,Neighbourhoods,Cultural and Related Services,Open Spaces,5105691699,26.11.2021,Other Grounds Maintenance,Payment to Private Contractors,105.00,A GUSTAR T/A IVY TREE CARE
Revenue,Neighbourhoods,Cultural and Related Services,Open Spaces,5105689621,05.11.2021,Other Grounds Maintenance,Payment to Private Contractors,"1,832.00",A GUSTAR T/A IVY TREE CARE
Revenue,Neighbourhoods,Cultural and Related Services,Open Spaces,5105689622,05.11.2021,Fort Victoria,Payment to Private Contractors,380.00,A GUSTAR T/A IVY TREE CARE
Revenue,Neighbourhoods,Environmental & Regulatory Services,"Cemetery, Cremation & Mortuary Services",5400003103,29.11.2021,Cemeteries Administration,Grounds Maintenance,194.00,A GUSTAR T/A IVY TREE CARE
Revenue,Childrens Services,Children's & Education Services,Other Education and Community Budget,5105691180,26.11.2021,Home to School SEN Transport (LA),Taxis - Contract Hire,580.00,AMAR CABS OF NEWPORT
Revenue,Childrens Services,Children's & Education Services,Other Education and Community Budget,5105690696,24.11.2021,Home to School SEN Transport (LA),Taxis - Contract Hire,"1,276.00",AMAR CABS OF NEWPORT
Revenue,Childrens Services,Children's & Education Services,Other Education and Community Budget,5105690693,24.11.2021,Home to School SEN Transport (LA),Taxis - Contract Hire,900.00,AMAR EXCLUSIVES
Revenue,Childrens Services,Children's & Education Services,Other Education and Community Budget,5105690699,24.11.2021,Home to School SEN Transport (LA),Taxis - Contract Hire,550.00,AMAR EXCLUSIVES
Revenue,Childrens Services,Children's & Education Services,Special Schools & Alternative Provision,5105691281,24.11.2021,Island Learning Centre,Schools Catering Contract,96.00,AMAR EXCLUSIVES
Revenue,Childrens Services,Children's & Education Services,Special Schools & Alternative Provision,5105691285,24.11.2021,Island Learning Centre,Schools Catering Contract,204.00,AMAR EXCLUSIVES
Revenue,Neighbourhoods,Cultural and Related Services,Open Spaces,5105691924,29.11.2021,Rights of Way Operations,Vehicle Maintenance Costs,45.00,ISLANDWIDE WINDSCREENS
Revenue,Adult Services,Adult Social Care,Central Codes (to be reallocated),5105690201,12.11.2021,Community Reablement,Vehicle Maintenance Costs,287.58,ISLANDWIDE WINDSCREENS
Revenue,Resources,Highways and Transport Services,Public Transport,5105691955,29.11.2021,Transport Fleet Administration,Vehicle Maintenance Costs,228.10,ISLANDWIDE WINDSCREENS
Revenue,Childrens Services,Children's & Education Services,Children Looked After,5105691803,26.11.2021,Beaulieu House,Minor Works,124.25,C & J GROUND MAINTENANCE
Revenue,Neighbourhoods,Environmental & Regulatory Services,"Cemetery, Cremation & Mortuary Services",5105691949,29.11.2021,Cemeteries-Ashey,Furniture and Fittings,"1,207.74",C & J GROUND MAINTENANCE
Revenue,Neighbourhoods,Environmental & Regulatory Services,"Cemetery, Cremation & Mortuary Services",5105691944,29.11.2021,Crematorium,Operational Equipment,230.92,C & J GROUND MAINTENANCE
Revenue,Childrens Services,Children's & Education Services,Other Education and Community Budget,5105689324,03.11.2021,Home to School SEN Transport (LA),Taxis - Contract Hire,660.00,MICK'S TAXI
Revenue,Childrens Services,Children's & Education Services,Other Education and Community Budget,5105690307,12.11.2021,Home to School SEN Transport (LA),Taxis - Contract Hire,500.00,CLARES CABS
Revenue,Resources,Central Services,Support Services,5105689823,10.11.2021,Litigation Costs,Legal Fees - Other Parties,400.00,COLLEGE CHAMBERS BARRISTERS
Revenue,Resources,Central Services,Support Services,5105691811,26.11.2021,Litigation Costs,Legal Fees - Other Parties,"2,150.00",COLLEGE CHAMBERS BARRISTERS
Revenue,Adult Services,Adult Social Care,Social Care Activities,5105691008,24.11.2021,DoLS/MCA,Professional Services,190.35,DR ALEXIS BOWERS LTD
Revenue,Adult Services,Adult Social Care,Social Care Activities,5105691009,24.11.2021,DoLS/MCA,Professional Services,175.59,DR ALEXIS BOWERS LTD
Revenue,Adult Services,Adult Social Care,Social Care Activities,5105691009,24.11.2021,DoLS/MCA,Professional Services,10.74,DR ALEXIS BOWERS LTD
Revenue,Childrens Services,Adult Social Care,Social Care Activities,5105690373,17.11.2021,Adult Social Care - Workforce Development,Training,875.00,EDGE TRAINING & CONS LTD
Revenue,Childrens Services,Adult Social Care,Social Care Activities,5105690395,17.11.2021,Adult Social Care - Workforce Development,Training,875.00,EDGE TRAINING & CONS LTD
Revenue,Childrens Services,Adult Social Care,Social Care Activities,5105690396,17.11.2021,Adult Social Care - Workforce Development,Training,875.00,EDGE TRAINING & CONS LTD
Revenue,Childrens Services,Adult Social Care,Social Care Activities,5105690404,17.11.2021,Adult Social Care - Workforce Development,Training,875.00,EDGE TRAINING & CONS LTD
Revenue,Childrens Services,Children's & Education Services,Safeguarding Children/Young Peoples Svs,5105691772,26.11.2021,Court Work & Consultancy Services,Professional Services,642.21,GARY TAYLOR ASSOCIATES LIMITED
Revenue,Childrens Services,Children's & Education Services,Safeguarding Children/Young Peoples Svs,5105691317,24.11.2021,Court Work & Consultancy Services,Professional Services,86.63,GARY TAYLOR ASSOCIATES LIMITED
Revenue,Childrens Services,Children's & Education Services,Other Education and Community Budget,5105690321,12.11.2021,Home to School SEN Transport (LA),Taxis - Contract Hire,700.00,HAYLES TAXIS
Revenue,Childrens Services,Children's & Education Services,Other Education and Community Budget,5105690332,12.11.2021,Home to School SEN Transport (LA),Taxis - Contract Hire,616.00,HAYLES TAXIS
Revenue,Regeneration,Cultural and Related Services,Culture and Heritage,5105688494,12.11.2021,Events Support,Payment to Private Contractors,"6,500.00",ISLAND HIGHWAY & TRANSPORT
Revenue,Regeneration,Cultural and Related Services,Tourism,5105688494,12.11.2021,Isle of Wight Festival,Payment to Private Contractors,"12,500.00",ISLAND HIGHWAY & TRANSPORT
Revenue,Adult Services,Adult Social Care,Social Support - Support for Carer,5105689613,05.11.2021,Westminster House,Cleaning Contracts,60.00,ISLANDWIDE WINDOW CLEANING
Revenue,Adult Services,Adult Social Care,Learning Disab Supp (to be reallocated),5105689613,05.11.2021,Plean Dene,Cleaning Contracts,86.00,ISLANDWIDE WINDOW CLEANING
Revenue,Adult Services,Adult Social Care,Learning Disab Supp (to be reallocated),5105689613,05.11.2021,Saxonbury,Cleaning Contracts,34.00,ISLANDWIDE WINDOW CLEANING
Revenue,Childrens Services,Children's & Education Services,Other Education and Community Budget,5105688708,05.11.2021,Workforce Development - Early Years,Training,200.00,REDACTED PERSONAL DATA
Revenue,Childrens Services,Children's & Education Services,Family Support Services,5105688122,03.11.2021,Short Breaks,Charges from Independent Providers,44.78,JOHN CATTLE'S SKATE CLUB
Revenue,Childrens Services,Children's & Education Services,Family Support Services,5105688123,03.11.2021,Short Breaks,Charges from Independent Providers,179.12,JOHN CATTLE'S SKATE CLUB
Revenue,Childrens Services,Children's & Education Services,Family Support Services,5105688125,03.11.2021,Short Breaks,Charges from Independent Providers,223.90,JOHN CATTLE'S SKATE CLUB
Revenue,Childrens Services,Children's & Education Services,Family Support Services,5105688126,03.11.2021,Short Breaks,Charges from Independent Providers,179.12,JOHN CATTLE'S SKATE CLUB
Revenue,Childrens Services,Children's & Education Services,Family Support Services,5105688127,03.11.2021,Short Breaks,Charges from Independent Providers,179.12,JOHN CATTLE'S SKATE CLUB
Revenue,Childrens Services,Children's & Education Services,Family Support Services,5105688128,03.11.2021,Short Breaks,Charges from Independent Providers,223.90,JOHN CATTLE'S SKATE CLUB
Revenue,Regeneration,Planning services,Business Support,5105690451,17.11.2021,"Dodnor Units, Newport",Property Services - Day to day Maintenance,175.00,LINSCH CONSULTANTS
Revenue,Public Health,Public Health,Miscellaneous Public Health Services,5105690940,19.11.2021,PEACH NP,Consultants Fees,"2,500.00",REDACTED PERSONAL DATA
Revenue,Neighbourhoods,Cultural and Related Services,Open Spaces,5105690161,12.11.2021,Rights of Way Operations,Payment to Private Contractors,"1,320.00",REDACTED PERSONAL DATA
Revenue,Neighbourhoods,Cultural and Related Services,Open Spaces,5105690663,17.11.2021,Rights of Way Operations,Payment to Private Contractors,"2,200.00",REDACTED PERSONAL DATA
Revenue,Resources,Central Services,Support Services,5400003105,29.11.2021,Safeguarding Training,Training,450.00,MISSING SOLUTIONS LTD
Revenue,Resources,Central Services,Support Services,5400003111,29.11.2021,Safeguarding Training,Training,600.00,MISSING SOLUTIONS LTD
Capital,Place,Capital,Capital,5105691019,24.11.2021,Rights Of Way Capital Programme,Payment to Contractors - Capital,"6,000.00",REDACTED PERSONAL DATA
Revenue,Neighbourhoods,Cultural and Related Services,Open Spaces,5105691011,24.11.2021,Tree Felling / Replacement,Payment to Private Contractors,500.00,NIGEL EARLEY SERVICES LTD
Revenue,Neighbourhoods,Environmental & Regulatory Services,"Cemetery, Cremation & Mortuary Services",5105689215,03.11.2021,Cemeteries Administration,Grounds Maintenance,425.00,NIGEL EARLEY SERVICES LTD
Revenue,Neighbourhoods,Environmental & Regulatory Services,"Cemetery, Cremation & Mortuary Services",5105689216,03.11.2021,Cemeteries Administration,Grounds Maintenance,150.00,NIGEL EARLEY SERVICES LTD
Revenue,Neighbourhoods,Environmental & Regulatory Services,"Cemetery, Cremation & Mortuary Services",5105691875,29.11.2021,Cemeteries Administration,Grounds Maintenance,300.00,NIGEL EARLEY SERVICES LTD
Revenue,Resources,Central Services,Support Services,5105690269,12.11.2021,Legal Services Section,Sundry Office Expenses,59.97,OD CONSULTANCY LTD
Revenue,Adult Services,Housing Services,Homelessness,5105691036,24.11.2021,Private Rented Sector Leasing Scheme,Accommodation Costs - Leaseholder Payments,695.89,REDACTED PERSONAL DATA
Revenue,Adult Services,Housing Services,Homelessness,5105691036,24.11.2021,Private Rented Sector Leasing Scheme,Accommodation Costs - Leaseholder Payments,695.89,REDACTED PERSONAL DATA
Revenue,Adult Services,Housing Services,Homelessness,5105691036,24.11.2021,Private Rented Sector Leasing Scheme,Accommodation Costs - Leaseholder Payments,695.89,REDACTED PERSONAL DATA
Revenue,Adult Services,Housing Services,Homelessness,5105691036,24.11.2021,Private Rented Sector Leasing Scheme,Accommodation Costs - Leaseholder Payments,695.89,REDACTED PERSONAL DATA
Revenue,Adult Services,Housing Services,Homelessness,5105691036,24.11.2021,Private Rented Sector Leasing Scheme,Accommodation Costs - Leaseholder Payments,695.89,REDACTED PERSONAL DATA
Revenue,Childrens Services,Children's & Education Services,Children Looked After,5105689325,05.11.2021,Adopt South Adoption Support Fund,Charges from Independent Providers,75.00,REDACTED PERSONAL DATA
Revenue,Childrens Services,Children's & Education Services,Children Looked After,5105689326,05.11.2021,Adopt South Adoption Support Fund,Charges from Independent Providers,75.00,REDACTED PERSONAL DATA
Revenue,Regeneration,Central Services,Support Services,5105691753,26.11.2021,Strategic Assets Team,Professional Services,"3,750.00",PRINCIPAL SURVEYORS LTD
Revenue,Childrens Services,Children's & Education Services,Management & Support Services,5105688384,03.11.2021,Special Discretionary Grants,Charges from Independent Providers,"5,460.00",REDACTED PERSONAL DATA
Revenue,Childrens Services,Children's & Education Services,Other Education and Community Budget,5105689283,03.11.2021,Home to School SEN Transport (LA),Taxis - Contract Hire,-630.00,ROUNSEVELLS TAXIS
Revenue,Childrens Services,Children's & Education Services,Other Education and Community Budget,5105689284,03.11.2021,Home to School SEN Transport (LA),Taxis - Contract Hire,627.00,ROUNSEVELLS TAXIS
Revenue,Childrens Services,Children's & Education Services,Other Education and Community Budget,5105688153,03.11.2021,Home to School SEN Transport (LA),Taxis - Contract Hire,630.00,ROUNSEVELLS TAXIS
Revenue,Childrens Services,Children's & Education Services,Other Education and Community Budget,5400003109,29.11.2021,Home to School SEN Transport (LA),Taxis - Contract Hire,735.00,ROUNSEVELLS TAXIS
Revenue,Childrens Services,Children's & Education Services,Other Education and Community Budget,5105690946,24.11.2021,Home to School SEN Transport (LA),Taxis - Contract Hire,363.00,ROUNSEVELLS TAXIS
Revenue,Childrens Services,Children's & Education Services,Other Education and Community Budget,5105689941,24.11.2021,Home to College Post 16 Transport,Taxis - Contract Hire,210.00,ROUNSEVELLS TAXIS
Revenue,Childrens Services,Children's & Education Services,Special Schools & Alternative Provision,5105690578,19.11.2021,Island Learning Centre,Taxis - Contract Hire,70.00,ROUNSEVELLS TAXIS
Revenue,Childrens Services,Children's & Education Services,Special Schools & Alternative Provision,5105688471,12.11.2021,Island Learning Centre,Taxis - Contract Hire,87.50,ROUNSEVELLS TAXIS
Revenue,Adult Services,Housing Services,Homelessness,5105689691,05.11.2021,Homelessness Support,Client Expenses,400.00,REDACTED PERSONAL DATA
Revenue,Childrens Services,Children's & Education Services,Family Support Services,5105689792,17.11.2021,S17 Disabled Children,Support Children,300.00,SCALLYWAGS FUN CLUB
Revenue,Childrens Services,Children's & Education Services,Family Support Services,5105689789,19.11.2021,S17 Disabled Children,Support Children,108.00,SCALLYWAGS FUN CLUB
Revenue,Childrens Services,Children's & Education Services,Family Support Services,5105689790,10.11.2021,Holiday Activities & Food Programme,Payments to Voluntary and Other Associations,"6,704.90",SCALLYWAGS FUN CLUB
Revenue,Childrens Services,Children's & Education Services,Management & Support Services,5105688825,03.11.2021,Special Discretionary Grants,Charges from Independent Providers,"1,800.00",REDACTED PERSONAL DATA
Revenue,Childrens Services,Children's & Education Services,Management & Support Services,5105690916,19.11.2021,Pupil Premium Managed Centrally,Professional Services,300.00,REDACTED PERSONAL DATA
Revenue,Childrens Services,Children's & Education Services,Management & Support Services,5105690917,19.11.2021,Pupil Premium Managed Centrally,Professional Services,360.00,REDACTED PERSONAL DATA
Revenue,Childrens Services,Children's & Education Services,Management & Support Services,5105690916,19.11.2021,Pupil Premium Managed Centrally,Travel Expenses,51.00,REDACTED PERSONAL DATA
Revenue,Childrens Services,Children's & Education Services,Management & Support Services,5105690917,19.11.2021,Pupil Premium Managed Centrally,Travel Expenses,51.00,REDACTED PERSONAL DATA
Revenue,Childrens Services,Children's & Education Services,Family Support Services,5400003123,29.11.2021,Short Breaks,Charges from Independent Providers,239.00,THE CROSSLEY COMPANY (IOW) LTD
Revenue,Childrens Services,Children's & Education Services,Family Support Services,5400003124,29.11.2021,Short Breaks,Charges from Independent Providers,172.00,THE CROSSLEY COMPANY (IOW) LTD
Revenue,Adult Services,Adult Social Care,Social Support - Social Isolation/Other,5105691789,26.11.2021,Social Isolation/Other Other ST Support,Professional Services,420.00,THE ROBOS SPECIALIST CLEANING
Revenue,Childrens Services,Children's & Education Services,Other Education and Community Budget,5105689608,05.11.2021,Home to School SEN Transport (LA),Taxis - Contract Hire,700.00,THOMPSON TAXI
Revenue,Childrens Services,Children's & Education Services,Other Education and Community Budget,5105689607,05.11.2021,Home to School Mainstream Transport,Taxis - Contract Hire,880.00,THOMPSON TAXI
Revenue,Adult Services,Adult Social Care,Social Support - Social Isolation/Other,5105690585,26.11.2021,Social Isolation/Other Other ST Support,Professional Services,"1,130.60",TOP MOPS LIMITED
Revenue,Adult Services,Adult Social Care,Social Support - Social Isolation/Other,5105690188,17.11.2021,Social Isolation/Other Other ST Support,Professional Services,588.00,TOP MOPS LIMITED
Revenue,Adult Services,Adult Social Care,Social Support - Social Isolation/Other,5105689403,10.11.2021,Social Isolation/Other Other ST Support,Professional Services,541.00,TOP MOPS LIMITED
Revenue,Adult Services,Adult Social Care,Social Support - Social Isolation/Other,5105688706,10.11.2021,Social Isolation/Other Other ST Support,Professional Services,637.00,TOP MOPS LIMITED
Revenue,Neighbourhoods,Environmental & Regulatory Services,Regulatory Services,5105690628,26.11.2021,Public Conveniences - General,Cleaning Contracts,632.50,TOP MOPS LIMITED
Revenue,Neighbourhoods,Environmental & Regulatory Services,Regulatory Services,5105691575,26.11.2021,Public Conveniences - General,Cleaning Contracts,67.37,TOP MOPS LIMITED
Revenue,Childrens Services,Children's & Education Services,Other Education and Community Budget,5105689334,03.11.2021,Home to School SEN Transport (LA),Taxis - Contract Hire,"1,520.00",TOP MOPS LIMITED
Revenue,Childrens Services,Children's & Education Services,Other Education and Community Budget,5105691656,26.11.2021,Home to School SEN Transport (LA),Taxis - Contract Hire,880.00,TOP MOPS LIMITED
Revenue,Childrens Services,Children's & Education Services,Other Education and Community Budget,5105691558,26.11.2021,Home to School SEN Transport (LA),Taxis - Contract Hire,660.00,TOP MOPS LIMITED
Revenue,Neighbourhoods,Highways and Transport Services,"Airports, Harbours & Toll Facilities",5105690398,19.11.2021,Ryde Harbour,Payment to Private Contractors,560.00,TOP MOPS LIMITED
Revenue,Childrens Services,Children's & Education Services,Other Education and Community Budget,5105688816,05.11.2021,Home to College Post 16 Transport,Taxis - Contract Hire,450.00,TOP MOPS LIMITED
Revenue,Childrens Services,Children's & Education Services,Other Education and Community Budget,5105691655,26.11.2021,Home to College Post 16 Transport,Taxis - Contract Hire,650.00,TOP MOPS LIMITED
Revenue,Childrens Services,Children's & Education Services,Special Schools & Alternative Provision,5105690554,19.11.2021,Island Learning Centre,Cleaning Contracts,837.00,TOP MOPS LIMITED
Revenue,Childrens Services,Children's & Education Services,Special Schools & Alternative Provision,5105690626,19.11.2021,Island Learning Centre,Cleaning Contracts,"1,842.50",TOP MOPS LIMITED
Revenue,Childrens Services,Children's & Education Services,Special Schools & Alternative Provision,5105687997,05.11.2021,Island Learning Centre,Consumable Cleaning Materials,103.10,TOP MOPS LIMITED
Revenue,Childrens Services,Children's & Education Services,Other Education and Community Budget,5105691554,26.11.2021,Home to School Mainstream Transport,Taxis - Contract Hire,"1,485.00",TOP MOPS LIMITED
Revenue,Childrens Services,Children's & Education Services,Other Education and Community Budget,5105691555,26.11.2021,Home to School Mainstream Transport,Taxis - Contract Hire,"1,254.00",TOP MOPS LIMITED
Revenue,Childrens Services,Children's & Education Services,Other Education and Community Budget,5105691556,26.11.2021,Home to School Mainstream Transport,Taxis - Contract Hire,"1,144.00",TOP MOPS LIMITED
Revenue,Childrens Services,Children's & Education Services,Other Education and Community Budget,5105689646,05.11.2021,Barton Primary Sshool Disposal,Security of Buildings,12.00,VECTIS GROUP SECURITY LTD
Revenue,Childrens Services,Children's & Education Services,Other Education and Community Budget,5105692099,29.11.2021,Barton Primary Sshool Disposal,Security of Buildings,12.00,VECTIS GROUP SECURITY LTD
Revenue,Regeneration,Planning services,Economic Development,5105690984,19.11.2021,Victoria Quays,Security of Buildings,567.00,VECTIS GROUP SECURITY LTD
Capital,Place,Capital,Capital,5105691879,29.11.2021,Waste Capital Programme,External Design and Supervision Fees,60.00,VECTIS GROUP SECURITY LTD
Revenue,Regeneration,Central Services,Support Services,5105691296,24.11.2021,Elmdon (The Laurels),Security of Buildings,125.00,VECTIS GROUP SECURITY LTD
Revenue,Childrens Services,Children's & Education Services,Other Education and Community Budget,5105691999,29.11.2021,Weston Academy Closure,Security of Buildings,201.00,VECTIS GROUP SECURITY LTD
Revenue,Childrens Services,Children's & Education Services,Other Education and Community Budget,5105689623,05.11.2021,Weston Academy Closure,Security of Buildings,252.00,VECTIS GROUP SECURITY LTD
Revenue,Childrens Services,Children's & Education Services,Other Education and Community Budget,5105691190,24.11.2021,Ex Studio School Grange Rd East Cowes,Security of Buildings,162.00,VECTIS GROUP SECURITY LTD
Revenue,Regeneration,Central Services,Support Services,5105688520,05.11.2021,"Westridge, Ryde",Security of Buildings,12.00,VECTIS GROUP SECURITY LTD
Revenue,Regeneration,Central Services,Support Services,5105691266,26.11.2021,"Westridge, Ryde",Security of Buildings,12.00,VECTIS GROUP SECURITY LTD
Revenue,Childrens Services,Children's & Education Services,Special Schools & Alternative Provision,5105690344,12.11.2021,Island Learning Centre,Security of Buildings,30.00,VECTIS GROUP SECURITY LTD
Revenue,Childrens Services,Children's & Education Services,Special Schools & Alternative Provision,5105690344,12.11.2021,Island Learning Centre,Security of Buildings,12.00,VECTIS GROUP SECURITY LTD
Revenue,Childrens Services,Children's & Education Services,Support Services,5105690674,17.11.2021,Grafton Street Sandown (ex Sandown Yth),Security of Buildings,147.00,VECTIS GROUP SECURITY LTD
Revenue,Regeneration,Central Services,Support Services,5105691172,26.11.2021,Public Sector Partnership Costs,Security of Buildings,60.00,VECTIS GROUP SECURITY LTD
Revenue,Childrens Services,Children's & Education Services,Other Education and Community Budget,5105689647,05.11.2021,Broadlea PS Berry Hill site (was 55909),Security of Buildings,30.00,VECTIS GROUP SECURITY LTD
Revenue,Childrens Services,Children's & Education Services,Other Education and Community Budget,5105692100,29.11.2021,Broadlea PS Berry Hill site (was 55909),Security of Buildings,12.50,VECTIS GROUP SECURITY LTD
Revenue,Childrens Services,Children's & Education Services,Other Education and Community Budget,5105692100,29.11.2021,Broadlea PS Berry Hill site (was 55909),Security of Buildings,17.50,VECTIS GROUP SECURITY LTD
Revenue,Childrens Services,Children's & Education Services,Other Education and Community Budget,5105689218,03.11.2021,Non-Delegated Building Maintenance,Security of Buildings,15.00,VECTIS GROUP SECURITY LTD
Revenue,Regeneration,Planning services,Planning Policy,5105691818,26.11.2021,Island Planning Strategy,Agency staff,"7,588.50",VIVID RESOURCING
Revenue,Regeneration,Planning services,Planning Policy,5105691265,26.11.2021,Island Planning Strategy,Agency staff,"1,804.50",VIVID RESOURCING
Revenue,Regeneration,Planning services,Planning Policy,5105691363,26.11.2021,Island Planning Strategy,Agency staff,"-1,804.50",VIVID RESOURCING
Revenue,Childrens Services,Children's & Education Services,Other Education and Community Budget,5105689314,03.11.2021,Home to School SEN Transport (LA),Taxis - Contract Hire,"1,100.00",W W CARS OF SEAVIEW
Revenue,Childrens Services,Children's & Education Services,Other Education and Community Budget,5105689316,03.11.2021,Home to School SEN Transport (LA),Taxis - Contract Hire,660.00,W W CARS OF SEAVIEW
Revenue,Childrens Services,Children's & Education Services,Other Education and Community Budget,5105690305,12.11.2021,Home to College Post 16 Transport,Taxis - Contract Hire,475.20,HAVEN TAXIS & PRIVATE HIRE
Revenue,Childrens Services,Children's & Education Services,Other Education and Community Budget,5105689070,17.11.2021,Home to College Post 16 Transport,Taxis - Contract Hire,574.20,HAVEN TAXIS & PRIVATE HIRE
Revenue,Childrens Services,Children's & Education Services,Other Education and Community Budget,5105690409,17.11.2021,Home to School Mainstream Transport,Taxis - Contract Hire,"1,368.10",HAVEN TAXIS & PRIVATE HIRE
Revenue,Childrens Services,Children's & Education Services,Other Education and Community Budget,5105690306,12.11.2021,Home to School Mainstream Transport,Taxis - Contract Hire,848.90,HAVEN TAXIS & PRIVATE HIRE
Revenue,Childrens Services,Children's & Education Services,Other Education and Community Budget,5105690550,17.11.2021,Children's Services Strategic Management,Minor Works,195.00,WIGHT HEATING LTD
Revenue,Adult Services,Adult Social Care,Central Codes (to be reallocated),5105691550,26.11.2021,Gouldings Resource Centre,Property Services - Day to day Maintenance,236.15,WIGHT HEATING LTD
Revenue,Adult Services,Adult Social Care,Central Codes (to be reallocated),5105689729,10.11.2021,Gouldings Resource Centre,Property Services - Day to day Maintenance,229.26,WIGHT HEATING LTD
Revenue,Adult Services,Adult Social Care,Central Codes (to be reallocated),5105689730,10.11.2021,Gouldings Resource Centre,Property Services - Day to day Maintenance,80.00,WIGHT HEATING LTD
Revenue,Adult Services,Adult Social Care,Central Codes (to be reallocated),5105689731,10.11.2021,Gouldings Resource Centre,Property Services - Day to day Maintenance,185.00,WIGHT HEATING LTD
Revenue,Adult Services,Adult Social Care,Central Codes (to be reallocated),5105691932,29.11.2021,Gouldings Resource Centre,Maintenance of Operational Equipment,115.00,WIGHT HEATING LTD
Revenue,Neighbourhoods,Cultural and Related Services,Culture and Heritage,5105691934,29.11.2021,Medina Theatre,Property Services - Day to day Maintenance,220.00,WIGHT HEATING LTD
Revenue,Neighbourhoods,Cultural and Related Services,Culture and Heritage,5105691935,29.11.2021,Medina Theatre,Property Services - Day to day Maintenance,80.00,WIGHT HEATING LTD
Revenue,Regeneration,Central Services,Support Services,5105690561,17.11.2021,Non-operational buildings,Property Services - Planned Maintenance,385.96,WIGHT HEATING LTD
Revenue,Regeneration,Central Services,Support Services,5105691923,29.11.2021,Non-operational buildings,Property Services - Planned Maintenance,120.53,WIGHT HEATING LTD
Revenue,Childrens Services,Central Services,Support Services,5105691922,29.11.2021,Branstone Farm Studies Centre,Property Services - Planned Maintenance,35.00,WIGHT HEATING LTD
Revenue,Neighbourhoods,Cultural and Related Services,Library Service,5105690552,17.11.2021,Sandown Library,Property Services - Day to day Maintenance,285.28,WIGHT HEATING LTD
Revenue,Regeneration,Central Services,Support Services,5105691929,29.11.2021,Carisbrooke Depot,Property Services - Planned Maintenance,75.00,WIGHT HEATING LTD
Revenue,Childrens Services,Children's & Education Services,Sure Start Children's Centres,5105690563,17.11.2021,Family Centres Maintenance,Minor Works,578.12,WIGHT HEATING LTD
Revenue,Childrens Services,Children's & Education Services,Sure Start Children's Centres,5105691927,29.11.2021,Family Centres Maintenance,Minor Works,115.00,WIGHT HEATING LTD
Revenue,Childrens Services,Children's & Education Services,Management & Support Services,5105691920,29.11.2021,Specialist Service Business Admin,Minor Works,808.93,WIGHT HEATING LTD
Revenue,Neighbourhoods,Environmental & Regulatory Services,"Cemetery, Cremation & Mortuary Services",5105690551,17.11.2021,Crematorium,Property Services - Planned Maintenance,196.70,WIGHT HEATING LTD
Revenue,Neighbourhoods,Cultural and Related Services,Recreation and Sport,5105689707,05.11.2021,The Heights,Property Services - Day to day Maintenance,80.00,WIGHT HEATING LTD
Revenue,Adult Services,Housing Services,Homelessness,5105691048,24.11.2021,Private Rented Sector Leasing Scheme,Accommodation Costs - Leaseholder Payments,866.67,2K PROPERTY
Revenue,Childrens Services,Children's & Education Services,Other Education and Community Budget,5105690456,17.11.2021,Home to College Post 16 Transport,Taxis - Contract Hire,220.00,REDACTED PERSONAL DATA
Revenue,Childrens Services,Children's & Education Services,Other Education and Community Budget,5105690454,17.11.2021,Home to School Mainstream Transport,Taxis - Contract Hire,132.00,REDACTED PERSONAL DATA
Revenue,Childrens Services,Children's & Education Services,Children Looked After,5105691537,26.11.2021,Children placed with Family&Friends,Boarding Out Allowances,226.66,REDACTED PERSONAL DATA
Revenue,Childrens Services,Children's & Education Services,Children Looked After,5105691537,26.11.2021,Children placed with Family&Friends,Boarding Out Allowances,247.89,REDACTED PERSONAL DATA
Revenue,Childrens Services,Children's & Education Services,Children Looked After,5105691537,26.11.2021,Children placed with Family&Friends,Boarding Out Allowances,247.89,REDACTED PERSONAL DATA
Revenue,Childrens Services,Children's & Education Services,Children Looked After,5105690899,19.11.2021,Children placed with Family&Friends,Boarding Out Allowances,226.66,REDACTED PERSONAL DATA
Revenue,Childrens Services,Children's & Education Services,Children Looked After,5105690899,19.11.2021,Children placed with Family&Friends,Boarding Out Allowances,247.89,REDACTED PERSONAL DATA
Revenue,Childrens Services,Children's & Education Services,Children Looked After,5105690899,19.11.2021,Children placed with Family&Friends,Boarding Out Allowances,247.89,REDACTED PERSONAL DATA
Revenue,Childrens Services,Children's & Education Services,Children Looked After,5105689592,05.11.2021,Children placed with Family&Friends,Boarding Out Allowances,226.66,REDACTED PERSONAL DATA
Revenue,Childrens Services,Children's & Education Services,Children Looked After,5105689592,05.11.2021,Children placed with Family&Friends,Boarding Out Allowances,247.89,REDACTED PERSONAL DATA
Revenue,Childrens Services,Children's & Education Services,Children Looked After,5105689592,05.11.2021,Children placed with Family&Friends,Boarding Out Allowances,247.89,REDACTED PERSONAL DATA
Revenue,Childrens Services,Children's & Education Services,Children Looked After,5105690128,12.11.2021,Children placed with Family&Friends,Boarding Out Allowances,226.66,REDACTED PERSONAL DATA
Revenue,Childrens Services,Children's & Education Services,Children Looked After,5105690128,12.11.2021,Children placed with Family&Friends,Boarding Out Allowances,247.89,REDACTED PERSONAL DATA
Revenue,Childrens Services,Children's & Education Services,Children Looked After,5105690128,12.11.2021,Children placed with Family&Friends,Boarding Out Allowances,247.89,REDACTED PERSONAL DATA
Revenue,Childrens Services,Children's & Education Services,Children Looked After,5105689447,05.11.2021,Special Guardianship Order Costs,Support Children,207.73,REDACTED PERSONAL DATA
Revenue,Childrens Services,Children's & Education Services,Children Looked After,5105690753,19.11.2021,In-house Fostering,Boarding Out Allowances,290.48,REDACTED PERSONAL DATA
Revenue,Childrens Services,Children's & Education Services,Children Looked After,5105690753,19.11.2021,In-house Fostering,Boarding Out Allowances,290.48,REDACTED PERSONAL DATA
Revenue,Childrens Services,Children's & Education Services,Children Looked After,5105689986,12.11.2021,In-house Fostering,Boarding Out Allowances,290.48,REDACTED PERSONAL DATA
Revenue,Childrens Services,Children's & Education Services,Children Looked After,5105689986,12.11.2021,In-house Fostering,Boarding Out Allowances,290.48,REDACTED PERSONAL DATA
Revenue,Childrens Services,Children's & Education Services,Children Looked After,5105689447,05.11.2021,In-house Fostering,Boarding Out Allowances,290.48,REDACTED PERSONAL DATA
Revenue,Childrens Services,Children's & Education Services,Children Looked After,5105689447,05.11.2021,In-house Fostering,Boarding Out Allowances,290.48,REDACTED PERSONAL DATA
Revenue,Childrens Services,Children's & Education Services,Children Looked After,5105691394,26.11.2021,In-house Fostering,Boarding Out Allowances,290.48,REDACTED PERSONAL DATA
Revenue,Childrens Services,Children's & Education Services,Children Looked After,5105691394,26.11.2021,In-house Fostering,Boarding Out Allowances,290.48,REDACTED PERSONAL DATA
Revenue,Childrens Services,Children's & Education Services,Children Looked After,5105690906,19.11.2021,Special Guardianship Order Costs,Support Children,100.00,REDACTED PERSONAL DATA
Revenue,Childrens Services,Children's & Education Services,Children Looked After,5105691544,26.11.2021,Special Guardianship Order Costs,Support Children,100.00,REDACTED PERSONAL DATA
Revenue,Adult Services,Housing Services,Homelessness,5105691045,24.11.2021,Private Rented Sector Leasing Scheme,Accommodation Costs - Leaseholder Payments,510.25,REDACTED PERSONAL DATA
Revenue,Adult Services,Housing Services,Homelessness,5105691045,24.11.2021,Private Rented Sector Leasing Scheme,Accommodation Costs - Leaseholder Payments,510.25,REDACTED PERSONAL DATA
Revenue,Adult Services,Housing Services,Homelessness,5105691045,24.11.2021,Private Rented Sector Leasing Scheme,Accommodation Costs - Leaseholder Payments,510.25,REDACTED PERSONAL DATA
Revenue,Adult Services,Housing Services,Homelessness,5105691045,24.11.2021,Private Rented Sector Leasing Scheme,Accommodation Costs - Leaseholder Payments,510.25,REDACTED PERSONAL DATA
Revenue,Adult Services,Housing Services,Homelessness,5105691045,24.11.2021,Private Rented Sector Leasing Scheme,Accommodation Costs - Leaseholder Payments,510.25,REDACTED PERSONAL DATA
Revenue,Adult Services,Housing Services,Homelessness,5105691045,24.11.2021,Private Rented Sector Leasing Scheme,Accommodation Costs - Leaseholder Payments,510.25,REDACTED PERSONAL DATA
Revenue,Adult Services,Housing Services,Homelessness,5105691045,24.11.2021,Private Rented Sector Leasing Scheme,Accommodation Costs - Leaseholder Payments,510.25,REDACTED PERSONAL DATA
Revenue,Childrens Services,Children's & Education Services,Children Looked After,5105689192,03.11.2021,In-house Fostering,Support Children,60.00,REDACTED PERSONAL DATA
Revenue,Childrens Services,Children's & Education Services,Children Looked After,5105691382,26.11.2021,Adoption Costs,Support Children,225.83,REDACTED PERSONAL DATA
Revenue,Childrens Services,Children's & Education Services,Children Looked After,5105689974,12.11.2021,Adoption Costs,Support Children,225.83,REDACTED PERSONAL DATA
Revenue,Childrens Services,Children's & Education Services,Children Looked After,5105690741,19.11.2021,Adoption Costs,Support Children,225.83,REDACTED PERSONAL DATA
Revenue,Childrens Services,Children's & Education Services,Children Looked After,5105689435,05.11.2021,Adoption Costs,Support Children,225.83,REDACTED PERSONAL DATA
Revenue,Childrens Services,Children's & Education Services,Children Looked After,5105689291,03.11.2021,Leaving Care Costs,Support Children,21.99,REDACTED PERSONAL DATA
Revenue,Childrens Services,Children's & Education Services,Children Looked After,5105691538,26.11.2021,In-house Fostering,Support Children,120.00,REDACTED PERSONAL DATA
Revenue,Childrens Services,Children's & Education Services,Children Looked After,5105690900,19.11.2021,In-house Fostering,Support Children,120.00,REDACTED PERSONAL DATA
Revenue,Childrens Services,Children's & Education Services,Children Looked After,5105689593,05.11.2021,In-house Fostering,Support Children,120.00,REDACTED PERSONAL DATA
Revenue,Childrens Services,Children's & Education Services,Children Looked After,5105690129,12.11.2021,In-house Fostering,Support Children,120.00,REDACTED PERSONAL DATA
Revenue,Childrens Services,Children's & Education Services,Services for Young People,5105690452,17.11.2021,Resilience Around the Family Team,General Materials,465.00,ALERE TOXICOLOGY PLC
Revenue,Neighbourhoods,Cultural and Related Services,Open Spaces,5105692046,29.11.2021,Estuaries Officer,Consultants Fees,"9,966.00",ABP MARINE ENVIRONMENTAL RESEARCH LTD
Revenue,Adult Services,Adult Social Care,Central Codes (to be reallocated),5105690538,17.11.2021,Community Reablement,Computer Software Licencing,"3,061.00",ACCESS UK LTD
Revenue,Adult Services,Adult Social Care,Learning Disab Supp (to be reallocated),5105691863,26.11.2021,"41 Newport Road, Cowes",Charges from Independent Providers,"8,459.64",TRACSCARE WELLCARE LIFESTYLES
Revenue,Adult Services,Adult Social Care,Learning Disab Supp (to be reallocated),5105691863,26.11.2021,"17 Newport Road, Ventnor",Charges from Independent Providers,"7,241.40",TRACSCARE WELLCARE LIFESTYLES
Revenue,Adult Services,Adult Social Care,Learning Disab Supp (to be reallocated),5105691863,26.11.2021,Carisbrooke House,Charges from Independent Providers,"12,682.04",TRACSCARE WELLCARE LIFESTYLES
Revenue,Adult Services,Adult Social Care,Learning Disab Supp (to be reallocated),5105691863,26.11.2021,"Greengates, Ryde",Charges from Independent Providers,"8,459.64",TRACSCARE WELLCARE LIFESTYLES
Revenue,Adult Services,Adult Social Care,Long Term Support,5105691863,26.11.2021,Seagulls,Charges from Independent Providers,"29,020.88",TRACSCARE WELLCARE LIFESTYLES
Revenue,Adult Services,Adult Social Care,Learning Disab Supp (to be reallocated),5105691863,26.11.2021,"Heath Road, Lake",Charges from Independent Providers,"7,241.40",TRACSCARE WELLCARE LIFESTYLES
Revenue,Adult Services,Adult Social Care,Learning Disab Supp (to be reallocated),5105691863,26.11.2021,"Winton Street, Ryde",Charges from Independent Providers,"8,459.64",TRACSCARE WELLCARE LIFESTYLES
Revenue,Adult Services,Adult Social Care,Learning Disab Supp (to be reallocated),5105691863,26.11.2021,Reeves Court Supported Living,Charges from Independent Providers,"45,088.68",TRACSCARE WELLCARE LIFESTYLES
Revenue,Adult Services,Adult Social Care,Long Term Support,5105691863,26.11.2021,40 Venner Avenue,Charges from Independent Providers,"30,296.56",TRACSCARE WELLCARE LIFESTYLES
Revenue,Childrens Services,Children's & Education Services,Children Looked After,5105691294,26.11.2021,Purchased Residential,Charges from Independent Providers,"4,736.30",ACORN CARE AND EDUCATION LTD
Revenue,Childrens Services,Children's & Education Services,Children Looked After,5105691290,26.11.2021,Purchased Residential,Charges from Independent Providers,"4,736.31",ACORN CARE AND EDUCATION LTD
Revenue,Childrens Services,Children's & Education Services,Children Looked After,5105689642,05.11.2021,Purchased Residential,Charges from Independent Providers,"15,685.48",ACORN CARE AND EDUCATION LTD
Revenue,Childrens Services,Children's & Education Services,Children Looked After,5105689643,05.11.2021,Purchased Residential,Charges from Independent Providers,"15,728.57",ACORN CARE AND EDUCATION LTD
Revenue,Childrens Services,Children's & Education Services,Children Looked After,5105690206,17.11.2021,Purchased Residential,Charges from Independent Providers,"16,252.86",ACORN CARE AND EDUCATION LTD
Revenue,Childrens Services,Children's & Education Services,Children Looked After,5105690208,17.11.2021,Purchased Residential,Charges from Independent Providers,"16,208.33",ACORN CARE AND EDUCATION LTD
Revenue,Childrens Services,Children's & Education Services,Management & Support Services,5105690199,12.11.2021,Education Out of School,Agency staff,555.00,A-DAY CONSULTANTS LTD
Revenue,Childrens Services,Children's & Education Services,Management & Support Services,5105690677,17.11.2021,Education Out of School,Agency staff,555.00,A-DAY CONSULTANTS LTD
Revenue,Childrens Services,Children's & Education Services,Management & Support Services,5105691309,24.11.2021,Education Out of School,Agency staff,555.00,A-DAY CONSULTANTS LTD
Revenue,Childrens Services,Children's & Education Services,Management & Support Services,5105691561,26.11.2021,Education Out of School,Agency staff,555.00,A-DAY CONSULTANTS LTD
Revenue,Childrens Services,Children's & Education Services,Management & Support Services,5105691557,26.11.2021,Education Out of School,Agency staff,555.00,A-DAY CONSULTANTS LTD
Revenue,Childrens Services,Children's & Education Services,Management & Support Services,5105691559,26.11.2021,Education Out of School,Agency staff,555.00,A-DAY CONSULTANTS LTD
Revenue,Childrens Services,Children's & Education Services,Management & Support Services,5105691912,29.11.2021,Education Out of School,Agency staff,555.00,A-DAY CONSULTANTS LTD
Revenue,Childrens Services,Children's & Education Services,Management & Support Services,5400003097,29.11.2021,Pupil Premium Managed Centrally,Professional Services,-54.35,A-DAY CONSULTANTS LTD
Revenue,Childrens Services,Children's & Education Services,Special Schools & Alternative Provision,5105691362,26.11.2021,Island Learning Centre,Agency staff,555.00,A-DAY CONSULTANTS LTD
Revenue,Childrens Services,Children's & Education Services,Special Schools & Alternative Provision,5105691362,26.11.2021,Island Learning Centre,Agency staff,110.00,A-DAY CONSULTANTS LTD
Revenue,Childrens Services,Children's & Education Services,Special Schools & Alternative Provision,5105691362,26.11.2021,Island Learning Centre,Agency staff,440.00,A-DAY CONSULTANTS LTD
Revenue,Childrens Services,Children's & Education Services,Special Schools & Alternative Provision,5105692017,29.11.2021,Island Learning Centre,Agency staff,540.00,A-DAY CONSULTANTS LTD
Revenue,Childrens Services,Children's & Education Services,Special Schools & Alternative Provision,5105692017,29.11.2021,Island Learning Centre,Agency staff,105.00,A-DAY CONSULTANTS LTD
Revenue,Childrens Services,Children's & Education Services,Special Schools & Alternative Provision,5105692017,29.11.2021,Island Learning Centre,Agency staff,370.00,A-DAY CONSULTANTS LTD
Revenue,Childrens Services,Children's & Education Services,Special Schools & Alternative Provision,5105692017,29.11.2021,Island Learning Centre,Agency staff,111.00,A-DAY CONSULTANTS LTD
Revenue,Childrens Services,Children's & Education Services,Special Schools & Alternative Provision,5105692017,29.11.2021,Island Learning Centre,Agency staff,110.00,A-DAY CONSULTANTS LTD
Revenue,Childrens Services,Children's & Education Services,Special Schools & Alternative Provision,5105692017,29.11.2021,Island Learning Centre,Agency staff,26.65,A-DAY CONSULTANTS LTD
Revenue,Childrens Services,Children's & Education Services,Special Schools & Alternative Provision,5105692017,29.11.2021,Island Learning Centre,Agency staff,26.65,A-DAY CONSULTANTS LTD
Revenue,Childrens Services,Children's & Education Services,Special Schools & Alternative Provision,5105692017,29.11.2021,Island Learning Centre,Agency staff,110.00,A-DAY CONSULTANTS LTD
Revenue,Childrens Services,Children's & Education Services,Special Schools & Alternative Provision,5105692017,29.11.2021,Island Learning Centre,Agency staff,159.00,A-DAY CONSULTANTS LTD
Revenue,Childrens Services,Children's & Education Services,Special Schools & Alternative Provision,5105692017,29.11.2021,Island Learning Centre,Agency staff,660.00,A-DAY CONSULTANTS LTD
Revenue,Childrens Services,Children's & Education Services,Other Education and Community Budget,5105689078,05.11.2021,Home to School SEN Transport (LA),Taxis - Contract Hire,880.00,REDACTED PERSONAL DATA
Revenue,Childrens Services,Children's & Education Services,Other Education and Community Budget,5105689085,05.11.2021,Home to School SEN Transport (LA),Taxis - Contract Hire,880.00,REDACTED PERSONAL DATA
Revenue,Childrens Services,Children's & Education Services,Other Education and Community Budget,5105689080,05.11.2021,Home to School SEN Transport (LA),Taxis - Contract Hire,"1,430.00",REDACTED PERSONAL DATA
Revenue,Childrens Services,Children's & Education Services,Other Education and Community Budget,5105689081,05.11.2021,Home to School SEN Transport (LA),Taxis - Contract Hire,550.00,REDACTED PERSONAL DATA
Revenue,Childrens Services,Children's & Education Services,Other Education and Community Budget,5105689127,05.11.2021,Home to School SEN Transport (LA),Taxis - Contract Hire,"1,100.00",REDACTED PERSONAL DATA
Revenue,Childrens Services,Children's & Education Services,Other Education and Community Budget,5105689130,05.11.2021,Home to School SEN Transport (LA),Taxis - Contract Hire,"1,650.00",REDACTED PERSONAL DATA
Revenue,Childrens Services,Children's & Education Services,Other Education and Community Budget,5105689131,05.11.2021,Home to School SEN Transport (LA),Taxis - Contract Hire,660.00,REDACTED PERSONAL DATA
Revenue,Childrens Services,Children's & Education Services,Other Education and Community Budget,5105689132,05.11.2021,Home to School SEN Transport (LA),Taxis - Contract Hire,360.00,REDACTED PERSONAL DATA
Revenue,Childrens Services,Children's & Education Services,Other Education and Community Budget,5105689133,05.11.2021,Home to School SEN Transport (LA),Taxis - Contract Hire,990.00,REDACTED PERSONAL DATA
Revenue,Childrens Services,Children's & Education Services,Other Education and Community Budget,5105691261,24.11.2021,Home to College Post 16 Transport,Taxis - Contract Hire,"1,500.00",REDACTED PERSONAL DATA
Revenue,Childrens Services,Children's & Education Services,Other Education and Community Budget,5105689128,05.11.2021,Home to College Post 16 Transport,Taxis - Contract Hire,540.00,REDACTED PERSONAL DATA
Revenue,Childrens Services,Children's & Education Services,Other Education and Community Budget,5105689126,05.11.2021,Home to School Mainstream Transport,Taxis - Contract Hire,"2,200.00",REDACTED PERSONAL DATA
Revenue,Childrens Services,Children's & Education Services,Other Education and Community Budget,5105689079,05.11.2021,Home to School Mainstream Transport,Taxis - Contract Hire,880.00,REDACTED PERSONAL DATA
Revenue,Childrens Services,Children's & Education Services,Other Education and Community Budget,5105689083,05.11.2021,Home to School Mainstream Transport,Taxis - Contract Hire,660.00,REDACTED PERSONAL DATA
Revenue,Childrens Services,Children's & Education Services,Other Education and Community Budget,5105689129,10.11.2021,Home to School Mainstream Transport,Taxis - Contract Hire,"1,100.00",REDACTED PERSONAL DATA
Revenue,Neighbourhoods,Highways and Transport Services,"Airports, Harbours & Toll Facilities",5105691791,26.11.2021,Newport Harbour Account,Payment to Private Contractors,"2,798.00",ADLER & ALLAN
Revenue,Childrens Services,Children's & Education Services,Other Education and Community Budget,5400003099,29.11.2021,Children's Services Strategic Management,Security of Buildings,57.60,ADT FIRE AND SECURITY PLC
Revenue,Neighbourhoods,Highways and Transport Services,"Airports, Harbours & Toll Facilities",5400003119,29.11.2021,Ferry Operation,Payment to Private Contractors,250.00,ADT FIRE AND SECURITY PLC
Capital,Place,Capital,Capital,5105691248,24.11.2021,Parks and Gardens Capital,Payment to Contractors - Capital,"1,219.78",ADT FIRE AND SECURITY PLC
Capital,Childrens Services,Capital,Capital,5105689702,17.11.2021,Children Services Early Years,Payment to Contractors - Capital,"8,725.00",ADT FIRE AND SECURITY PLC
Revenue,Neighbourhoods,Cultural and Related Services,Recreation and Sport,5105690365,17.11.2021,Medina Leisure Centre,Security of Buildings,71.00,ADT FIRE AND SECURITY PLC
Revenue,Adult Services,Adult Social Care,Assistive Equipment & Technology,5105689209,17.11.2021,BCF Community Equipment Store,Property Services - Day to day Maintenance,315.08,ADT FIRE AND SECURITY PLC
Revenue,Childrens Services,Children's & Education Services,Sure Start Children's Centres,5105690290,17.11.2021,Family Centres Maintenance,Property Services - Day to day Maintenance,65.00,ADT FIRE AND SECURITY PLC
Revenue,Neighbourhoods,Cultural and Related Services,Recreation and Sport,5105690363,17.11.2021,The Heights,Security of Buildings,435.40,ADT FIRE AND SECURITY PLC
Revenue,Neighbourhoods,Cultural and Related Services,Recreation and Sport,5105689866,10.11.2021,Beach huts - Colwell Bay,Payment to Private Contractors,800.00,SCOTCHER AND CO
Revenue,Adult Services,Adult Social Care,Commissioning & Service Delivery,5105689295,03.11.2021,Group Manager Leaning Disability Homes,Publications,64.94,AGORA BUSINESS PUBLICATIONS LLP
Revenue,Resources,Housing Services,Housing Benefits Administration,5105691741,26.11.2021,Housing Benefit,Training,"2,500.00",AIREY CONSULTANCY SERVICES LTD
Revenue,Childrens Services,Children's & Education Services,Sure Start Children's Centres,5105690965,19.11.2021,Family Centres Maintenance,Minor Works,95.00,AIRTEK SERVICES IOW LTD
Revenue,Adult Services,Adult Social Care,Learning Disability Suppt-adults (18-64),5105691145,24.11.2021,Learning Disability Residential 18-64,Charges from Independent Providers,"8,883.56",AITCH CARE HOMES (LONDON) LTD
Revenue,Childrens Services,Children's & Education Services,Other Education and Community Budget,5105692011,29.11.2021,Home to School SEN Transport (LA),Taxis - Contract Hire,366.67,AKAR TAXIS
Revenue,Childrens Services,Children's & Education Services,Other Education and Community Budget,5105692007,29.11.2021,Home to School Mainstream Transport,Taxis - Contract Hire,320.00,AKAR TAXIS
Revenue,Childrens Services,Children's & Education Services,Other Education and Community Budget,5105692010,29.11.2021,Home to School Mainstream Transport,Taxis - Contract Hire,696.67,AKAR TAXIS
Revenue,Neighbourhoods,Environmental & Regulatory Services,"Cemetery, Cremation & Mortuary Services",5105688402,24.11.2021,Crematorium,Grounds Maintenance,"3,116.66",ALBANY FARM & G MACHINERY LTD
Revenue,Neighbourhoods,Environmental & Regulatory Services,"Cemetery, Cremation & Mortuary Services",5105689699,05.11.2021,Crematorium,Grounds Maintenance,58.91,ALBANY FARM & G MACHINERY LTD
Revenue,Neighbourhoods,Environmental & Regulatory Services,"Cemetery, Cremation & Mortuary Services",5105689701,05.11.2021,Crematorium,Grounds Maintenance,27.73,ALBANY FARM & G MACHINERY LTD
Revenue,Neighbourhoods,Environmental & Regulatory Services,"Cemetery, Cremation & Mortuary Services",5105691869,29.11.2021,Crematorium,Operational Equipment,82.48,ALBANY FARM & G MACHINERY LTD
Revenue,Regeneration,Planning services,Development Control,5105690966,19.11.2021,Development Management,Consultants Fees,"2,750.00",ALDER KING LLP
Revenue,Childrens Services,Children's & Education Services,Other Education and Community Budget,5105690163,12.11.2021,Home to College Post 16 Transport,Taxis - Contract Hire,315.00,REDACTED PERSONAL DATA
Revenue,Childrens Services,Children's & Education Services,Other Education and Community Budget,5105690450,17.11.2021,Home to School Mainstream Transport,Taxis - Contract Hire,"1,520.00",REDACTED PERSONAL DATA
Revenue,Childrens Services,Children's & Education Services,Other Education and Community Budget,5105691588,26.11.2021,Home to School Mainstream Transport,Taxis - Contract Hire,800.00,REDACTED PERSONAL DATA
Revenue,Resources,Adult Social Care,Physical Support (to be reallocated),5105690507,17.11.2021,Blue Badge Admin Team Shared Services,Printing Costs,871.67,ALLIED PUBLICITY SCVE (MANCHESTER)
Revenue,Neighbourhoods,Cultural and Related Services,Culture and Heritage,5105689360,03.11.2021,Dinosaur Isle Museum (Sandown Geology),Stock Purchases,84.00,ALLSORTED LTD
Revenue,Resources,Highways and Transport Services,Public Transport,5105690372,17.11.2021,Transport Fleet Administration,Vehicle Fuel Costs,"10,610.37",ALLSTAR BUSINESS SOLUTIONS LTD
Revenue,Childrens Services,Children's & Education Services,Other Education and Community Budget,5105692086,29.11.2021,Home to School SEN Transport (LA),Taxis - Contract Hire,-800.00,ALPHA (IOW) LTD
Revenue,Childrens Services,Children's & Education Services,Other Education and Community Budget,5105690211,12.11.2021,Home to School SEN Transport (LA),Taxis - Contract Hire,660.00,ALPHA (IOW) LTD
Revenue,Childrens Services,Children's & Education Services,Other Education and Community Budget,5105690211,12.11.2021,Home to School SEN Transport (LA),Taxis - Contract Hire,440.00,ALPHA (IOW) LTD
Revenue,Childrens Services,Children's & Education Services,Other Education and Community Budget,5105690211,12.11.2021,Home to School SEN Transport (LA),Taxis - Contract Hire,550.00,ALPHA (IOW) LTD
Revenue,Childrens Services,Children's & Education Services,Other Education and Community Budget,5105690211,12.11.2021,Home to School SEN Transport (LA),Taxis - Contract Hire,550.00,ALPHA (IOW) LTD
Revenue,Childrens Services,Children's & Education Services,Other Education and Community Budget,5105690211,12.11.2021,Home to School SEN Transport (LA),Taxis - Contract Hire,"1,694.00",ALPHA (IOW) LTD
Revenue,Childrens Services,Children's & Education Services,Other Education and Community Budget,5105690211,12.11.2021,Home to School SEN Transport (LA),Taxis - Contract Hire,"1,320.00",ALPHA (IOW) LTD
Revenue,Childrens Services,Children's & Education Services,Other Education and Community Budget,5105690211,12.11.2021,Home to School SEN Transport (LA),Taxis - Contract Hire,"1,540.00",ALPHA (IOW) LTD
Revenue,Childrens Services,Children's & Education Services,Other Education and Community Budget,5105690211,12.11.2021,Home to School SEN Transport (LA),Taxis - Contract Hire,550.00,ALPHA (IOW) LTD
Revenue,Childrens Services,Children's & Education Services,Other Education and Community Budget,5105690211,12.11.2021,Home to School SEN Transport (LA),Taxis - Contract Hire,"2,200.00",ALPHA (IOW) LTD
Revenue,Childrens Services,Children's & Education Services,Other Education and Community Budget,5105690211,12.11.2021,Home to School SEN Transport (LA),Taxis - Contract Hire,605.00,ALPHA (IOW) LTD
Revenue,Childrens Services,Children's & Education Services,Other Education and Community Budget,5105690211,12.11.2021,Home to School SEN Transport (LA),Taxis - Contract Hire,800.00,ALPHA (IOW) LTD
Revenue,Childrens Services,Children's & Education Services,Other Education and Community Budget,5105690211,12.11.2021,Home to College Post 16 Transport,Taxis - Contract Hire,540.00,ALPHA (IOW) LTD
Revenue,Childrens Services,Children's & Education Services,Other Education and Community Budget,5105690211,12.11.2021,Home to College Post 16 Transport,Taxis - Contract Hire,"1,200.00",ALPHA (IOW) LTD
Revenue,Childrens Services,Children's & Education Services,Other Education and Community Budget,5105690211,12.11.2021,Home to College Post 16 Transport,Taxis - Contract Hire,440.00,ALPHA (IOW) LTD
Revenue,Childrens Services,Children's & Education Services,Other Education and Community Budget,5105690211,12.11.2021,Home to College Post 16 Transport,Taxis - Contract Hire,910.00,ALPHA (IOW) LTD
Revenue,Childrens Services,Children's & Education Services,Other Education and Community Budget,5105690211,12.11.2021,Home to College Post 16 Transport,Taxis - Contract Hire,800.00,ALPHA (IOW) LTD
Revenue,Childrens Services,Children's & Education Services,Other Education and Community Budget,5105690211,12.11.2021,Home to College Post 16 Transport,Taxis - Contract Hire,180.00,ALPHA (IOW) LTD
Revenue,Childrens Services,Children's & Education Services,Children Looked After,5105690222,12.11.2021,Support for Looked After Children,Transport of Clients,120.00,ALPHA (IOW) LTD
Revenue,Childrens Services,Children's & Education Services,Children Looked After,5400003129,29.11.2021,Support for Looked After Children,Transport of Clients,31.60,ALPHA (IOW) LTD
Revenue,Childrens Services,Children's & Education Services,Other Education and Community Budget,5105690211,12.11.2021,Home to School Mainstream Transport,Taxis - Contract Hire,"1,144.00",ALPHA (IOW) LTD
Revenue,Childrens Services,Children's & Education Services,Other Education and Community Budget,5105690211,12.11.2021,Home to School Mainstream Transport,Taxis - Contract Hire,550.00,ALPHA (IOW) LTD
Revenue,Childrens Services,Children's & Education Services,Other Education and Community Budget,5105690211,12.11.2021,Home to School Mainstream Transport,Taxis - Contract Hire,"2,640.00",ALPHA (IOW) LTD
Revenue,Childrens Services,Children's & Education Services,Other Education and Community Budget,5105690211,12.11.2021,Home to School Mainstream Transport,Taxis - Contract Hire,770.00,ALPHA (IOW) LTD
Revenue,Childrens Services,Children's & Education Services,Other Education and Community Budget,5105690211,12.11.2021,Home to School Mainstream Transport,Taxis - Contract Hire,550.00,ALPHA (IOW) LTD
Revenue,Childrens Services,Children's & Education Services,Other Education and Community Budget,5105690211,12.11.2021,Home to School Mainstream Transport,Taxis - Contract Hire,"1,210.00",ALPHA (IOW) LTD
Revenue,Childrens Services,Children's & Education Services,Other Education and Community Budget,5105690211,12.11.2021,Home to School Mainstream Transport,Taxis - Contract Hire,660.00,ALPHA (IOW) LTD
Revenue,Childrens Services,Children's & Education Services,Other Education and Community Budget,5105690211,12.11.2021,Home to School Mainstream Transport,Taxis - Contract Hire,990.00,ALPHA (IOW) LTD
Revenue,Adult Services,Housing Services,Homelessness,5105691795,26.11.2021,Homelessness Support,Transport of Clients,29.00,ALPHA (IOW) LTD
Revenue,Adult Services,Adult Social Care,Learning Disability Suppt-adults (18-64),5105691102,24.11.2021,Learning Disability Residential 18-64,Charges from Independent Providers,"3,896.76",ALPHAGRANGE LTD
Revenue,Adult Services,Central Services,Central Services to the Public,5400003118,29.11.2021,AS Covid-19 (Housing),Accommodation Costs - Bed & Breakfast,175.00,"VICTORIA LODGE HOTEL, SHANKLIN"
Revenue,Adult Services,Central Services,Central Services to the Public,5400003112,29.11.2021,AS Covid-19 (Housing),Accommodation Costs - Bed & Breakfast,175.00,"VICTORIA LODGE HOTEL, SHANKLIN"
Revenue,Adult Services,Central Services,Central Services to the Public,5400003112,29.11.2021,AS Covid-19 (Housing),Accommodation Costs - Bed & Breakfast,175.00,"VICTORIA LODGE HOTEL, SHANKLIN"
Revenue,Adult Services,Central Services,Central Services to the Public,5400003112,29.11.2021,AS Covid-19 (Housing),Accommodation Costs - Bed & Breakfast,175.00,"VICTORIA LODGE HOTEL, SHANKLIN"
Revenue,Adult Services,Central Services,Central Services to the Public,5400003112,29.11.2021,AS Covid-19 (Housing),Accommodation Costs - Bed & Breakfast,175.00,"VICTORIA LODGE HOTEL, SHANKLIN"
Capital,Resources,Capital,Capital,5105682953,12.11.2021,Management of Asbestos,Payment to Contractors - Capital,"6,209.00",AMBER HEATING LIMITED
Revenue,Childrens Services,Children's & Education Services,Children Looked After,5105689525,05.11.2021,In-house Fostering,Boarding Out Allowances,167.00,REDACTED PERSONAL DATA
Revenue,Childrens Services,Children's & Education Services,Children Looked After,5105690832,19.11.2021,In-house Fostering,Boarding Out Allowances,167.00,REDACTED PERSONAL DATA
Revenue,Childrens Services,Children's & Education Services,Children Looked After,5105690063,12.11.2021,In-house Fostering,Boarding Out Allowances,167.00,REDACTED PERSONAL DATA
Revenue,Childrens Services,Children's & Education Services,Children Looked After,5105691472,26.11.2021,In-house Fostering,Boarding Out Allowances,167.00,REDACTED PERSONAL DATA
Revenue,Resources,Central Services,Support Services,5105692014,29.11.2021,Litigation Costs,Legal Fees - Other Parties,400.00,COLLEGE CHAMBERS BARRISTERS
Revenue,Resources,Central Services,Support Services,5105691226,26.11.2021,Litigation Costs,Legal Fees - Other Parties,200.00,COLLEGE CHAMBERS BARRISTERS
Revenue,Resources,Central Services,Support Services,5105691227,24.11.2021,Litigation Costs,Legal Fees - Other Parties,400.00,COLLEGE CHAMBERS BARRISTERS
Revenue,Resources,Central Services,Support Services,5105691233,24.11.2021,Litigation Costs,Legal Fees - Other Parties,600.00,COLLEGE CHAMBERS BARRISTERS
Revenue,Adult Services,Adult Social Care,Physical Support - older people (65+),5105691103,24.11.2021,Physical Support Residential 65+,Charges from Independent Providers,"2,054.64",ANCONA CARE HOME
Revenue,Adult Services,Adult Social Care,Physical Support - older people (65+),5105691103,24.11.2021,Physical Support Residential 65+,Charges from Independent Providers,"2,151.52",ANCONA CARE HOME
Revenue,Adult Services,Adult Social Care,Physical Support - older people (65+),5105691103,24.11.2021,Physical Support Residential 65+,Charges from Independent Providers,"2,529.52",ANCONA CARE HOME
Revenue,Assistant Chief Executive,Central Services,Support Services,5105690695,19.11.2021,Print Unit,Stationery,130.40,ANTALIS MCNAUGHTON
Revenue,Assistant Chief Executive,Central Services,Support Services,5105690695,19.11.2021,Print Unit,Stationery,67.30,ANTALIS MCNAUGHTON
Revenue,Assistant Chief Executive,Central Services,Support Services,5105690358,17.11.2021,Print Unit,Stationery,114.10,ANTALIS MCNAUGHTON
Revenue,Assistant Chief Executive,Central Services,Support Services,5105690358,17.11.2021,Print Unit,Stationery,85.90,ANTALIS MCNAUGHTON
Revenue,Adult Services,Adult Social Care,Assistive Equipment & Technology,5105691239,24.11.2021,Wightcare,Operational Equipment,240.00,ANYWHERE CARE LIMITED
Revenue,Neighbourhoods,Cultural and Related Services,Recreation and Sport,5105690328,17.11.2021,Medina Leisure Centre,Stock Purchases,5.00,APG SPORTS GROUP LTD
Revenue,Neighbourhoods,Cultural and Related Services,Recreation and Sport,5105690329,17.11.2021,Medina Leisure Centre,Stock Purchases,78.45,APG SPORTS GROUP LTD
Revenue,Neighbourhoods,Cultural and Related Services,Recreation and Sport,5105690329,17.11.2021,Medina Leisure Centre,Stock Purchases,86.91,APG SPORTS GROUP LTD
Revenue,Neighbourhoods,Cultural and Related Services,Recreation and Sport,5105689853,10.11.2021,Medina Leisure Centre,Stock Purchases,10.00,APG SPORTS GROUP LTD
Revenue,Neighbourhoods,Cultural and Related Services,Recreation and Sport,5105689856,10.11.2021,Medina Leisure Centre,Stock Purchases,15.00,APG SPORTS GROUP LTD
Revenue,Neighbourhoods,Cultural and Related Services,Recreation and Sport,5105689878,10.11.2021,Medina Leisure Centre,Stock Purchases,61.50,APG SPORTS GROUP LTD
Revenue,Neighbourhoods,Cultural and Related Services,Recreation and Sport,5105689879,10.11.2021,Medina Leisure Centre,Stock Purchases,88.80,APG SPORTS GROUP LTD
Revenue,Neighbourhoods,Cultural and Related Services,Recreation and Sport,5105691635,26.11.2021,Medina Leisure Centre,Stock Purchases,319.62,APG SPORTS GROUP LTD
Revenue,Neighbourhoods,Cultural and Related Services,Recreation and Sport,5105689681,10.11.2021,The Heights,Stock Purchases,160.00,APG SPORTS GROUP LTD
Revenue,Neighbourhoods,Cultural and Related Services,Recreation and Sport,5105689676,10.11.2021,The Heights,Stock Purchases,260.00,APG SPORTS GROUP LTD
Revenue,Neighbourhoods,Cultural and Related Services,Recreation and Sport,5105689676,10.11.2021,The Heights,Stock Purchases,75.50,APG SPORTS GROUP LTD
Revenue,Neighbourhoods,Cultural and Related Services,Recreation and Sport,5105689677,10.11.2021,The Heights,Stock Purchases,604.18,APG SPORTS GROUP LTD
Revenue,Neighbourhoods,Highways and Transport Services,"Airports, Harbours & Toll Facilities",5105691650,26.11.2021,Ferry Operation,Clothing & Laundry,34.20,ARCO LTD
Revenue,Neighbourhoods,Highways and Transport Services,"Airports, Harbours & Toll Facilities",5105692047,29.11.2021,Ferry Operation,Clothing & Laundry,22.39,ARCO LTD
Revenue,Neighbourhoods,Highways and Transport Services,"Airports, Harbours & Toll Facilities",5105690467,17.11.2021,Ferry Operation,Clothing & Laundry,22.38,ARCO LTD
Revenue,Neighbourhoods,Highways and Transport Services,"Airports, Harbours & Toll Facilities",5105690467,17.11.2021,Ferry Operation,Clothing & Laundry,78.21,ARCO LTD
Revenue,Regeneration,Central Services,Central Services to the Public,5105691578,26.11.2021,Welcome Back Fund,Clothing & Laundry,27.66,ARCO LTD
Revenue,Resources,Central Services,Support Services,5105689659,05.11.2021,County Hall Central Mail Room,Sundry Office Expenses,34.10,ARCO LTD
Revenue,Resources,Central Services,Support Services,5105689659,05.11.2021,County Hall Central Mail Room,Sundry Office Expenses,3.60,ARCO LTD
Revenue,Neighbourhoods,Environmental & Regulatory Services,Service Management and Support Services,5105689395,10.11.2021,Environment officers,Clothing & Laundry,27.34,ARCO LTD
Revenue,Neighbourhoods,Environmental & Regulatory Services,Service Management and Support Services,5105690210,12.11.2021,Environment officers,Clothing & Laundry,31.11,ARCO LTD
Revenue,Neighbourhoods,Environmental & Regulatory Services,Service Management and Support Services,5105691287,24.11.2021,Environment officers,Clothing & Laundry,27.21,ARCO LTD
Revenue,Regeneration,Planning services,Building Control,5105692043,29.11.2021,Building Control chargeable,Clothing & Laundry,69.52,ARCO LTD
Revenue,Neighbourhoods,Environmental & Regulatory Services,Regulatory Services,5105689657,05.11.2021,Environmental Health - Business Regulation Protection,Operational Equipment,12.86,ARCO LTD
Revenue,Neighbourhoods,Environmental & Regulatory Services,Regulatory Services,5105689657,05.11.2021,Environmental Health - Business Regulation Protection,Operational Equipment,12.86,ARCO LTD
Revenue,Neighbourhoods,Environmental & Regulatory Services,Regulatory Services,5105689657,05.11.2021,Environmental Health - Business Regulation Protection,Operational Equipment,12.86,ARCO LTD
Revenue,Neighbourhoods,Highways and Transport Services,Parking Services,5105689658,10.11.2021,Parking Attendants,Clothing & Laundry,22.36,ARCO LTD
Revenue,Neighbourhoods,Highways and Transport Services,Parking Services,5105689392,24.11.2021,Parking Attendants,Clothing & Laundry,17.36,ARCO LTD
Revenue,Neighbourhoods,Highways and Transport Services,Parking Services,5105689393,03.11.2021,Parking Attendants,Clothing & Laundry,16.92,ARCO LTD
Revenue,Neighbourhoods,Highways and Transport Services,Parking Services,5105689392,24.11.2021,Parking Attendants,Clothing & Laundry,20.60,ARCO LTD
Revenue,Neighbourhoods,Highways and Transport Services,Parking Services,5105689392,24.11.2021,Parking Attendants,Clothing & Laundry,22.36,ARCO LTD
Revenue,Neighbourhoods,Highways and Transport Services,Parking Services,5105689392,24.11.2021,Parking Attendants,Clothing & Laundry,22.36,ARCO LTD
Revenue,Neighbourhoods,Highways and Transport Services,Parking Services,5105690659,19.11.2021,Parking Attendants,Clothing & Laundry,-22.36,ARCO LTD
Revenue,Neighbourhoods,Highways and Transport Services,Parking Services,5105690920,19.11.2021,Parking Attendants,Clothing & Laundry,17.36,ARCO LTD
Revenue,Neighbourhoods,Highways and Transport Services,Parking Services,5105690954,19.11.2021,Parking Attendants,Clothing & Laundry,22.36,ARCO LTD
Revenue,Neighbourhoods,Highways and Transport Services,Parking Services,5105690955,24.11.2021,Parking Attendants,Clothing & Laundry,-22.36,ARCO LTD
Capital,Place,Capital,Capital,5105691609,26.11.2021,Parks and Gardens Capital,External Design and Supervision Fees,"3,850.00",ARID DESIGN LTD
Capital,Place,Capital,Capital,5105691612,26.11.2021,Parks and Gardens Capital,External Design and Supervision Fees,"1,910.00",ARID DESIGN LTD
Capital,Place,Capital,Capital,5105691613,26.11.2021,Parks and Gardens Capital,External Design and Supervision Fees,"6,800.00",ARID DESIGN LTD
Revenue,Adult Services,Adult Social Care,Learning Disab Supp (to be reallocated),5105689231,05.11.2021,Saxonbury,Minor Works,448.00,ARJO UK LTD
Revenue,Adult Services,Adult Social Care,Social Support - Support for Carer,5105690560,17.11.2021,Westminster House,Property Services - Day to day Maintenance,146.03,ARJO UK LTD
Revenue,Adult Services,Adult Social Care,Central Codes (to be reallocated),5105690662,24.11.2021,Adelaide Resource Centre,Property Services - Planned Maintenance,247.00,ARJO UK LTD
Revenue,Childrens Services,Children's & Education Services,Family Support Services,5105689951,12.11.2021,Holiday Activities & Food Programme,Payments to Voluntary and Other Associations,"2,930.00",ASPIRE RYDE
Revenue,Childrens Services,Children's & Education Services,Family Support Services,5105692036,29.11.2021,Holiday Activities & Food Programme,Payments to Voluntary and Other Associations,"7,744.00",ASPIRE RYDE
Revenue,Childrens Services,Children's & Education Services,Special Schools & Alternative Provision,5105691308,24.11.2021,Island Learning Centre,Schools Examination Fees,697.60,ASSESSMENT & QUALIFICATION ALLIANCE
Revenue,Resources,Central Services,Central Services to the Public,5105689838,10.11.2021,Electoral Registration Office,Professional Subscriptions,47.50,ASSOCIATION OF ELECTORAL ADMINISTRATORS
Revenue,Resources,Central Services,Support Services,5105690702,19.11.2021,Specialist Cross-Council Training,Training,625.00,ASSOCIATION OF ELECTORAL ADMINISTRATORS
Revenue,Adult Services,Adult Social Care,Mental Health Support - adults (18-64),5105691222,24.11.2021,Mental Health Residential 18-64,Charges from Independent Providers,"41,601.98",ASSURE HEALTHCARE GROUP
Revenue,Neighbourhoods,Environmental & Regulatory Services,"Cemetery, Cremation & Mortuary Services",5105690682,17.11.2021,Crematorium,Computer Maintenance,"1,187.00",ASSURED SYSTEMS UK LTD
Revenue,Adult Services,Adult Social Care,Social Support - Social Isolation/Other,5105691085,24.11.2021,Social Isolation/Other Residential,Charges from Independent Providers,"2,529.52",AUTUMN HOUSE CARE LTD
Revenue,Adult Services,Adult Social Care,Support - Memory /Cognition-older people (65+),5105691085,24.11.2021,Memory & Cognition Residential 65+,Charges from Independent Providers,"2,529.52",AUTUMN HOUSE CARE LTD
Revenue,Adult Services,Adult Social Care,Support - Memory /Cognition-older people (65+),5105691085,24.11.2021,Memory & Cognition Residential 65+,Charges from Independent Providers,"2,529.52",AUTUMN HOUSE CARE LTD
Revenue,Adult Services,Adult Social Care,Support - Memory /Cognition-older people (65+),5105691085,24.11.2021,Memory & Cognition Residential 65+,Charges from Independent Providers,"2,151.52",AUTUMN HOUSE CARE LTD
Revenue,Adult Services,Adult Social Care,Support - Memory /Cognition-older people (65+),5105691085,24.11.2021,Memory & Cognition Residential 65+,Charges from Independent Providers,"2,529.52",AUTUMN HOUSE CARE LTD
Revenue,Adult Services,Adult Social Care,Support - Memory /Cognition-older people (65+),5105691085,24.11.2021,Memory & Cognition Residential 65+,Charges from Independent Providers,"2,151.52",AUTUMN HOUSE CARE LTD
Revenue,Adult Services,Adult Social Care,Support - Memory /Cognition-older people (65+),5105691085,24.11.2021,Memory & Cognition Residential 65+,Charges from Independent Providers,"2,529.52",AUTUMN HOUSE CARE LTD
Revenue,Adult Services,Adult Social Care,Support - Memory /Cognition-older people (65+),5105691085,24.11.2021,Memory & Cognition Residential 65+,Charges from Independent Providers,"2,529.52",AUTUMN HOUSE CARE LTD
Revenue,Adult Services,Adult Social Care,Support - Memory /Cognition-older people (65+),5105691085,24.11.2021,Memory & Cognition Residential 65+,Charges from Independent Providers,"2,529.52",AUTUMN HOUSE CARE LTD
Revenue,Adult Services,Adult Social Care,Support - Memory /Cognition-older people (65+),5105691085,24.11.2021,Memory & Cognition Residential 65+,Charges from Independent Providers,"2,529.52",AUTUMN HOUSE CARE LTD
Balance Sheet,Adult Services,Balance Sheet,Balance Sheet,5105691085,24.11.2021,REDACTED PERSONAL DATA,Order Settlement to Bal Sht GL,"2,151.52",AUTUMN HOUSE CARE LTD
Revenue,Adult Services,Adult Social Care,Physical Support - older people (65+),5105691085,24.11.2021,Physical Support Residential 65+,Charges from Independent Providers,"2,529.52",AUTUMN HOUSE CARE LTD
Revenue,Adult Services,Adult Social Care,Physical Support - older people (65+),5105691085,24.11.2021,Physical Support Residential 65+,Charges from Independent Providers,"2,529.52",AUTUMN HOUSE CARE LTD
Revenue,Adult Services,Adult Social Care,Physical Support - older people (65+),5105691085,24.11.2021,Physical Support Residential 65+,Charges from Independent Providers,"2,529.52",AUTUMN HOUSE CARE LTD
Revenue,Adult Services,Adult Social Care,Physical Support - older people (65+),5105691085,24.11.2021,Physical Support Residential 65+,Charges from Independent Providers,"2,529.52",AUTUMN HOUSE CARE LTD
Revenue,Adult Services,Adult Social Care,Physical Support - older people (65+),5105691085,24.11.2021,Physical Support Residential 65+,Charges from Independent Providers,"2,529.52",AUTUMN HOUSE CARE LTD
Revenue,Adult Services,Adult Social Care,Physical Support - older people (65+),5105691085,24.11.2021,Physical Support Residential 65+,Charges from Independent Providers,"2,529.52",AUTUMN HOUSE CARE LTD
Revenue,Adult Services,Adult Social Care,Physical Support - older people (65+),5105691085,24.11.2021,Physical Support Residential 65+,Charges from Independent Providers,"2,529.52",AUTUMN HOUSE CARE LTD
Revenue,Adult Services,Adult Social Care,Physical Support - older people (65+),5105691085,24.11.2021,Physical Support Residential 65+,Charges from Independent Providers,"2,529.52",AUTUMN HOUSE CARE LTD
Revenue,Adult Services,Adult Social Care,Physical Support - older people (65+),5105691085,24.11.2021,Physical Support Residential 65+,Charges from Independent Providers,"2,529.52",AUTUMN HOUSE CARE LTD
Revenue,Adult Services,Adult Social Care,Physical Support - older people (65+),5105691085,24.11.2021,Physical Support Residential 65+,Charges from Independent Providers,"2,529.52",AUTUMN HOUSE CARE LTD
Revenue,Adult Services,Adult Social Care,Physical Support - older people (65+),5105691085,24.11.2021,Physical Support Residential 65+,Charges from Independent Providers,"2,529.52",AUTUMN HOUSE CARE LTD
Revenue,Adult Services,Adult Social Care,Physical Support - older people (65+),5105691085,24.11.2021,Physical Support Residential 65+,Charges from Independent Providers,"2,529.52",AUTUMN HOUSE CARE LTD
Revenue,Adult Services,Adult Social Care,Physical Support - older people (65+),5105691085,24.11.2021,Physical Support Residential 65+,Charges from Independent Providers,"2,151.52",AUTUMN HOUSE CARE LTD
Revenue,Regeneration,Planning services,Economic Development,5400003091,29.11.2021,"33 High St, Newport",Rent of Buildings and Rooms,-215.05,REDACTED PERSONAL DATA
Revenue,Regeneration,Planning services,Economic Development,5400003091,29.11.2021,"33 High St, Newport",Rent of Buildings and Rooms,215.05,REDACTED PERSONAL DATA
Revenue,Childrens Services,Children's & Education Services,Safeguarding Children/Young Peoples Svs,5105689914,10.11.2021,Court Work & Consultancy Services,Legal Fees - Other Parties,"1,100.00",AVIOU LAW FIRM
Revenue,Regeneration,Central Services,Support Services,5400003120,29.11.2021,"Metabo (UK) Ltd, Nursling, Southampton",Professional Services,500.00,GVA GRIMLEY LTD
Revenue,Regeneration,Central Services,Support Services,5400003120,29.11.2021,Network Oxford,Professional Services,500.00,GVA GRIMLEY LTD
Revenue,Regeneration,Central Services,Support Services,5400003120,29.11.2021,Olympic Court,Professional Services,500.00,GVA GRIMLEY LTD
Revenue,Regeneration,Central Services,Support Services,5400003120,29.11.2021,Aylesford Access 420,Professional Services,500.00,GVA GRIMLEY LTD
Revenue,Neighbourhoods,Cultural and Related Services,Service Management and Support Services,5105689341,03.11.2021,Duke of Edingburgh Award,Operational Equipment,184.00,AWARD SCHEME LTD
Revenue,Neighbourhoods,Cultural and Related Services,Service Management and Support Services,5105692101,29.11.2021,Duke of Edingburgh Award,Operational Equipment,92.00,AWARD SCHEME LTD
Revenue,Neighbourhoods,Cultural and Related Services,Service Management and Support Services,5105691723,26.11.2021,Duke of Edingburgh Award,Operational Equipment,184.00,AWARD SCHEME LTD
Revenue,Childrens Services,Children's & Education Services,Children Looked After,5105690748,19.11.2021,In-house Fostering,Boarding Out Allowances,528.52,REDACTED PERSONAL DATA
Revenue,Childrens Services,Children's & Education Services,Children Looked After,5105689981,12.11.2021,In-house Fostering,Boarding Out Allowances,528.52,REDACTED PERSONAL DATA
Revenue,Childrens Services,Children's & Education Services,Children Looked After,5105689442,05.11.2021,In-house Fostering,Boarding Out Allowances,528.52,REDACTED PERSONAL DATA
Revenue,Childrens Services,Children's & Education Services,Children Looked After,5105691389,26.11.2021,In-house Fostering,Boarding Out Allowances,528.52,REDACTED PERSONAL DATA
Revenue,Adult Services,Housing Services,Homelessness,5105691039,24.11.2021,Private Rented Sector Leasing Scheme,Accommodation Costs - Leaseholder Payments,866.67,REDACTED PERSONAL DATA
Revenue,Regeneration,Planning services,Economic Development,5105691319,24.11.2021,Rangefinder House (Ascensos),Rent of Buildings and Rooms,"3,346.96",BAE SYSTEMS PROPERTIES LTD
Revenue,Adult Services,Adult Social Care,Commissioning & Service Delivery,5105691158,24.11.2021,CHC Nursing Care,Charges from Independent Providers,"10,447.64",BAGSHOT PARK CARE CENTRE
Revenue,Adult Services,Adult Social Care,Commissioning & Service Delivery,5400003127,29.11.2021,Group Manager Leaning Disability Homes,Stationery,61.80,SUPPLIES TEAM LTD
Revenue,Childrens Services,Children's & Education Services,Children Looked After,5105690716,19.11.2021,Unaccompanied Asylum Seeker Children,Charges from Independent Providers,"3,432.14",BANYA FAMILY PLACEMENT AGENCY LTD
Revenue,Adult Services,Adult Social Care,Physical Support - older people (65+),5105691162,24.11.2021,Physical Support Residential 65+,Charges from Independent Providers,"2,054.64",BARCHESTER HELLENS LTD
Revenue,Childrens Services,Children's & Education Services,Family Support Services,5105691194,24.11.2021,Strengthening Families,Payment to Private Contractors,"8,000.00",BARNARDO'S
Revenue,Childrens Services,Children's & Education Services,Family Support Services,5105690666,17.11.2021,Strengthening Families,Payment to Private Contractors,"8,800.00",BARNARDO'S
Revenue,Childrens Services,Children's & Education Services,Children Looked After,5105687460,24.11.2021,Support for Looked After Children,Support Children,"1,680.00",BARNARDO'S
Revenue,Childrens Services,Children's & Education Services,Children Looked After,5105691264,24.11.2021,Support for Looked After Children,Support Children,"-1,680.00",BARNARDO'S
Revenue,Neighbourhoods,Cultural and Related Services,Recreation and Sport,5105691276,24.11.2021,Medina Leisure Centre,Stock Purchases,36.94,LAKE CLEANING & CATERING SUPPLIES
Revenue,Neighbourhoods,Cultural and Related Services,Recreation and Sport,5105691276,24.11.2021,Medina Leisure Centre,Stock Purchases,15.36,LAKE CLEANING & CATERING SUPPLIES
Revenue,Neighbourhoods,Cultural and Related Services,Recreation and Sport,5105689599,05.11.2021,Medina Leisure Centre,Consumable Cleaning Materials,88.38,LAKE CLEANING & CATERING SUPPLIES
Revenue,Neighbourhoods,Cultural and Related Services,Recreation and Sport,5105689862,10.11.2021,Medina Leisure Centre,Consumable Cleaning Materials,365.45,LAKE CLEANING & CATERING SUPPLIES
Revenue,Neighbourhoods,Highways and Transport Services,"Airports, Harbours & Toll Facilities",5105691653,26.11.2021,Ryde Harbour,Consumable Cleaning Materials,19.84,LAKE CLEANING & CATERING SUPPLIES
Revenue,Adult Services,Adult Social Care,Learning Disab Supp (to be reallocated),5105691274,26.11.2021,Plean Dene,Consumable Cleaning Materials,18.98,LAKE CLEANING & CATERING SUPPLIES
Revenue,Childrens Services,Children's & Education Services,Children Looked After,5105689841,10.11.2021,Beaulieu House,General Materials,79.90,LAKE CLEANING & CATERING SUPPLIES
Revenue,Childrens Services,Children's & Education Services,Children Looked After,5105689924,10.11.2021,Beaulieu House,General Materials,49.53,LAKE CLEANING & CATERING SUPPLIES
Revenue,Childrens Services,Children's & Education Services,Children Looked After,5105689330,03.11.2021,Beaulieu House,General Materials,288.77,LAKE CLEANING & CATERING SUPPLIES
Revenue,Childrens Services,Children's & Education Services,Children Looked After,5105691569,26.11.2021,Beaulieu House,General Materials,102.05,LAKE CLEANING & CATERING SUPPLIES
Revenue,Childrens Services,Children's & Education Services,Children Looked After,5105691883,29.11.2021,Beaulieu House,General Materials,294.70,LAKE CLEANING & CATERING SUPPLIES
Revenue,Neighbourhoods,Cultural and Related Services,Recreation and Sport,5105691842,26.11.2021,Westridge Squash Courts,Consumable Cleaning Materials,92.61,LAKE CLEANING & CATERING SUPPLIES
Revenue,Neighbourhoods,Cultural and Related Services,Recreation and Sport,5105691835,26.11.2021,The Heights,Consumable Cleaning Materials,137.36,LAKE CLEANING & CATERING SUPPLIES
Revenue,Neighbourhoods,Cultural and Related Services,Recreation and Sport,5105691841,26.11.2021,The Heights,Consumable Cleaning Materials,3.80,LAKE CLEANING & CATERING SUPPLIES
Revenue,Neighbourhoods,Highways and Transport Services,Parking Services,5105689410,05.11.2021,Car Park cash collection,Stationery,2.86,BATES OFFICE SERVICES LIMITED
Revenue,Resources,Central Services,Support Services,5105689410,05.11.2021,Creditor Payments Shared Service Centre,Stationery,43.70,BATES OFFICE SERVICES LIMITED
Revenue,Resources,Central Services,Corporate and Democratic Core,5105689714,19.11.2021,Democratic Representation & Management,Stationery,17.48,BATES OFFICE SERVICES LIMITED
Revenue,Resources,Central Services,Corporate and Democratic Core,5105689410,05.11.2021,Democratic Representation & Management,Stationery,3.50,BATES OFFICE SERVICES LIMITED
Revenue,Regeneration,Planning services,Economic Development,5105689410,05.11.2021,Director of Regeneration,Stationery,7.15,BATES OFFICE SERVICES LIMITED
Revenue,Adult Services,Adult Social Care,Central Codes (to be reallocated),5105691767,26.11.2021,Gouldings Resource Centre,Stationery,1.80,BATES OFFICE SERVICES LIMITED
Revenue,Adult Services,Adult Social Care,Central Codes (to be reallocated),5105691767,26.11.2021,Gouldings Resource Centre,Stationery,2.50,BATES OFFICE SERVICES LIMITED
Revenue,Childrens Services,Children's & Education Services,Support Services,5105689609,05.11.2021,Learning & Development Running Costs,Stationery,1.56,BATES OFFICE SERVICES LIMITED
Revenue,Childrens Services,Children's & Education Services,Support Services,5105689609,05.11.2021,Learning & Development Running Costs,Stationery,7.85,BATES OFFICE SERVICES LIMITED
Revenue,Childrens Services,Children's & Education Services,Support Services,5105689609,05.11.2021,Learning & Development Running Costs,Stationery,1.55,BATES OFFICE SERVICES LIMITED
Revenue,Neighbourhoods,Cultural and Related Services,Service Management and Support Services,5105691781,26.11.2021,Leisure Management & Admin,Stationery,23.57,BATES OFFICE SERVICES LIMITED
Revenue,Neighbourhoods,Cultural and Related Services,Service Management and Support Services,5105689410,05.11.2021,Leisure Management & Admin,Stationery,8.74,BATES OFFICE SERVICES LIMITED
Revenue,Neighbourhoods,Cultural and Related Services,Service Management and Support Services,5105691908,29.11.2021,Leisure Management & Admin,Stationery,17.48,BATES OFFICE SERVICES LIMITED
Revenue,Neighbourhoods,Cultural and Related Services,Recreation and Sport,5105691774,26.11.2021,Medina Leisure Centre,Stationery,7.15,BATES OFFICE SERVICES LIMITED
Revenue,Neighbourhoods,Cultural and Related Services,Recreation and Sport,5105691774,26.11.2021,Medina Leisure Centre,Stationery,8.74,BATES OFFICE SERVICES LIMITED
Revenue,Neighbourhoods,Cultural and Related Services,Recreation and Sport,5105691774,26.11.2021,Medina Leisure Centre,Stationery,1.98,BATES OFFICE SERVICES LIMITED
Revenue,Neighbourhoods,Cultural and Related Services,Recreation and Sport,5105691774,26.11.2021,Medina Leisure Centre,Stationery,3.75,BATES OFFICE SERVICES LIMITED
Revenue,Neighbourhoods,Cultural and Related Services,Recreation and Sport,5105691774,26.11.2021,Medina Leisure Centre,Stationery,16.39,BATES OFFICE SERVICES LIMITED
Revenue,Neighbourhoods,Cultural and Related Services,Recreation and Sport,5105691774,26.11.2021,Medina Leisure Centre,Stationery,3.94,BATES OFFICE SERVICES LIMITED
Revenue,Neighbourhoods,Cultural and Related Services,Recreation and Sport,5105691774,26.11.2021,Medina Leisure Centre,Stationery,7.02,BATES OFFICE SERVICES LIMITED
Revenue,Resources,Central Services,Support Services,5105689410,05.11.2021,County Hall Central Mail Room,Stationery,0.19,BATES OFFICE SERVICES LIMITED
Revenue,Resources,Central Services,Support Services,5105689410,05.11.2021,County Hall Central Mail Room,Stationery,9.42,BATES OFFICE SERVICES LIMITED
Revenue,Resources,Central Services,Support Services,5105689410,05.11.2021,County Hall Central Mail Room,Stationery,2.30,BATES OFFICE SERVICES LIMITED
Revenue,Resources,Central Services,Support Services,5105689410,05.11.2021,County Hall Central Mail Room,Stationery,12.52,BATES OFFICE SERVICES LIMITED
Revenue,Adult Services,Adult Social Care,Assistive Equipment & Technology,5105691914,29.11.2021,BCF Community Equipment Store,Stationery,9.93,BATES OFFICE SERVICES LIMITED
Revenue,Adult Services,Adult Social Care,Assistive Equipment & Technology,5105691914,29.11.2021,BCF Community Equipment Store,Stationery,3.12,BATES OFFICE SERVICES LIMITED
Revenue,Childrens Services,Children's & Education Services,Safeguarding Children/Young Peoples Svs,5105691781,26.11.2021,Children's office costs,Stationery,3.31,BATES OFFICE SERVICES LIMITED
Revenue,Childrens Services,Children's & Education Services,Safeguarding Children/Young Peoples Svs,5105691781,26.11.2021,Children's office costs,Stationery,8.08,BATES OFFICE SERVICES LIMITED
Revenue,Childrens Services,Children's & Education Services,Safeguarding Children/Young Peoples Svs,5105691781,26.11.2021,Children's office costs,Stationery,17.48,BATES OFFICE SERVICES LIMITED
Revenue,Childrens Services,Children's & Education Services,Safeguarding Children/Young Peoples Svs,5105691781,26.11.2021,Children's office costs,Stationery,3.50,BATES OFFICE SERVICES LIMITED
Revenue,Childrens Services,Children's & Education Services,Safeguarding Children/Young Peoples Svs,5105689714,19.11.2021,Permanence Team,Stationery,17.48,BATES OFFICE SERVICES LIMITED
Revenue,Childrens Services,Children's & Education Services,Children Looked After,5105691765,26.11.2021,Beaulieu House,Stationery,1.29,BATES OFFICE SERVICES LIMITED
Revenue,Childrens Services,Children's & Education Services,Children Looked After,5105691765,26.11.2021,Beaulieu House,Stationery,2.34,BATES OFFICE SERVICES LIMITED
Revenue,Childrens Services,Children's & Education Services,Children Looked After,5105691765,26.11.2021,Beaulieu House,Stationery,2.27,BATES OFFICE SERVICES LIMITED
Revenue,Neighbourhoods,Environmental & Regulatory Services,Service Management and Support Services,5105689714,19.11.2021,Environment officers,Stationery,7.36,BATES OFFICE SERVICES LIMITED
Revenue,Chief Executive,Central Services,Central Services to the Public,5105689714,19.11.2021,Emergency Management,Stationery,10.99,BATES OFFICE SERVICES LIMITED
Revenue,Chief Executive,Central Services,Central Services to the Public,5105689714,19.11.2021,Emergency Management,Stationery,18.78,BATES OFFICE SERVICES LIMITED
Revenue,Adult Services,Adult Social Care,Central Codes (to be reallocated),5105691925,29.11.2021,Community Reablement,Stationery,22.11,BATES OFFICE SERVICES LIMITED
Revenue,Resources,Central Services,Support Services,5105689714,19.11.2021,Legal Services Section,Stationery,17.48,BATES OFFICE SERVICES LIMITED
Revenue,Resources,Central Services,Support Services,5105691908,29.11.2021,Legal Services Section,Stationery,17.48,BATES OFFICE SERVICES LIMITED
Revenue,Neighbourhoods,Central Services,Central Services to the Public,5105691199,24.11.2021,"Registration Of Births,Deaths, Marriages",Stationery,1.77,BATES OFFICE SERVICES LIMITED
Revenue,Neighbourhoods,Central Services,Central Services to the Public,5105689409,03.11.2021,"Registration Of Births,Deaths, Marriages",Stationery,1.15,BATES OFFICE SERVICES LIMITED
Revenue,Neighbourhoods,Central Services,Central Services to the Public,5105689409,03.11.2021,"Registration Of Births,Deaths, Marriages",Stationery,6.25,BATES OFFICE SERVICES LIMITED
Revenue,Neighbourhoods,Central Services,Central Services to the Public,5105689409,03.11.2021,"Registration Of Births,Deaths, Marriages",Stationery,2.15,BATES OFFICE SERVICES LIMITED
Revenue,Neighbourhoods,Central Services,Central Services to the Public,5105689409,03.11.2021,"Registration Of Births,Deaths, Marriages",Stationery,2.20,BATES OFFICE SERVICES LIMITED
Revenue,Neighbourhoods,Central Services,Central Services to the Public,5105689409,03.11.2021,"Registration Of Births,Deaths, Marriages",Stationery,6.79,BATES OFFICE SERVICES LIMITED
Revenue,Adult Services,Adult Social Care,Commissioning & Service Delivery,5105691784,26.11.2021,Group Manager Leaning Disability Homes,Stationery,8.74,BATES OFFICE SERVICES LIMITED
Revenue,Adult Services,Adult Social Care,Commissioning & Service Delivery,5105691784,26.11.2021,Group Manager Leaning Disability Homes,Stationery,4.73,BATES OFFICE SERVICES LIMITED
Revenue,Adult Services,Adult Social Care,Commissioning & Service Delivery,5105691784,26.11.2021,Group Manager Leaning Disability Homes,Stationery,3.71,BATES OFFICE SERVICES LIMITED
Revenue,Adult Services,Adult Social Care,Commissioning & Service Delivery,5105691784,26.11.2021,Group Manager Leaning Disability Homes,Stationery,1.84,BATES OFFICE SERVICES LIMITED
Revenue,Adult Services,Adult Social Care,Commissioning & Service Delivery,5105691784,26.11.2021,Group Manager Leaning Disability Homes,Stationery,0.87,BATES OFFICE SERVICES LIMITED
Revenue,Adult Services,Adult Social Care,Commissioning & Service Delivery,5105691784,26.11.2021,Group Manager Leaning Disability Homes,Stationery,2.00,BATES OFFICE SERVICES LIMITED
Revenue,Adult Services,Adult Social Care,Commissioning & Service Delivery,5105691200,24.11.2021,Group Manager Leaning Disability Homes,Stationery,17.48,BATES OFFICE SERVICES LIMITED
Revenue,Adult Services,Adult Social Care,Commissioning & Service Delivery,5105691200,24.11.2021,Group Manager Leaning Disability Homes,Stationery,22.00,BATES OFFICE SERVICES LIMITED
Revenue,Adult Services,Adult Social Care,Commissioning & Service Delivery,5105691200,24.11.2021,Group Manager Leaning Disability Homes,Stationery,1.00,BATES OFFICE SERVICES LIMITED
Revenue,Adult Services,Adult Social Care,Commissioning & Service Delivery,5105691200,24.11.2021,Group Manager Leaning Disability Homes,Stationery,0.60,BATES OFFICE SERVICES LIMITED
Revenue,Adult Services,Adult Social Care,Commissioning & Service Delivery,5105691200,24.11.2021,Group Manager Leaning Disability Homes,Stationery,0.22,BATES OFFICE SERVICES LIMITED
Revenue,Adult Services,Adult Social Care,Commissioning & Service Delivery,5105689612,05.11.2021,Group Manager Leaning Disability Homes,Stationery,2.34,BATES OFFICE SERVICES LIMITED
Revenue,Adult Services,Adult Social Care,Commissioning & Service Delivery,5105689624,05.11.2021,Group Manager Leaning Disability Homes,Stationery,-2.34,BATES OFFICE SERVICES LIMITED
Revenue,Adult Services,Adult Social Care,Commissioning & Service Delivery,5105688561,24.11.2021,Group Manager Leaning Disability Homes,Stationery,7.00,BATES OFFICE SERVICES LIMITED
Revenue,Adult Services,Adult Social Care,Commissioning & Service Delivery,5105688561,24.11.2021,Group Manager Leaning Disability Homes,Stationery,35.80,BATES OFFICE SERVICES LIMITED
Revenue,Adult Services,Adult Social Care,Commissioning & Service Delivery,5105689412,03.11.2021,Group Manager Leaning Disability Homes,Stationery,8.74,BATES OFFICE SERVICES LIMITED
Revenue,Adult Services,Adult Social Care,Commissioning & Service Delivery,5105689412,03.11.2021,Group Manager Leaning Disability Homes,Stationery,3.90,BATES OFFICE SERVICES LIMITED
Revenue,Adult Services,Adult Social Care,Commissioning & Service Delivery,5105692365,29.11.2021,Group Manager Leaning Disability Homes,Stationery,-8.74,BATES OFFICE SERVICES LIMITED
Revenue,Adult Services,Adult Social Care,Commissioning & Service Delivery,5105692365,29.11.2021,Group Manager Leaning Disability Homes,Stationery,-4.73,BATES OFFICE SERVICES LIMITED
Revenue,Adult Services,Adult Social Care,Commissioning & Service Delivery,5105692365,29.11.2021,Group Manager Leaning Disability Homes,Stationery,-3.71,BATES OFFICE SERVICES LIMITED
Revenue,Adult Services,Adult Social Care,Commissioning & Service Delivery,5105692365,29.11.2021,Group Manager Leaning Disability Homes,Stationery,-1.84,BATES OFFICE SERVICES LIMITED
Revenue,Adult Services,Adult Social Care,Commissioning & Service Delivery,5105692365,29.11.2021,Group Manager Leaning Disability Homes,Stationery,-0.87,BATES OFFICE SERVICES LIMITED
Revenue,Adult Services,Adult Social Care,Commissioning & Service Delivery,5105692365,29.11.2021,Group Manager Leaning Disability Homes,Stationery,-2.00,BATES OFFICE SERVICES LIMITED
Revenue,Adult Services,Adult Social Care,Central Codes (to be reallocated),5105691786,26.11.2021,Community Reablement,Stationery,14.60,BATES OFFICE SERVICES LIMITED
Revenue,Adult Services,Adult Social Care,Central Codes (to be reallocated),5105691786,26.11.2021,Community Reablement,Stationery,1.80,BATES OFFICE SERVICES LIMITED
Revenue,Adult Services,Adult Social Care,Central Codes (to be reallocated),5105691786,26.11.2021,Community Reablement,Stationery,1.30,BATES OFFICE SERVICES LIMITED
Revenue,Adult Services,Adult Social Care,Central Codes (to be reallocated),5105689669,05.11.2021,Community Reablement,Stationery,3.60,BATES OFFICE SERVICES LIMITED
Revenue,Adult Services,Adult Social Care,Central Codes (to be reallocated),5105689669,05.11.2021,Community Reablement,Stationery,7.30,BATES OFFICE SERVICES LIMITED
Revenue,Adult Services,Adult Social Care,Central Codes (to be reallocated),5105689669,05.11.2021,Community Reablement,Stationery,1.30,BATES OFFICE SERVICES LIMITED
Revenue,Neighbourhoods,Environmental & Regulatory Services,Service Management and Support Services,5105691179,22.11.2021,Regulatory Management & Admin Support,Stationery,4.71,BATES OFFICE SERVICES LIMITED
Revenue,Neighbourhoods,Environmental & Regulatory Services,Service Management and Support Services,5105691908,29.11.2021,Regulatory Management & Admin Support,Stationery,26.22,BATES OFFICE SERVICES LIMITED
Revenue,Neighbourhoods,Environmental & Regulatory Services,Service Management and Support Services,5105691908,29.11.2021,Regulatory Management & Admin Support,Stationery,8.74,BATES OFFICE SERVICES LIMITED
Revenue,Neighbourhoods,Environmental & Regulatory Services,Service Management and Support Services,5105691781,26.11.2021,Regulatory Management & Admin Support,Stationery,6.00,BATES OFFICE SERVICES LIMITED
Revenue,Neighbourhoods,Environmental & Regulatory Services,Service Management and Support Services,5105691781,26.11.2021,Regulatory Management & Admin Support,Stationery,1.38,BATES OFFICE SERVICES LIMITED
Revenue,Childrens Services,Children's & Education Services,Special Schools & Alternative Provision,5105689406,03.11.2021,Island Learning Centre,Stationery,52.68,BATES OFFICE SERVICES LIMITED
Revenue,Childrens Services,Children's & Education Services,Special Schools & Alternative Provision,5105691768,26.11.2021,Island Learning Centre,Stationery,5.85,BATES OFFICE SERVICES LIMITED
Revenue,Childrens Services,Children's & Education Services,Special Schools & Alternative Provision,5105691768,26.11.2021,Island Learning Centre,Stationery,7.40,BATES OFFICE SERVICES LIMITED
Revenue,Adult Services,Adult Social Care,Commissioning & Service Delivery,5105691781,26.11.2021,ASC County Hall office costs,Stationery,14.60,BATES OFFICE SERVICES LIMITED
Revenue,Adult Services,Adult Social Care,Social Care Activities,5105689410,05.11.2021,Hospital Team,Stationery,7.00,BATES OFFICE SERVICES LIMITED
Revenue,Adult Services,Adult Social Care,Social Care Activities,5105689410,05.11.2021,Hospital Team,Stationery,14.70,BATES OFFICE SERVICES LIMITED
Revenue,Adult Services,Adult Social Care,Social Care Activities,5105689410,05.11.2021,Hospital Team,Stationery,1.00,BATES OFFICE SERVICES LIMITED
Revenue,Adult Services,Adult Social Care,Social Care Activities,5105689410,05.11.2021,Hospital Team,Stationery,8.74,BATES OFFICE SERVICES LIMITED
Revenue,Resources,Central Services,Corporate and Democratic Core,5105689410,05.11.2021,Cabinet Support,Stationery,8.74,BATES OFFICE SERVICES LIMITED
Revenue,Adult Services,Adult Social Care,Commissioning & Service Delivery,5105691781,26.11.2021,ASC County Hall office costs,Stationery,0.78,BATES OFFICE SERVICES LIMITED
Revenue,Adult Services,Adult Social Care,Commissioning & Service Delivery,5105691781,26.11.2021,ASC County Hall office costs,Stationery,0.24,BATES OFFICE SERVICES LIMITED
Revenue,Adult Services,Adult Social Care,Commissioning & Service Delivery,5105691781,26.11.2021,ASC County Hall office costs,Stationery,0.28,BATES OFFICE SERVICES LIMITED
Revenue,Adult Services,Adult Social Care,Commissioning & Service Delivery,5105691781,26.11.2021,ASC County Hall office costs,Stationery,14.30,BATES OFFICE SERVICES LIMITED
Revenue,Adult Services,Adult Social Care,Commissioning & Service Delivery,5105691781,26.11.2021,ASC County Hall office costs,Stationery,2.00,BATES OFFICE SERVICES LIMITED
Revenue,Adult Services,Adult Social Care,Commissioning & Service Delivery,5105689714,19.11.2021,ASC County Hall office costs,Stationery,0.98,BATES OFFICE SERVICES LIMITED
Revenue,Adult Services,Adult Social Care,Commissioning & Service Delivery,5105689714,19.11.2021,ASC County Hall office costs,Stationery,0.98,BATES OFFICE SERVICES LIMITED
Revenue,Adult Services,Adult Social Care,Commissioning & Service Delivery,5105689410,05.11.2021,ASC County Hall office costs,Stationery,17.07,BATES OFFICE SERVICES LIMITED
Revenue,Adult Services,Adult Social Care,Commissioning & Service Delivery,5105689410,05.11.2021,ASC County Hall office costs,Stationery,10.28,BATES OFFICE SERVICES LIMITED
Revenue,Adult Services,Adult Social Care,Commissioning & Service Delivery,5105689410,05.11.2021,ASC County Hall office costs,Stationery,14.60,BATES OFFICE SERVICES LIMITED
Revenue,Adult Services,Adult Social Care,Commissioning & Service Delivery,5105689410,05.11.2021,ASC County Hall office costs,Stationery,3.60,BATES OFFICE SERVICES LIMITED
Revenue,Adult Services,Adult Social Care,Commissioning & Service Delivery,5105689410,05.11.2021,ASC County Hall office costs,Stationery,0.77,BATES OFFICE SERVICES LIMITED
Revenue,Adult Services,Adult Social Care,Commissioning & Service Delivery,5105689410,05.11.2021,ASC County Hall office costs,Stationery,1.77,BATES OFFICE SERVICES LIMITED
Revenue,Adult Services,Adult Social Care,Commissioning & Service Delivery,5105691781,26.11.2021,ASC County Hall office costs,Stationery,3.60,BATES OFFICE SERVICES LIMITED
Revenue,Neighbourhoods,Cultural and Related Services,Library Service,5105689405,03.11.2021,Public Libraries Central,Stationery,8.33,BATES OFFICE SERVICES LIMITED
Revenue,Neighbourhoods,Cultural and Related Services,Library Service,5105689405,03.11.2021,Public Libraries Central,Stationery,0.66,BATES OFFICE SERVICES LIMITED
Revenue,Neighbourhoods,Cultural and Related Services,Library Service,5105689405,03.11.2021,Public Libraries Central,Stationery,2.15,BATES OFFICE SERVICES LIMITED
Revenue,Neighbourhoods,Cultural and Related Services,Library Service,5105689405,03.11.2021,Public Libraries Central,Stationery,1.22,BATES OFFICE SERVICES LIMITED
Revenue,Neighbourhoods,Cultural and Related Services,Library Service,5105689405,03.11.2021,Public Libraries Central,Stationery,3.54,BATES OFFICE SERVICES LIMITED
Revenue,Neighbourhoods,Cultural and Related Services,Library Service,5105689405,03.11.2021,Public Libraries Central,Stationery,32.78,BATES OFFICE SERVICES LIMITED
Revenue,Neighbourhoods,Cultural and Related Services,Library Service,5105691776,26.11.2021,Public Libraries Central,Stationery,69.92,BATES OFFICE SERVICES LIMITED
Revenue,Neighbourhoods,Cultural and Related Services,Library Service,5105691776,26.11.2021,Public Libraries Central,Stationery,5.15,BATES OFFICE SERVICES LIMITED
Revenue,Neighbourhoods,Cultural and Related Services,Library Service,5105691776,26.11.2021,Public Libraries Central,Stationery,4.46,BATES OFFICE SERVICES LIMITED
Revenue,Neighbourhoods,Cultural and Related Services,Recreation and Sport,5105689964,12.11.2021,Westridge Squash Courts,Stationery,0.92,BATES OFFICE SERVICES LIMITED
Revenue,Neighbourhoods,Cultural and Related Services,Recreation and Sport,5105689964,12.11.2021,Westridge Squash Courts,Stationery,5.13,BATES OFFICE SERVICES LIMITED
Revenue,Neighbourhoods,Cultural and Related Services,Recreation and Sport,5105689964,12.11.2021,Westridge Squash Courts,Stationery,5.85,BATES OFFICE SERVICES LIMITED
Revenue,Neighbourhoods,Cultural and Related Services,Recreation and Sport,5105689964,12.11.2021,Westridge Squash Courts,Stationery,2.36,BATES OFFICE SERVICES LIMITED
Revenue,Neighbourhoods,Cultural and Related Services,Recreation and Sport,5105689964,12.11.2021,Westridge Squash Courts,Stationery,17.48,BATES OFFICE SERVICES LIMITED
Revenue,Resources,Central Services,Corporate and Democratic Core,5105691179,22.11.2021,Committee and Scrutiny Team,Stationery,4.71,BATES OFFICE SERVICES LIMITED
Revenue,Resources,Central Services,Corporate and Democratic Core,5105691181,22.11.2021,Committee and Scrutiny Team,Stationery,-9.42,BATES OFFICE SERVICES LIMITED
Revenue,Resources,Central Services,Support Services,5105689410,05.11.2021,Customer Accounts Shared Service Centre,Stationery,43.70,BATES OFFICE SERVICES LIMITED
Revenue,Adult Services,Adult Social Care,Commissioning & Service Delivery,5105689714,19.11.2021,Director of Adult Social Services,Stationery,3.50,BATES OFFICE SERVICES LIMITED
Revenue,Adult Services,Adult Social Care,Commissioning & Service Delivery,5105689410,05.11.2021,Director of Adult Social Services,Stationery,17.48,BATES OFFICE SERVICES LIMITED
Revenue,Adult Services,Adult Social Care,Commissioning & Service Delivery,5105691908,29.11.2021,Director of Adult Social Services,Stationery,26.22,BATES OFFICE SERVICES LIMITED
Revenue,Neighbourhoods,Central Services,Central Services to the Public,5105689409,03.11.2021,Coroner,Stationery,3.71,BATES OFFICE SERVICES LIMITED
Revenue,Neighbourhoods,Central Services,Central Services to the Public,5105689409,03.11.2021,Coroner,Stationery,5.14,BATES OFFICE SERVICES LIMITED
Revenue,Neighbourhoods,Central Services,Central Services to the Public,5105689409,03.11.2021,Coroner,Stationery,0.15,BATES OFFICE SERVICES LIMITED
Revenue,Neighbourhoods,Central Services,Central Services to the Public,5105689409,03.11.2021,Coroner,Stationery,0.08,BATES OFFICE SERVICES LIMITED
Revenue,Neighbourhoods,Central Services,Central Services to the Public,5105689409,03.11.2021,Coroner,Stationery,6.25,BATES OFFICE SERVICES LIMITED
Revenue,Neighbourhoods,Central Services,Central Services to the Public,5105689409,03.11.2021,Coroner,Stationery,34.96,BATES OFFICE SERVICES LIMITED
Revenue,Neighbourhoods,Central Services,Central Services to the Public,5105689409,03.11.2021,Coroner,Stationery,4.71,BATES OFFICE SERVICES LIMITED
Revenue,Neighbourhoods,Central Services,Central Services to the Public,5105689409,03.11.2021,Coroner,Stationery,20.30,BATES OFFICE SERVICES LIMITED
Revenue,Neighbourhoods,Central Services,Central Services to the Public,5105691911,29.11.2021,Coroner,Stationery,52.44,BATES OFFICE SERVICES LIMITED
Revenue,Childrens Services,Children's & Education Services,Youth Justice,5105689714,19.11.2021,Youth Offending Team,Stationery,26.22,BATES OFFICE SERVICES LIMITED
Revenue,Childrens Services,Children's & Education Services,Youth Justice,5105691908,29.11.2021,Youth Offending Team,Stationery,3.50,BATES OFFICE SERVICES LIMITED
Revenue,Adult Services,Adult Social Care,Central Codes (to be reallocated),5105691770,26.11.2021,Adelaide Resource Centre,Stationery,52.44,BATES OFFICE SERVICES LIMITED
Revenue,Adult Services,Adult Social Care,Commissioning & Service Delivery,5105689714,19.11.2021,ASC Commissioning/Partnerships Development Team,Stationery,0.77,BATES OFFICE SERVICES LIMITED
Revenue,Adult Services,Adult Social Care,Commissioning & Service Delivery,5105689714,19.11.2021,ASC Commissioning/Partnerships Development Team,Stationery,1.17,BATES OFFICE SERVICES LIMITED
Revenue,Adult Services,Adult Social Care,Commissioning & Service Delivery,5105689714,19.11.2021,ASC Commissioning/Partnerships Development Team,Stationery,7.30,BATES OFFICE SERVICES LIMITED
Revenue,Adult Services,Adult Social Care,Commissioning & Service Delivery,5105689714,19.11.2021,ASC Commissioning/Partnerships Development Team,Stationery,0.99,BATES OFFICE SERVICES LIMITED
Revenue,Adult Services,Adult Social Care,Commissioning & Service Delivery,5105689714,19.11.2021,ASC Commissioning/Partnerships Development Team,Stationery,0.99,BATES OFFICE SERVICES LIMITED
Revenue,Adult Services,Adult Social Care,Commissioning & Service Delivery,5105689714,19.11.2021,ASC Commissioning/Partnerships Development Team,Stationery,1.77,BATES OFFICE SERVICES LIMITED
Revenue,Adult Services,Adult Social Care,Commissioning & Service Delivery,5105689714,19.11.2021,ASC Commissioning/Partnerships Development Team,Stationery,1.89,BATES OFFICE SERVICES LIMITED
Revenue,Adult Services,Adult Social Care,Central Codes (to be reallocated),5105689610,05.11.2021,Adelaide Resource Centre,Stationery,26.03,BATES OFFICE SERVICES LIMITED
Revenue,Resources,Central Services,Central Services to the Public,5105689410,05.11.2021,Internal Enforcement Team,Stationery,43.70,BATES OFFICE SERVICES LIMITED
Revenue,Childrens Services,Children's & Education Services,Management & Support Services,5105689407,03.11.2021,Specialist Service Business Admin,Stationery,1.57,BATES OFFICE SERVICES LIMITED
Revenue,Childrens Services,Children's & Education Services,Management & Support Services,5105689407,03.11.2021,Specialist Service Business Admin,Stationery,3.12,BATES OFFICE SERVICES LIMITED
Revenue,Childrens Services,Children's & Education Services,Management & Support Services,5105689407,03.11.2021,Specialist Service Business Admin,Stationery,3.68,BATES OFFICE SERVICES LIMITED
Revenue,Regeneration,Planning services,Management & Support Services,5105689409,03.11.2021,Planning Management,Stationery,9.80,BATES OFFICE SERVICES LIMITED
Revenue,Neighbourhoods,Environmental & Regulatory Services,"Cemetery, Cremation & Mortuary Services",5105691917,29.11.2021,Crematorium,Stationery,26.22,BATES OFFICE SERVICES LIMITED
Revenue,Neighbourhoods,Cultural and Related Services,Recreation and Sport,5105689408,03.11.2021,The Heights,Stationery,1.26,BATES OFFICE SERVICES LIMITED
Revenue,Neighbourhoods,Cultural and Related Services,Recreation and Sport,5105689408,03.11.2021,The Heights,Stationery,2.04,BATES OFFICE SERVICES LIMITED
Revenue,Neighbourhoods,Cultural and Related Services,Recreation and Sport,5105689408,03.11.2021,The Heights,Stationery,1.00,BATES OFFICE SERVICES LIMITED
Revenue,Neighbourhoods,Cultural and Related Services,Recreation and Sport,5105689408,03.11.2021,The Heights,Stationery,11.56,BATES OFFICE SERVICES LIMITED
Revenue,Neighbourhoods,Cultural and Related Services,Recreation and Sport,5105689408,03.11.2021,The Heights,Stationery,0.74,BATES OFFICE SERVICES LIMITED
Revenue,Regeneration,Central Services,Support Services,5105691781,26.11.2021,"Civic Centre,Sandown",Stationery,17.48,BATES OFFICE SERVICES LIMITED
Revenue,Adult Services,Adult Social Care,Commissioning & Service Delivery,5105691908,29.11.2021,FAC Team,Stationery,5.13,BATES OFFICE SERVICES LIMITED
Revenue,Regeneration,Planning services,Economic Development,5105691909,29.11.2021,Economic Development Projects,Computer Software & Consumables,"2,000.00",BEAUHURST BUSINESS
Revenue,Neighbourhoods,Cultural and Related Services,Library Service,5105691355,26.11.2021,Public Libraries Central,Marketing Costs,660.00,BELMONT PRESS
Revenue,Childrens Services,Children's & Education Services,Children Looked After,5105689194,03.11.2021,Leaving Care Costs,Support Children,19.99,REDACTED PERSONAL DATA
Revenue,Childrens Services,Children's & Education Services,Children Looked After,5105689417,03.11.2021,Support for Looked After Children,Support Children,119.70,BERRY HILL CHILDCARE LIMITED
Revenue,Adult Services,Housing Services,Homelessness,5105690366,17.11.2021,B&B Properties,Accommodation Costs - Bed & Breakfast,"9,050.00",BERTRAM LODGE
Revenue,Adult Services,Adult Social Care,Central Codes (to be reallocated),5105685707,19.11.2021,Gouldings Resource Centre,Consumable Cleaning Materials,99.75,BETA PAK LTD
Revenue,Adult Services,Adult Social Care,Central Codes (to be reallocated),5105685708,24.11.2021,Gouldings Resource Centre,Consumable Cleaning Materials,17.13,BETA PAK LTD
Revenue,Adult Services,Adult Social Care,Central Codes (to be reallocated),5105692093,29.11.2021,Gouldings Resource Centre,Consumable Cleaning Materials,16.50,BETA PAK LTD
Revenue,Adult Services,Adult Social Care,Central Codes (to be reallocated),5105690297,12.11.2021,Gouldings Resource Centre,Consumable Cleaning Materials,347.89,BETA PAK LTD
Revenue,Adult Services,Adult Social Care,Central Codes (to be reallocated),5105690593,17.11.2021,Gouldings Resource Centre,Consumable Cleaning Materials,43.28,BETA PAK LTD
Revenue,Adult Services,Adult Social Care,Central Codes (to be reallocated),5105691591,26.11.2021,Gouldings Resource Centre,Consumable Cleaning Materials,4.97,BETA PAK LTD
Revenue,Adult Services,Adult Social Care,Central Codes (to be reallocated),5105691592,26.11.2021,Gouldings Resource Centre,Consumable Cleaning Materials,4.97,BETA PAK LTD
Revenue,Adult Services,Adult Social Care,Central Codes (to be reallocated),5105689098,05.11.2021,Gouldings Resource Centre,Consumable Cleaning Materials,-99.75,BETA PAK LTD
Revenue,Adult Services,Adult Social Care,Central Codes (to be reallocated),5105690245,12.11.2021,Gouldings Resource Centre,Consumable Cleaning Materials,68.23,BETA PAK LTD
Revenue,Adult Services,Adult Social Care,Social Support - Support for Carer,5105691884,29.11.2021,Westminster House,Operational Equipment,10.16,BETA PAK LTD
Revenue,Adult Services,Adult Social Care,Social Support - Support for Carer,5105691596,26.11.2021,Westminster House,Operational Equipment,7.96,BETA PAK LTD
Revenue,Adult Services,Adult Social Care,Social Support - Support for Carer,5105691568,26.11.2021,Westminster House,Operational Equipment,25.39,BETA PAK LTD
Revenue,Adult Services,Adult Social Care,Learning Disab Supp (to be reallocated),5105690586,24.11.2021,Saxonbury,Operational Equipment,75.76,BETA PAK LTD
Revenue,Adult Services,Adult Social Care,Learning Disab Supp (to be reallocated),5105690298,12.11.2021,Saxonbury,Operational Equipment,95.92,BETA PAK LTD
Revenue,Adult Services,Adult Social Care,Learning Disab Supp (to be reallocated),5105689858,10.11.2021,Saxonbury,Operational Equipment,86.06,BETA PAK LTD
Revenue,Adult Services,Adult Social Care,Learning Disab Supp (to be reallocated),5105688695,03.11.2021,Saxonbury,Operational Equipment,211.61,BETA PAK LTD
Revenue,Adult Services,Adult Social Care,Learning Disab Supp (to be reallocated),5105691594,26.11.2021,Saxonbury,Operational Equipment,4.24,BETA PAK LTD
Revenue,Adult Services,Adult Social Care,Learning Disab Supp (to be reallocated),5105692089,29.11.2021,Saxonbury,Operational Equipment,294.15,BETA PAK LTD
Revenue,Adult Services,Adult Social Care,Social Support - Support for Carer,5105690591,17.11.2021,Westminster House,Operational Equipment,9.79,BETA PAK LTD
Revenue,Adult Services,Adult Social Care,Social Support - Support for Carer,5105689942,12.11.2021,Westminster House,Operational Equipment,10.16,BETA PAK LTD
Revenue,Adult Services,Adult Social Care,Social Support - Support for Carer,5105690448,17.11.2021,Westminster House,Operational Equipment,15.00,BETA PAK LTD
Revenue,Adult Services,Adult Social Care,Social Support - Support for Carer,5105690158,12.11.2021,Westminster House,Operational Equipment,42.14,BETA PAK LTD
Revenue,Adult Services,Adult Social Care,Social Support - Support for Carer,5105689860,10.11.2021,Westminster House,Operational Equipment,29.54,BETA PAK LTD
Revenue,Adult Services,Adult Social Care,Social Support - Support for Carer,5105689851,10.11.2021,Westminster House,Operational Equipment,117.04,BETA PAK LTD
Revenue,Adult Services,Adult Social Care,Social Support - Support for Carer,5105690239,12.11.2021,Westminster House,Operational Equipment,278.69,BETA PAK LTD
Revenue,Adult Services,Adult Social Care,Social Support - Support for Carer,5105688496,03.11.2021,Westminster House,Operational Equipment,91.30,BETA PAK LTD
Revenue,Adult Services,Adult Social Care,Social Support - Support for Carer,5105689402,03.11.2021,Westminster House,Operational Equipment,120.12,BETA PAK LTD
Revenue,Adult Services,Adult Social Care,Learning Disab Supp (to be reallocated),5105690242,19.11.2021,Plean Dene,Operational Equipment,32.55,BETA PAK LTD
Revenue,Adult Services,Adult Social Care,Learning Disab Supp (to be reallocated),5105690242,19.11.2021,Plean Dene,Operational Equipment,49.96,BETA PAK LTD
Revenue,Adult Services,Adult Social Care,Central Codes (to be reallocated),5105689674,05.11.2021,Adelaide Resource Centre,Consumable Cleaning Materials,320.99,BETA PAK LTD
Revenue,Adult Services,Adult Social Care,Central Codes (to be reallocated),5105690589,17.11.2021,Adelaide Resource Centre,Consumable Cleaning Materials,206.92,BETA PAK LTD
Revenue,Adult Services,Adult Social Care,Central Codes (to be reallocated),5105690671,17.11.2021,Adelaide Resource Centre,Consumable Cleaning Materials,74.90,BETA PAK LTD
Revenue,Adult Services,Adult Social Care,Central Codes (to be reallocated),5105689870,10.11.2021,Adelaide Resource Centre,Consumable Cleaning Materials,85.12,BETA PAK LTD
Revenue,Adult Services,Adult Social Care,Central Codes (to be reallocated),5105690244,12.11.2021,Adelaide Resource Centre,Consumable Cleaning Materials,30.76,BETA PAK LTD
Revenue,Adult Services,Adult Social Care,Central Codes (to be reallocated),5105689861,10.11.2021,Adelaide Resource Centre,Consumable Cleaning Materials,37.09,BETA PAK LTD
Revenue,Adult Services,Adult Social Care,Central Codes (to be reallocated),5105691598,26.11.2021,Adelaide Resource Centre,Consumable Cleaning Materials,46.66,BETA PAK LTD
Revenue,Adult Services,Adult Social Care,Central Codes (to be reallocated),5105689673,05.11.2021,Adelaide Resource Centre,Operational Equipment,62.40,BETA PAK LTD
Capital,Place,Capital,Capital,5105690981,19.11.2021,Parks and Gardens Capital,Legal Fees - Other Parties,420.00,BEVAN BRITTAN
Capital,Place,Capital,Capital,5105690982,19.11.2021,Parks and Gardens Capital,Legal Fees - Other Parties,496.00,BEVAN BRITTAN
Revenue,Neighbourhoods,Environmental & Regulatory Services,Service Management and Support Services,5105691247,24.11.2021,Waste Contract Management,Legal Fees - Other Parties,"16,859.90",BEVAN BRITTAN
Revenue,Regeneration,Central Services,Support Services,5105690675,17.11.2021,Public Sector Partnership Costs,Legal Fees - Other Parties,"2,566.90",BEVAN BRITTAN
Revenue,Regeneration,Central Services,Support Services,5105690664,17.11.2021,Public Sector Partnership Costs,Legal Fees - Other Parties,"3,597.90",BEVAN BRITTAN
Revenue,Regeneration,Central Services,Support Services,5105690665,17.11.2021,Public Sector Partnership Costs,Legal Fees - Other Parties,"6,406.00",BEVAN BRITTAN
Revenue,Regeneration,Central Services,Support Services,5105690667,17.11.2021,Public Sector Partnership Costs,Legal Fees - Other Parties,"3,383.10",BEVAN BRITTAN
Revenue,Regeneration,Central Services,Support Services,5105690669,17.11.2021,Public Sector Partnership Costs,Legal Fees - Other Parties,"7,228.60",BEVAN BRITTAN
Revenue,Regeneration,Central Services,Support Services,5105690670,17.11.2021,Public Sector Partnership Costs,Legal Fees - Other Parties,929.30,BEVAN BRITTAN
Revenue,Regeneration,Central Services,Support Services,5105690672,17.11.2021,Public Sector Partnership Costs,Legal Fees - Other Parties,"1,091.90",BEVAN BRITTAN
Revenue,Adult Services,Adult Social Care,Central Codes (to be reallocated),5105689349,05.11.2021,Gouldings Resource Centre,Catering Purchases,291.12,3663 (BFS GROUP LTD)
Revenue,Adult Services,Adult Social Care,Central Codes (to be reallocated),5105689349,05.11.2021,Gouldings Resource Centre,Catering Purchases,14.96,3663 (BFS GROUP LTD)
Revenue,Adult Services,Adult Social Care,Central Codes (to be reallocated),5105689213,03.11.2021,Gouldings Resource Centre,Catering Purchases,324.55,3663 (BFS GROUP LTD)
Revenue,Adult Services,Adult Social Care,Central Codes (to be reallocated),5105689213,03.11.2021,Gouldings Resource Centre,Catering Purchases,32.44,3663 (BFS GROUP LTD)
Revenue,Adult Services,Adult Social Care,Central Codes (to be reallocated),5105691603,26.11.2021,Gouldings Resource Centre,Catering Purchases,281.12,3663 (BFS GROUP LTD)
Revenue,Adult Services,Adult Social Care,Central Codes (to be reallocated),5105691185,24.11.2021,Gouldings Resource Centre,Catering Purchases,12.42,3663 (BFS GROUP LTD)
Revenue,Adult Services,Adult Social Care,Central Codes (to be reallocated),5105691186,24.11.2021,Gouldings Resource Centre,Catering Purchases,187.13,3663 (BFS GROUP LTD)
Revenue,Adult Services,Adult Social Care,Central Codes (to be reallocated),5105691186,24.11.2021,Gouldings Resource Centre,Catering Purchases,20.40,3663 (BFS GROUP LTD)
Revenue,Adult Services,Adult Social Care,Central Codes (to be reallocated),5105691185,24.11.2021,Gouldings Resource Centre,Catering Purchases,239.05,3663 (BFS GROUP LTD)
Revenue,Adult Services,Adult Social Care,Central Codes (to be reallocated),5105689839,10.11.2021,Gouldings Resource Centre,Catering Purchases,203.69,3663 (BFS GROUP LTD)
Revenue,Neighbourhoods,Cultural and Related Services,Library Service,5105691366,26.11.2021,Public Libraries Central,Stationery,58.38,BIBLIOTHECA LTD
Revenue,Neighbourhoods,Cultural and Related Services,Library Service,5105688506,03.11.2021,Public Libraries Central,Stationery,95.90,BIBLIOTHECA LTD
Revenue,Neighbourhoods,Highways and Transport Services,"Airports, Harbours & Toll Facilities",5105689788,17.11.2021,Ferry Management,"Refuse Collection, Disposal and Recycling Costs",77.20,BIFFA WASTE SERVICES LTD
Revenue,Adult Services,Adult Social Care,Central Codes (to be reallocated),5105689788,17.11.2021,Gouldings Resource Centre,"Refuse Collection, Disposal and Recycling Costs",200.52,BIFFA WASTE SERVICES LTD
Revenue,Regeneration,Central Services,Support Services,5105689788,17.11.2021,Parklands,"Refuse Collection, Disposal and Recycling Costs",5.60,BIFFA WASTE SERVICES LTD
Revenue,Childrens Services,Children's & Education Services,Other Education and Community Budget,5105689788,17.11.2021,SEND Independent Advice & Support,"Refuse Collection, Disposal and Recycling Costs",40.72,BIFFA WASTE SERVICES LTD
Revenue,Neighbourhoods,Cultural and Related Services,Recreation and Sport,5105689788,17.11.2021,Seaclose Skate Park & Netball Courts,"Refuse Collection, Disposal and Recycling Costs",86.24,BIFFA WASTE SERVICES LTD
Revenue,Neighbourhoods,Cultural and Related Services,Recreation and Sport,5105689788,17.11.2021,Medina Leisure Centre,"Refuse Collection, Disposal and Recycling Costs",267.76,BIFFA WASTE SERVICES LTD
Revenue,Neighbourhoods,Highways and Transport Services,"Airports, Harbours & Toll Facilities",5105689788,17.11.2021,Ryde Harbour,"Refuse Collection, Disposal and Recycling Costs",60.20,BIFFA WASTE SERVICES LTD
Revenue,Adult Services,Adult Social Care,Learning Disab Supp (to be reallocated),5105689788,17.11.2021,Plean Dene,"Refuse Collection, Disposal and Recycling Costs",177.52,BIFFA WASTE SERVICES LTD
Revenue,Adult Services,Adult Social Care,Learning Disab Supp (to be reallocated),5105689788,17.11.2021,Saxonbury,"Refuse Collection, Disposal and Recycling Costs",87.52,BIFFA WASTE SERVICES LTD
Revenue,Adult Services,Adult Social Care,Assistive Equipment & Technology,5105689788,17.11.2021,BCF Community Equipment Store,"Refuse Collection, Disposal and Recycling Costs",554.47,BIFFA WASTE SERVICES LTD
Revenue,Childrens Services,Children's & Education Services,Children Looked After,5105689788,17.11.2021,Beaulieu House,"Refuse Collection, Disposal and Recycling Costs",167.22,BIFFA WASTE SERVICES LTD
Revenue,Regeneration,Central Services,Support Services,5105689788,17.11.2021,"Westridge, Ryde","Refuse Collection, Disposal and Recycling Costs",138.12,BIFFA WASTE SERVICES LTD
Revenue,Regeneration,Central Services,Support Services,5105689788,17.11.2021,"County Hall,Newport","Refuse Collection, Disposal and Recycling Costs",378.40,BIFFA WASTE SERVICES LTD
Revenue,Regeneration,Central Services,Support Services,5105689788,17.11.2021,"Jubilee Stores, Newport","Refuse Collection, Disposal and Recycling Costs",103.08,BIFFA WASTE SERVICES LTD
Revenue,Neighbourhoods,Cultural and Related Services,Open Spaces,5105689788,17.11.2021,Fort Victoria,"Refuse Collection, Disposal and Recycling Costs",126.04,BIFFA WASTE SERVICES LTD
Revenue,Neighbourhoods,Highways and Transport Services,"Airports, Harbours & Toll Facilities",5105689788,17.11.2021,Newport Harbour Account,"Refuse Collection, Disposal and Recycling Costs",277.84,BIFFA WASTE SERVICES LTD
Revenue,Neighbourhoods,Highways and Transport Services,"Airports, Harbours & Toll Facilities",5105689788,17.11.2021,Newport Harbour Account,"Refuse Collection, Disposal and Recycling Costs",109.20,BIFFA WASTE SERVICES LTD
Revenue,Neighbourhoods,Cultural and Related Services,Library Service,5105689788,17.11.2021,Public Libraries Central,"Refuse Collection, Disposal and Recycling Costs",127.72,BIFFA WASTE SERVICES LTD
Revenue,Neighbourhoods,Cultural and Related Services,Culture and Heritage,5105689788,17.11.2021,Cothey Bottom Store RYDE,"Refuse Collection, Disposal and Recycling Costs",69.06,BIFFA WASTE SERVICES LTD
Revenue,Neighbourhoods,Cultural and Related Services,Recreation and Sport,5105689788,17.11.2021,Westridge Squash Courts,"Refuse Collection, Disposal and Recycling Costs",69.05,BIFFA WASTE SERVICES LTD
Revenue,Childrens Services,Children's & Education Services,Management & Support Services,5105689788,17.11.2021,Specialist Service Business Admin,"Refuse Collection, Disposal and Recycling Costs",502.38,BIFFA WASTE SERVICES LTD
Revenue,Neighbourhoods,Environmental & Regulatory Services,"Cemetery, Cremation & Mortuary Services",5105689788,17.11.2021,Crematorium,"Refuse Collection, Disposal and Recycling Costs",182.00,BIFFA WASTE SERVICES LTD
Revenue,Neighbourhoods,Cultural and Related Services,Culture and Heritage,5105689788,17.11.2021,Dinosaur Isle Museum (Sandown Geology),"Refuse Collection, Disposal and Recycling Costs",37.87,BIFFA WASTE SERVICES LTD
Revenue,Neighbourhoods,Cultural and Related Services,Recreation and Sport,5105689788,17.11.2021,The Heights,"Refuse Collection, Disposal and Recycling Costs",152.32,BIFFA WASTE SERVICES LTD
Revenue,Regeneration,Central Services,Support Services,5400003104,29.11.2021,"Civic Centre,Sandown","Refuse Collection, Disposal and Recycling Costs",0.09,BIFFA WASTE SERVICES LTD
Revenue,Regeneration,Central Services,Support Services,5105689788,17.11.2021,"Civic Centre,Sandown","Refuse Collection, Disposal and Recycling Costs","1,156.45",BIFFA WASTE SERVICES LTD
Revenue,Childrens Services,Children's & Education Services,Family Support Services,5105691738,26.11.2021,S17 Child Protection,Support Children,21.15,REDACTED PERSONAL DATA
Revenue,Childrens Services,Children's & Education Services,Family Support Services,5105691738,26.11.2021,S17 Child Protection,Support Children,14.00,REDACTED PERSONAL DATA
Revenue,Regeneration,Planning services,Planning Policy,5105688545,03.11.2021,Island Planning Strategy,Advertising & Publicity,95.00,BILTMORE PRINTERS
Revenue,Regeneration,Planning services,Planning Policy,5105688545,03.11.2021,Island Planning Strategy,Advertising & Publicity,8.00,BILTMORE PRINTERS
Revenue,Regeneration,Planning services,Planning Policy,5105688545,03.11.2021,Island Planning Strategy,Advertising & Publicity,106.00,BILTMORE PRINTERS
Revenue,Childrens Services,Children's & Education Services,Safeguarding Children/Young Peoples Svs,5105689337,03.11.2021,Court Work & Consultancy Services,Legal Fees - Other Parties,91.10,BISCOES SOLICITORS
Revenue,Childrens Services,Children's & Education Services,Children Looked After,5105690680,19.11.2021,Purchased Fostering,Charges from Independent Providers,"6,300.00",BLUE SKY FOSTERING LTD
Revenue,Resources,Central Services,Corporate and Democratic Core,5105689394,03.11.2021,Democratic Representation & Management,Professional Services,70.00,BLUELINE SECURITY MANAGEMENT LTD
Revenue,Adult Services,Adult Social Care,Support - Memory /Cognition-older people (65+),5105691167,24.11.2021,Memory & Cognition Nursing 65+,Charges from Independent Providers,"3,920.00",BLUEWATER CARE HOMES LTD
Revenue,Childrens Services,Children's & Education Services,Special Schools & Alternative Provision,5105692032,29.11.2021,Island Learning Centre,Schools ICT Learning Resources,187.01,BOARDWORKS LIMITED T/A DODDLE LEARN
Revenue,Childrens Services,Children's & Education Services,Management & Support Services,5105690284,12.11.2021,Education Direct Payments,Transport of Clients,84.00,BODSTER EQUINE ASSISTED LEARN CIC
Revenue,Childrens Services,Children's & Education Services,Family Support Services,5105690969,19.11.2021,Short Breaks,Charges from Independent Providers,349.17,BODSTER EQUINE ASSISTED LEARN CIC
Revenue,Adult Services,Adult Social Care,Learning Disab Supp (to be reallocated),5105690562,17.11.2021,Plean Dene,Catering Purchases,123.43,BOOKER CASH & CARRY LTD
Revenue,Adult Services,Adult Social Care,Learning Disab Supp (to be reallocated),5105690676,17.11.2021,Plean Dene,Catering Purchases,6.59,BOOKER CASH & CARRY LTD
Revenue,Adult Services,Adult Social Care,Learning Disab Supp (to be reallocated),5105690723,19.11.2021,Plean Dene,Catering Purchases,65.28,BOOKER CASH & CARRY LTD
Revenue,Adult Services,Adult Social Care,Learning Disab Supp (to be reallocated),5105691320,24.11.2021,Plean Dene,Catering Purchases,113.41,BOOKER CASH & CARRY LTD
Revenue,Adult Services,Adult Social Care,Learning Disab Supp (to be reallocated),5105691323,24.11.2021,Plean Dene,Catering Purchases,5.86,BOOKER CASH & CARRY LTD
Revenue,Adult Services,Adult Social Care,Learning Disab Supp (to be reallocated),5105689672,05.11.2021,Plean Dene,Catering Purchases,3.75,BOOKER CASH & CARRY LTD
Revenue,Adult Services,Adult Social Care,Learning Disab Supp (to be reallocated),5105691572,26.11.2021,Plean Dene,Catering Purchases,13.11,BOOKER CASH & CARRY LTD
Revenue,Adult Services,Adult Social Care,Learning Disab Supp (to be reallocated),5105689401,03.11.2021,Plean Dene,Catering Purchases,129.45,BOOKER CASH & CARRY LTD
Revenue,Adult Services,Adult Social Care,Learning Disab Supp (to be reallocated),5105691336,26.11.2021,Plean Dene,Catering Purchases,6.14,BOOKER CASH & CARRY LTD
Revenue,Adult Services,Adult Social Care,Learning Disab Supp (to be reallocated),5105691336,26.11.2021,Plean Dene,Catering Purchases,4.65,BOOKER CASH & CARRY LTD
Revenue,Adult Services,Adult Social Care,Learning Disab Supp (to be reallocated),5105689214,03.11.2021,Plean Dene,Catering Purchases,4.28,BOOKER CASH & CARRY LTD
Revenue,Adult Services,Adult Social Care,Learning Disab Supp (to be reallocated),5105689331,03.11.2021,Plean Dene,Catering Purchases,29.89,BOOKER CASH & CARRY LTD
Revenue,Adult Services,Adult Social Care,Learning Disab Supp (to be reallocated),5105690343,24.11.2021,Plean Dene,Catering Purchases,52.19,BOOKER CASH & CARRY LTD
Revenue,Adult Services,Adult Social Care,Learning Disab Supp (to be reallocated),5105689945,12.11.2021,Plean Dene,Catering Purchases,5.99,BOOKER CASH & CARRY LTD
Revenue,Public Health,Public Health,Sexual Health,5105689723,10.11.2021,Contraception P,Payment to Private Contractors,258.00,BOOTS THE CHEMIST LTD (Ryde)
Revenue,Public Health,Public Health,Sexual Health,5105689723,10.11.2021,Contraception P,Payment to Private Contractors,31.20,BOOTS THE CHEMIST LTD (Ryde)
Revenue,Public Health,Public Health,Sexual Health,5105689723,10.11.2021,Contraception P,Payment to Private Contractors,84.30,BOOTS THE CHEMIST LTD (Ryde)
Revenue,Public Health,Public Health,Sexual Health,5105691657,26.11.2021,Contraception P,Payment to Private Contractors,107.50,BOOTS THE CHEMIST LTD (Ryde)
Revenue,Public Health,Public Health,Sexual Health,5105691657,26.11.2021,Contraception P,Payment to Private Contractors,10.40,BOOTS THE CHEMIST LTD (Ryde)
Revenue,Public Health,Public Health,Sexual Health,5105691657,26.11.2021,Contraception P,Payment to Private Contractors,42.15,BOOTS THE CHEMIST LTD (Ryde)
Revenue,Public Health,Public Health,Substance Misuse,5105689723,10.11.2021,Drug Misuse Adult- Treatment NP,Payment to Private Contractors,30.00,BOOTS THE CHEMIST LTD (Ryde)
Revenue,Public Health,Public Health,Substance Misuse,5105691657,26.11.2021,Drug Misuse Adult- Treatment NP,Payment to Private Contractors,30.00,BOOTS THE CHEMIST LTD (Ryde)
Revenue,Public Health,Public Health,Substance Misuse,5105691696,26.11.2021,Drug Misuse Adult- Treatment NP,Payment to Private Contractors,30.00,BOOTS UK LTD (SANDOWN LARGE STORE)
Revenue,Public Health,Public Health,Substance Misuse,5105689756,10.11.2021,Drug Misuse Adult- Treatment NP,Payment to Private Contractors,30.00,BOOTS UK LTD (SANDOWN LARGE STORE)
Revenue,Public Health,Public Health,Sexual Health,5105691677,26.11.2021,Contraception P,Payment to Private Contractors,98.35,BOOTS UK LTD (107 HIGH ST SANDOWN)
Revenue,Public Health,Public Health,Sexual Health,5105691677,26.11.2021,Contraception P,Payment to Private Contractors,150.50,BOOTS UK LTD (107 HIGH ST SANDOWN)
Revenue,Public Health,Public Health,Sexual Health,5105689712,05.11.2021,Contraception P,Payment to Private Contractors,344.00,BOOTS UK LTD (107 HIGH ST SANDOWN)
Revenue,Public Health,Public Health,Sexual Health,5105689712,05.11.2021,Contraception P,Payment to Private Contractors,10.40,BOOTS UK LTD (107 HIGH ST SANDOWN)
Revenue,Public Health,Public Health,Sexual Health,5105689712,05.11.2021,Contraception P,Payment to Private Contractors,196.70,BOOTS UK LTD (107 HIGH ST SANDOWN)
Revenue,Public Health,Public Health,Substance Misuse,5105691677,26.11.2021,Drug Misuse Adult- Treatment NP,Payment to Private Contractors,30.00,BOOTS UK LTD (107 HIGH ST SANDOWN)
Revenue,Public Health,Public Health,Substance Misuse,5105689712,05.11.2021,Drug Misuse Adult- Treatment NP,Payment to Private Contractors,30.00,BOOTS UK LTD (107 HIGH ST SANDOWN)
Revenue,Public Health,Public Health,Sexual Health,5105689755,10.11.2021,Contraception P,Payment to Private Contractors,112.40,BOOTS UK LTD (COWES)
Revenue,Public Health,Public Health,Sexual Health,5105689755,10.11.2021,Contraception P,Payment to Private Contractors,322.50,BOOTS UK LTD (COWES)
Revenue,Public Health,Public Health,Sexual Health,5105689755,10.11.2021,Contraception P,Payment to Private Contractors,57.20,BOOTS UK LTD (COWES)
Revenue,Public Health,Public Health,Sexual Health,5105691693,26.11.2021,Contraception P,Payment to Private Contractors,56.20,BOOTS UK LTD (COWES)
Revenue,Public Health,Public Health,Sexual Health,5105691693,26.11.2021,Contraception P,Payment to Private Contractors,86.00,BOOTS UK LTD (COWES)
Revenue,Public Health,Public Health,Substance Misuse,5105691693,26.11.2021,Drug Misuse Adult- Treatment NP,Payment to Private Contractors,30.00,BOOTS UK LTD (COWES)
Revenue,Public Health,Public Health,Substance Misuse,5105689755,10.11.2021,Drug Misuse Adult- Treatment NP,Payment to Private Contractors,30.00,BOOTS UK LTD (COWES)
Revenue,Public Health,Public Health,Sexual Health,5105691666,26.11.2021,Contraception P,Payment to Private Contractors,21.50,BOOTS UK LTD (FRESHWATER)
Revenue,Public Health,Public Health,Sexual Health,5105691666,26.11.2021,Contraception P,Payment to Private Contractors,14.05,BOOTS UK LTD (FRESHWATER)
Revenue,Public Health,Public Health,Sexual Health,5105689760,10.11.2021,Contraception P,Payment to Private Contractors,279.50,BOOTS UK LTD (FRESHWATER)
Revenue,Public Health,Public Health,Sexual Health,5105689760,10.11.2021,Contraception P,Payment to Private Contractors,15.60,BOOTS UK LTD (FRESHWATER)
Revenue,Public Health,Public Health,Sexual Health,5105689760,10.11.2021,Contraception P,Payment to Private Contractors,140.50,BOOTS UK LTD (FRESHWATER)
Revenue,Public Health,Public Health,Substance Misuse,5105689760,10.11.2021,Drug Misuse Adult- Treatment NP,Payment to Private Contractors,30.00,BOOTS UK LTD (FRESHWATER)
Revenue,Public Health,Public Health,Substance Misuse,5105691666,26.11.2021,Drug Misuse Adult- Treatment NP,Payment to Private Contractors,30.00,BOOTS UK LTD (FRESHWATER)
Revenue,Public Health,Public Health,Sexual Health,5105689728,10.11.2021,Contraception P,Payment to Private Contractors,3.55,BOOTS UK LTD (NEWPORT)
Revenue,Public Health,Public Health,Sexual Health,5105689728,10.11.2021,Contraception P,Payment to Private Contractors,758.70,BOOTS UK LTD (NEWPORT)
Revenue,Public Health,Public Health,Sexual Health,5105689728,10.11.2021,Contraception P,Payment to Private Contractors,"1,548.00",BOOTS UK LTD (NEWPORT)
Revenue,Public Health,Public Health,Sexual Health,5105689728,10.11.2021,Contraception P,Payment to Private Contractors,98.80,BOOTS UK LTD (NEWPORT)
Revenue,Public Health,Public Health,Sexual Health,5105691619,26.11.2021,Contraception P,Payment to Private Contractors,196.70,BOOTS UK LTD (NEWPORT)
Revenue,Public Health,Public Health,Sexual Health,5105691619,26.11.2021,Contraception P,Payment to Private Contractors,408.50,BOOTS UK LTD (NEWPORT)
Revenue,Public Health,Public Health,Sexual Health,5105691619,26.11.2021,Contraception P,Payment to Private Contractors,26.00,BOOTS UK LTD (NEWPORT)
Revenue,Public Health,Public Health,Substance Misuse,5105689728,10.11.2021,Drug Misuse Adult- Treatment NP,Payment to Private Contractors,30.00,BOOTS UK LTD (NEWPORT)
Revenue,Public Health,Public Health,Substance Misuse,5105691619,26.11.2021,Drug Misuse Adult- Treatment NP,Payment to Private Contractors,30.00,BOOTS UK LTD (NEWPORT)
Revenue,Public Health,Public Health,Sexual Health,5105691676,26.11.2021,Contraception P,Payment to Private Contractors,129.00,BOOTS UK LTD (SHANKLIN)
Revenue,Public Health,Public Health,Sexual Health,5105689726,10.11.2021,Contraception P,Payment to Private Contractors,224.80,BOOTS UK LTD (SHANKLIN)
Revenue,Public Health,Public Health,Sexual Health,5105689726,10.11.2021,Contraception P,Payment to Private Contractors,365.50,BOOTS UK LTD (SHANKLIN)
Revenue,Public Health,Public Health,Sexual Health,5105689726,10.11.2021,Contraception P,Payment to Private Contractors,5.20,BOOTS UK LTD (SHANKLIN)
Revenue,Public Health,Public Health,Sexual Health,5105691676,26.11.2021,Contraception P,Payment to Private Contractors,84.30,BOOTS UK LTD (SHANKLIN)
Revenue,Public Health,Public Health,Substance Misuse,5105689726,10.11.2021,Drug Misuse Adult- Treatment NP,Payment to Private Contractors,30.00,BOOTS UK LTD (SHANKLIN)
Revenue,Public Health,Public Health,Substance Misuse,5105691676,26.11.2021,Drug Misuse Adult- Treatment NP,Payment to Private Contractors,30.00,BOOTS UK LTD (SHANKLIN)
Revenue,Public Health,Public Health,Sexual Health,5105689754,10.11.2021,Contraception P,Payment to Private Contractors,215.00,BOOTS UK LTD (TOWER HOUSE)
Revenue,Public Health,Public Health,Sexual Health,5105689754,10.11.2021,Contraception P,Payment to Private Contractors,41.60,BOOTS UK LTD (TOWER HOUSE)
Revenue,Public Health,Public Health,Sexual Health,5105689754,10.11.2021,Contraception P,Payment to Private Contractors,28.10,BOOTS UK LTD (TOWER HOUSE)
Revenue,Public Health,Public Health,Sexual Health,5105691695,26.11.2021,Contraception P,Payment to Private Contractors,86.00,BOOTS UK LTD (TOWER HOUSE)
Revenue,Public Health,Public Health,Sexual Health,5105691695,26.11.2021,Contraception P,Payment to Private Contractors,10.40,BOOTS UK LTD (TOWER HOUSE)
Revenue,Public Health,Public Health,Sexual Health,5105691695,26.11.2021,Contraception P,Payment to Private Contractors,28.10,BOOTS UK LTD (TOWER HOUSE)
Revenue,Public Health,Public Health,Substance Misuse,5105691695,26.11.2021,Drug Misuse Adult- Treatment NP,Payment to Private Contractors,30.00,BOOTS UK LTD (TOWER HOUSE)
Revenue,Public Health,Public Health,Substance Misuse,5105689754,10.11.2021,Drug Misuse Adult- Treatment NP,Payment to Private Contractors,30.00,BOOTS UK LTD (TOWER HOUSE)
Revenue,Public Health,Public Health,Sexual Health,5105691661,26.11.2021,Contraception P,Payment to Private Contractors,43.00,BOOTS UK LTD
Revenue,Public Health,Public Health,Sexual Health,5105691661,26.11.2021,Contraception P,Payment to Private Contractors,5.20,BOOTS UK LTD
Revenue,Public Health,Public Health,Sexual Health,5105691661,26.11.2021,Contraception P,Payment to Private Contractors,14.05,BOOTS UK LTD
Revenue,Public Health,Public Health,Sexual Health,5105689724,10.11.2021,Contraception P,Payment to Private Contractors,10.40,BOOTS UK LTD
Revenue,Public Health,Public Health,Sexual Health,5105689724,10.11.2021,Contraception P,Payment to Private Contractors,126.45,BOOTS UK LTD
Revenue,Public Health,Public Health,Sexual Health,5105689724,10.11.2021,Contraception P,Payment to Private Contractors,236.50,BOOTS UK LTD
Revenue,Public Health,Public Health,Substance Misuse,5105689724,10.11.2021,Drug Misuse Adult- Treatment NP,Payment to Private Contractors,30.00,BOOTS UK LTD
Revenue,Public Health,Public Health,Substance Misuse,5105691661,26.11.2021,Drug Misuse Adult- Treatment NP,Payment to Private Contractors,30.00,BOOTS UK LTD
Revenue,Public Health,Public Health,Sexual Health,5105691663,26.11.2021,Contraception P,Payment to Private Contractors,5.20,BOOTS UK LTD (YLB BEMBRIDGE)
Revenue,Public Health,Public Health,Sexual Health,5105689757,10.11.2021,Contraception P,Payment to Private Contractors,150.50,BOOTS UK LTD (YLB BEMBRIDGE)
Revenue,Public Health,Public Health,Sexual Health,5105689757,10.11.2021,Contraception P,Payment to Private Contractors,20.80,BOOTS UK LTD (YLB BEMBRIDGE)
Revenue,Public Health,Public Health,Sexual Health,5105689757,10.11.2021,Contraception P,Payment to Private Contractors,42.15,BOOTS UK LTD (YLB BEMBRIDGE)
Revenue,Public Health,Public Health,Sexual Health,5105691663,26.11.2021,Contraception P,Payment to Private Contractors,21.50,BOOTS UK LTD (YLB BEMBRIDGE)
Revenue,Public Health,Public Health,Substance Misuse,5105689757,10.11.2021,Drug Misuse Adult- Treatment NP,Payment to Private Contractors,30.00,BOOTS UK LTD (YLB BEMBRIDGE)
Revenue,Public Health,Public Health,Substance Misuse,5105691663,26.11.2021,Drug Misuse Adult- Treatment NP,Payment to Private Contractors,30.00,BOOTS UK LTD (YLB BEMBRIDGE)
Revenue,Adult Services,Adult Social Care,Social Support - Social Isolation/Other,5105689373,17.11.2021,Social Isolation/Other Other ST Support,Professional Services,415.61,BOSTICO INTERNATIONAL
Revenue,Childrens Services,Children's & Education Services,Family Support Services,5105688140,17.11.2021,S17 Child Protection,Professional Services,70.00,BOSTICO INTERNATIONAL
Revenue,Childrens Services,Children's & Education Services,Family Support Services,5105690983,19.11.2021,S17 Child Protection,Professional Services,337.41,BOSTICO INTERNATIONAL
Revenue,Childrens Services,Children's & Education Services,Family Support Services,5105691639,26.11.2021,S17 Child Protection,Professional Services,70.00,BOSTICO INTERNATIONAL
Revenue,Childrens Services,Children's & Education Services,Family Support Services,5105690414,24.11.2021,S17 Child Protection,Professional Services,120.00,BOSTICO INTERNATIONAL
Revenue,Childrens Services,Children's & Education Services,Family Support Services,5105691643,26.11.2021,S17 Child Protection,Professional Services,70.00,BOSTICO INTERNATIONAL
Revenue,Childrens Services,Children's & Education Services,Management & Support Services,5105689376,05.11.2021,Special Discretionary Grants,Charges from Independent Providers,465.75,BOSTICO INTERNATIONAL
Revenue,Childrens Services,Children's & Education Services,Management & Support Services,5105691647,26.11.2021,Special Discretionary Grants,Charges from Independent Providers,278.08,BOSTICO INTERNATIONAL
Revenue,Adult Services,Adult Social Care,Physical Support - adults (18-64),5105685521,03.11.2021,Physical Support Other ST Support 18-64,Professional Services,433.36,BOSTICO INTERNATIONAL
Revenue,Childrens Services,Children's & Education Services,Safeguarding Children/Young Peoples Svs,5105690327,12.11.2021,Commissioning (Children & Families),Payments to Other Local Authorities,626.23,BOURNEMOUTH BOROUGH COUNCIL
Revenue,Childrens Services,Children's & Education Services,Family Support Services,5105690289,12.11.2021,Holiday Activities & Food Programme,Payments to Voluntary and Other Associations,"3,000.00",BRADING COMMUNITY PARTNERSHIP
Revenue,Resources,Central Services,Support Services,5105689321,03.11.2021,ICT Contracts,Computer Maintenance,"9,586.87",BRAMBLE HUB LIMITED
Revenue,Adult Services,Housing Services,Homelessness,5105691059,24.11.2021,Private Rented Sector Leasing Scheme,Accommodation Costs - Leaseholder Payments,746.81,BRAMBLE LETTINGS
Revenue,Adult Services,Housing Services,Homelessness,5105691059,24.11.2021,Private Rented Sector Leasing Scheme,Accommodation Costs - Leaseholder Payments,746.81,BRAMBLE LETTINGS
Revenue,Adult Services,Housing Services,Homelessness,5105691059,24.11.2021,Private Rented Sector Leasing Scheme,Accommodation Costs - Leaseholder Payments,746.81,BRAMBLE LETTINGS
Revenue,Adult Services,Housing Services,Homelessness,5105691059,24.11.2021,Private Rented Sector Leasing Scheme,Accommodation Costs - Leaseholder Payments,746.81,BRAMBLE LETTINGS
Revenue,Adult Services,Housing Services,Homelessness,5105691059,24.11.2021,Private Rented Sector Leasing Scheme,Accommodation Costs - Leaseholder Payments,746.81,BRAMBLE LETTINGS
Revenue,Adult Services,Housing Services,Homelessness,5105691059,24.11.2021,Private Rented Sector Leasing Scheme,Accommodation Costs - Leaseholder Payments,588.38,BRAMBLE LETTINGS
Revenue,Adult Services,Housing Services,Homelessness,5105691059,24.11.2021,Private Rented Sector Leasing Scheme,Accommodation Costs - Leaseholder Payments,588.38,BRAMBLE LETTINGS
Revenue,Adult Services,Housing Services,Homelessness,5105691059,24.11.2021,Private Rented Sector Leasing Scheme,Accommodation Costs - Leaseholder Payments,588.38,BRAMBLE LETTINGS
Revenue,Adult Services,Housing Services,Homelessness,5105691059,24.11.2021,Private Rented Sector Leasing Scheme,Accommodation Costs - Leaseholder Payments,588.38,BRAMBLE LETTINGS
Revenue,Adult Services,Housing Services,Homelessness,5105691059,24.11.2021,Private Rented Sector Leasing Scheme,Accommodation Costs - Leaseholder Payments,588.38,BRAMBLE LETTINGS
Revenue,Adult Services,Housing Services,Homelessness,5105691059,24.11.2021,Private Rented Sector Leasing Scheme,Accommodation Costs - Leaseholder Payments,746.81,BRAMBLE LETTINGS
Revenue,Adult Services,Housing Services,Homelessness,5105691059,24.11.2021,Private Rented Sector Leasing Scheme,Accommodation Costs - Leaseholder Payments,588.38,BRAMBLE LETTINGS
Revenue,Adult Services,Housing Services,Homelessness,5105691059,24.11.2021,Private Rented Sector Leasing Scheme,Accommodation Costs - Leaseholder Payments,746.81,BRAMBLE LETTINGS
Revenue,Adult Services,Housing Services,Homelessness,5105691059,24.11.2021,Private Rented Sector Leasing Scheme,Accommodation Costs - Leaseholder Payments,769.43,BRAMBLE LETTINGS
Revenue,Adult Services,Housing Services,Homelessness,5105691059,24.11.2021,Private Rented Sector Leasing Scheme,Accommodation Costs - Leaseholder Payments,746.81,BRAMBLE LETTINGS
Revenue,Adult Services,Housing Services,Homelessness,5105691059,24.11.2021,Private Rented Sector Leasing Scheme,Accommodation Costs - Leaseholder Payments,746.81,BRAMBLE LETTINGS
Revenue,Adult Services,Housing Services,Homelessness,5105691059,24.11.2021,Private Rented Sector Leasing Scheme,Accommodation Costs - Leaseholder Payments,746.81,BRAMBLE LETTINGS
Revenue,Adult Services,Housing Services,Homelessness,5105691059,24.11.2021,Private Rented Sector Leasing Scheme,Accommodation Costs - Leaseholder Payments,746.81,BRAMBLE LETTINGS
Revenue,Adult Services,Housing Services,Homelessness,5105691059,24.11.2021,Private Rented Sector Leasing Scheme,Accommodation Costs - Leaseholder Payments,746.81,BRAMBLE LETTINGS
Revenue,Adult Services,Housing Services,Homelessness,5105691059,24.11.2021,Private Rented Sector Leasing Scheme,Accommodation Costs - Leaseholder Payments,746.81,BRAMBLE LETTINGS
Revenue,Adult Services,Housing Services,Homelessness,5105691059,24.11.2021,Private Rented Sector Leasing Scheme,Accommodation Costs - Leaseholder Payments,746.81,BRAMBLE LETTINGS
Revenue,Adult Services,Housing Services,Homelessness,5105691059,24.11.2021,Private Rented Sector Leasing Scheme,Accommodation Costs - Leaseholder Payments,746.81,BRAMBLE LETTINGS
Revenue,Adult Services,Housing Services,Homelessness,5105691059,24.11.2021,Private Rented Sector Leasing Scheme,Accommodation Costs - Leaseholder Payments,281.66,BRAMBLE LETTINGS
Revenue,Adult Services,Housing Services,Homelessness,5105691059,24.11.2021,Private Rented Sector Leasing Scheme,Accommodation Costs - Leaseholder Payments,216.66,BRAMBLE LETTINGS
Revenue,Regeneration,Central Services,Central Services to the Public,5105689265,03.11.2021,Welcome Back Fund,Payment to Private Contractors,"2,220.00",BRIGHSTONE LANDSCAPING LTD
Revenue,Regeneration,Central Services,Central Services to the Public,5105689267,03.11.2021,Welcome Back Fund,Payment to Private Contractors,"3,024.00",BRIGHSTONE LANDSCAPING LTD
Revenue,Neighbourhoods,Environmental & Regulatory Services,(Street) Cleansing (not highways),5105691836,26.11.2021,Beach Cleaning,Payment to Private Contractors,160.00,BRIGHSTONE LANDSCAPING LTD
Revenue,Neighbourhoods,Environmental & Regulatory Services,(Street) Cleansing (not highways),5105691681,26.11.2021,Beach Cleaning,Payment to Private Contractors,480.00,BRIGHSTONE LANDSCAPING LTD
Revenue,Neighbourhoods,Environmental & Regulatory Services,(Street) Cleansing (not highways),5105691827,26.11.2021,Beach Cleaning,Beach Management Contract,"2,952.00",BRIGHSTONE LANDSCAPING LTD
Revenue,Neighbourhoods,Environmental & Regulatory Services,(Street) Cleansing (not highways),5105691828,26.11.2021,Beach Cleaning,Beach Management Contract,"-2,952.00",BRIGHSTONE LANDSCAPING LTD
Revenue,Neighbourhoods,Environmental & Regulatory Services,(Street) Cleansing (not highways),5105691829,26.11.2021,Beach Cleaning,Beach Management Contract,"2,952.00",BRIGHSTONE LANDSCAPING LTD
Revenue,Neighbourhoods,Cultural and Related Services,Open Spaces,5105689253,03.11.2021,Countryside Management,Payment to Private Contractors,"1,600.00",BRIGHSTONE LANDSCAPING LTD
Revenue,Neighbourhoods,Environmental & Regulatory Services,Coast Protection,5105690419,17.11.2021,Coast Protection,Payment to Private Contractors,360.00,BRIGHSTONE LANDSCAPING LTD
Revenue,Childrens Services,Children's & Education Services,Other Education and Community Budget,5105691686,26.11.2021,Ex All Saints Primary School site,Payment to Private Contractors,320.00,BRIGHSTONE LANDSCAPING LTD
Revenue,Childrens Services,Children's & Education Services,Other Education and Community Budget,5105689269,03.11.2021,Ex All Saints Primary School site,Payment to Private Contractors,150.00,BRIGHSTONE LANDSCAPING LTD
Revenue,Childrens Services,Children's & Education Services,Other Education and Community Budget,5105690575,17.11.2021,Ex All Saints Primary School site,Payment to Private Contractors,370.00,BRIGHSTONE LANDSCAPING LTD
Revenue,Resources,Central Services,Support Services,5105691988,29.11.2021,Staff Benefits,Payment to Private Contractors,15.00,KCT CHILDCARE LIMITED
Revenue,Childrens Services,Children's & Education Services,Safeguarding Children/Young Peoples Svs,5105690942,19.11.2021,Commissioning (Children & Families),Payments to Other Local Authorities,753.55,BRISTOL CITY COUNCIL
Revenue,Neighbourhoods,Cultural and Related Services,Open Spaces,5105690472,17.11.2021,Rights of Way Operations,Clothing & Laundry,114.50,BIG WIGHT T-SHIRT CO
Revenue,Childrens Services,Children's & Education Services,Other Education and Community Budget,5105688507,03.11.2021,Adult Community Learning,Licences,120.00,BRITISH COMPUTER SOCIETY
Revenue,Childrens Services,Children's & Education Services,Other Education and Community Budget,5105688507,03.11.2021,Adult Community Learning,Licences,24.75,BRITISH COMPUTER SOCIETY
Revenue,Childrens Services,Children's & Education Services,Other Education and Community Budget,5105689380,03.11.2021,Adult Community Learning,Licences,500.00,BRITISH COMPUTER SOCIETY
Revenue,Neighbourhoods,Cultural and Related Services,Culture and Heritage,5105689807,12.11.2021,Archaeology,Operational Equipment,924.96,BRITISH GEOLOGICAL SURVEY (BGS)
Revenue,Adult Services,Adult Social Care,Learning Disability Suppt-adults (18-64),5105691075,24.11.2021,Learning Disability Residential 18-64,Charges from Independent Providers,"7,192.92",BROADHAM CARE LTD
Revenue,Childrens Services,Children's & Education Services,Children Looked After,5105689579,05.11.2021,In-house Fostering,Boarding Out Allowances,337.35,REDACTED PERSONAL DATA
Revenue,Childrens Services,Children's & Education Services,Children Looked After,5105690116,12.11.2021,In-house Fostering,Boarding Out Allowances,337.35,REDACTED PERSONAL DATA
Revenue,Childrens Services,Children's & Education Services,Children Looked After,5105691524,26.11.2021,In-house Fostering,Boarding Out Allowances,337.35,REDACTED PERSONAL DATA
Revenue,Childrens Services,Children's & Education Services,Children Looked After,5105690887,19.11.2021,In-house Fostering,Boarding Out Allowances,337.35,REDACTED PERSONAL DATA
Revenue,Public Health,Public Health,NHS Health Check Programme,5105690923,19.11.2021,NHS Health Check Programme P,Payment to Private Contractors,416.00,BROOKSIDE HEALTH CENTRE
Revenue,Public Health,Public Health,Sexual Health,5105689725,10.11.2021,Long Acting Reversible Contraception,Payment to Private Contractors,"1,945.00",BROOKSIDE HEALTH CENTRE
Revenue,Neighbourhoods,Cultural and Related Services,Recreation and Sport,5105691595,26.11.2021,IOW Festival Costs,Operational Equipment,479.00,BROXAP LTD
Revenue,Neighbourhoods,Cultural and Related Services,Open Spaces,5105691601,26.11.2021,Fort Victoria,Operational Equipment,227.50,BROXAP LTD
Revenue,Neighbourhoods,Cultural and Related Services,Open Spaces,5105691601,26.11.2021,Fort Victoria,Operational Equipment,125.00,BROXAP LTD
Revenue,Adult Services,Adult Social Care,Social Support -Substance Misuse Support,5105691118,24.11.2021,Substance Misuse Residential,Charges from Independent Providers,"2,151.52",BUCKLAND CARE LTD
Revenue,Adult Services,Adult Social Care,Mental Health Support-older people (65+),5105691118,24.11.2021,Mental Health Residential 65+,Charges from Independent Providers,"2,151.52",BUCKLAND CARE LTD
Revenue,Adult Services,Adult Social Care,Support - Memory /Cognition-older people (65+),5105691118,24.11.2021,Memory & Cognition Residential 65+,Charges from Independent Providers,"2,529.52",BUCKLAND CARE LTD
Revenue,Adult Services,Adult Social Care,Support - Memory /Cognition-older people (65+),5105691118,24.11.2021,Memory & Cognition Residential 65+,Charges from Independent Providers,"2,151.52",BUCKLAND CARE LTD
Revenue,Adult Services,Adult Social Care,Support - Memory /Cognition-older people (65+),5105691118,24.11.2021,Memory & Cognition Residential 65+,Charges from Independent Providers,"2,529.52",BUCKLAND CARE LTD
Revenue,Adult Services,Adult Social Care,Support - Memory /Cognition-older people (65+),5105691118,24.11.2021,Memory & Cognition Residential 65+,Charges from Independent Providers,"2,151.52",BUCKLAND CARE LTD
Revenue,Adult Services,Adult Social Care,Support - Memory /Cognition-older people (65+),5105691118,24.11.2021,Memory & Cognition Residential 65+,Charges from Independent Providers,"2,151.52",BUCKLAND CARE LTD
Revenue,Adult Services,Adult Social Care,Support - Memory /Cognition-older people (65+),5105691118,24.11.2021,Memory & Cognition Residential 65+,Charges from Independent Providers,"2,151.52",BUCKLAND CARE LTD
Revenue,Adult Services,Central Services,Emergency Planning,5105691032,24.11.2021,NHS C19 Residential,Charges from Independent Providers,"3,240.16",BUCKLAND CARE LTD
Revenue,Adult Services,Central Services,Emergency Planning,5105689684,05.11.2021,NHS C19 Residential,Charges from Independent Providers,"3,240.16",BUCKLAND CARE LTD
Revenue,Adult Services,Central Services,Emergency Planning,5105689684,05.11.2021,NHS C19 Residential,Charges from Independent Providers,"3,240.16",BUCKLAND CARE LTD
Balance Sheet,Adult Services,Balance Sheet,Balance Sheet,5105691118,24.11.2021,REDACTED PERSONAL DATA,Order Settlement to Bal Sht GL,"2,151.52",BUCKLAND CARE LTD
Revenue,Adult Services,Adult Social Care,Physical Support - older people (65+),5105689684,05.11.2021,Physical Support Residential 65+,Charges from Independent Providers,451.70,BUCKLAND CARE LTD
Revenue,Adult Services,Adult Social Care,Physical Support - older people (65+),5105689684,05.11.2021,Physical Support Residential 65+,Charges from Independent Providers,"7,588.56",BUCKLAND CARE LTD
Revenue,Adult Services,Adult Social Care,Physical Support - older people (65+),5105691735,26.11.2021,Physical Support Residential 65+,Charges from Independent Providers,"1,264.76",BUCKLAND CARE LTD
Revenue,Adult Services,Adult Social Care,Learning Disability Support-older people,5105691118,24.11.2021,Learning Disability Residential 65+,Charges from Independent Providers,"2,529.52",BUCKLAND CARE LTD
Revenue,Adult Services,Adult Social Care,Social Support - Support for Carer,5105691118,24.11.2021,Carers Residential,Charges from Independent Providers,"2,529.52",BUCKLAND CARE LTD
Revenue,Adult Services,Adult Social Care,Social Support - Support for Carer,5105691118,24.11.2021,Carers Residential,Charges from Independent Providers,"2,529.52",BUCKLAND CARE LTD
Revenue,Adult Services,Adult Social Care,Social Support - Support for Carer,5105689684,05.11.2021,Carers Residential,Charges from Independent Providers,451.70,BUCKLAND CARE LTD
Revenue,Adult Services,Adult Social Care,Social Support - Support for Carer,5105689684,05.11.2021,Carers Residential,Charges from Independent Providers,"5,059.04",BUCKLAND CARE LTD
Revenue,Adult Services,Adult Social Care,Physical Support - older people (65+),5105691118,24.11.2021,Physical Support Residential 65+,Charges from Independent Providers,"2,529.52",BUCKLAND CARE LTD
Revenue,Adult Services,Adult Social Care,Physical Support - older people (65+),5105691118,24.11.2021,Physical Support Residential 65+,Charges from Independent Providers,"2,054.64",BUCKLAND CARE LTD
Revenue,Adult Services,Adult Social Care,Physical Support - older people (65+),5105691118,24.11.2021,Physical Support Residential 65+,Charges from Independent Providers,"2,054.64",BUCKLAND CARE LTD
Revenue,Adult Services,Adult Social Care,Physical Support - older people (65+),5105691032,24.11.2021,Physical Support Residential 65+,Charges from Independent Providers,271.02,BUCKLAND CARE LTD
Revenue,Adult Services,Adult Social Care,Physical Support - older people (65+),5105691032,24.11.2021,Physical Support Residential 65+,Charges from Independent Providers,"2,529.52",BUCKLAND CARE LTD
Revenue,Adult Services,Adult Social Care,Physical Support - older people (65+),5105691255,24.11.2021,Physical Support Residential 65+,Charges from Independent Providers,"3,081.96",BUCKLAND CARE LTD
Revenue,Adult Services,Adult Social Care,Physical Support - older people (65+),5105691118,24.11.2021,Physical Support Residential 65+,Charges from Independent Providers,"2,529.52",BUCKLAND CARE LTD
Revenue,Adult Services,Adult Social Care,Physical Support - older people (65+),5105691118,24.11.2021,Physical Support Residential 65+,Charges from Independent Providers,"2,054.64",BUCKLAND CARE LTD
Revenue,Adult Services,Adult Social Care,Physical Support - older people (65+),5105691118,24.11.2021,Physical Support Residential 65+,Charges from Independent Providers,"2,054.64",BUCKLAND CARE LTD
Revenue,Adult Services,Adult Social Care,Physical Support - older people (65+),5105691118,24.11.2021,Physical Support Residential 65+,Charges from Independent Providers,"2,151.52",BUCKLAND CARE LTD
Revenue,Adult Services,Adult Social Care,Physical Support - older people (65+),5105691118,24.11.2021,Physical Support Residential 65+,Charges from Independent Providers,"2,529.52",BUCKLAND CARE LTD
Revenue,Adult Services,Adult Social Care,Physical Support - older people (65+),5105691118,24.11.2021,Physical Support Residential 65+,Charges from Independent Providers,"2,529.52",BUCKLAND CARE LTD
Revenue,Adult Services,Adult Social Care,Physical Support - older people (65+),5105691118,24.11.2021,Physical Support Residential 65+,Charges from Independent Providers,"2,529.52",BUCKLAND CARE LTD
Revenue,Adult Services,Adult Social Care,Physical Support - older people (65+),5105691118,24.11.2021,Physical Support Residential 65+,Charges from Independent Providers,"2,529.52",BUCKLAND CARE LTD
Revenue,Adult Services,Adult Social Care,Physical Support - older people (65+),5105691118,24.11.2021,Physical Support Residential 65+,Charges from Independent Providers,"2,054.64",BUCKLAND CARE LTD
Revenue,Adult Services,Adult Social Care,Physical Support - older people (65+),5105691118,24.11.2021,Physical Support Residential 65+,Charges from Independent Providers,"2,529.52",BUCKLAND CARE LTD
Revenue,Adult Services,Adult Social Care,Physical Support - older people (65+),5105691118,24.11.2021,Physical Support Residential 65+,Charges from Independent Providers,"2,529.52",BUCKLAND CARE LTD
Revenue,Adult Services,Adult Social Care,Commissioning & Service Delivery,5105691108,24.11.2021,"Funded Nursing Care, Registered Nursing Care Contribution",Charges from Independent Providers,750.40,BUCKLAND CARE LTD
Revenue,Adult Services,Adult Social Care,Commissioning & Service Delivery,5105691108,24.11.2021,"Funded Nursing Care, Registered Nursing Care Contribution",Charges from Independent Providers,750.40,BUCKLAND CARE LTD
Revenue,Adult Services,Adult Social Care,Commissioning & Service Delivery,5105691108,24.11.2021,"Funded Nursing Care, Registered Nursing Care Contribution",Charges from Independent Providers,750.40,BUCKLAND CARE LTD
Revenue,Adult Services,Adult Social Care,Commissioning & Service Delivery,5105691108,24.11.2021,"Funded Nursing Care, Registered Nursing Care Contribution",Charges from Independent Providers,750.40,BUCKLAND CARE LTD
Revenue,Adult Services,Adult Social Care,Commissioning & Service Delivery,5105691108,24.11.2021,"Funded Nursing Care, Registered Nursing Care Contribution",Charges from Independent Providers,750.40,BUCKLAND CARE LTD
Revenue,Adult Services,Adult Social Care,Commissioning & Service Delivery,5105691108,24.11.2021,"Funded Nursing Care, Registered Nursing Care Contribution",Charges from Independent Providers,750.40,BUCKLAND CARE LTD
Revenue,Adult Services,Adult Social Care,Commissioning & Service Delivery,5105691108,24.11.2021,"Funded Nursing Care, Registered Nursing Care Contribution",Charges from Independent Providers,750.40,BUCKLAND CARE LTD
Revenue,Adult Services,Adult Social Care,Commissioning & Service Delivery,5105690501,17.11.2021,"Funded Nursing Care, Registered Nursing Care Contribution",Charges from Independent Providers,"5,762.00",BUCKLAND CARE LTD
Revenue,Adult Services,Adult Social Care,Commissioning & Service Delivery,5105690501,17.11.2021,"Funded Nursing Care, Registered Nursing Care Contribution",Charges from Independent Providers,"2,867.60",BUCKLAND CARE LTD
Revenue,Adult Services,Adult Social Care,Support - Memory /Cognition-older people (65+),5105691108,24.11.2021,Memory & Cognition Residential 65+,Charges from Independent Providers,"2,529.52",BUCKLAND CARE LTD
Revenue,Adult Services,Adult Social Care,Learning Disability Suppt-adults (18-64),5105691108,24.11.2021,Learning Disability Nursing 18-64,Charges from Independent Providers,"5,712.00",BUCKLAND CARE LTD
Revenue,Adult Services,Adult Social Care,Learning Disability Suppt-adults (18-64),5105691108,24.11.2021,Learning Disability Nursing 18-64,Charges from Independent Providers,"2,835.00",BUCKLAND CARE LTD
Revenue,Adult Services,Adult Social Care,Commissioning & Service Delivery,5105689430,05.11.2021,FNC IWC funded clients,Charges from Independent Providers,"2,787.20",BUCKLAND CARE LTD
Revenue,Adult Services,Adult Social Care,Commissioning & Service Delivery,5105689187,03.11.2021,FNC IWC funded clients,Charges from Independent Providers,134.00,BUCKLAND CARE LTD
Revenue,Adult Services,Adult Social Care,Commissioning & Service Delivery,5105691108,24.11.2021,FNC IWC funded clients,Regular Respite Care,750.40,BUCKLAND CARE LTD
Revenue,Adult Services,Adult Social Care,Commissioning & Service Delivery,5105691734,26.11.2021,FNC IWC funded clients,Charges from Independent Providers,26.80,BUCKLAND CARE LTD
Revenue,Adult Services,Adult Social Care,Commissioning & Service Delivery,5105691253,24.11.2021,FNC IWC funded clients,Charges from Independent Providers,160.80,BUCKLAND CARE LTD
Revenue,Adult Services,Adult Social Care,Commissioning & Service Delivery,5105690959,19.11.2021,FNC IWC funded clients,Charges from Independent Providers,723.60,BUCKLAND CARE LTD
Revenue,Adult Services,Adult Social Care,Commissioning & Service Delivery,5105691108,24.11.2021,FNC IWC funded clients,Charges from Independent Providers,750.40,BUCKLAND CARE LTD
Revenue,Adult Services,Adult Social Care,Commissioning & Service Delivery,5105691108,24.11.2021,FNC IWC funded clients,Charges from Independent Providers,750.40,BUCKLAND CARE LTD
Revenue,Adult Services,Adult Social Care,Commissioning & Service Delivery,5105691108,24.11.2021,FNC IWC funded clients,Charges from Independent Providers,750.40,BUCKLAND CARE LTD
Revenue,Adult Services,Adult Social Care,Commissioning & Service Delivery,5105691108,24.11.2021,FNC IWC funded clients,Charges from Independent Providers,750.40,BUCKLAND CARE LTD
Revenue,Adult Services,Adult Social Care,Commissioning & Service Delivery,5105691108,24.11.2021,FNC IWC funded clients,Charges from Independent Providers,750.40,BUCKLAND CARE LTD
Revenue,Adult Services,Adult Social Care,Commissioning & Service Delivery,5105691108,24.11.2021,FNC IWC funded clients,Charges from Independent Providers,750.40,BUCKLAND CARE LTD
Revenue,Adult Services,Adult Social Care,Commissioning & Service Delivery,5105691108,24.11.2021,FNC IWC funded clients,Charges from Independent Providers,750.40,BUCKLAND CARE LTD
Revenue,Adult Services,Adult Social Care,Commissioning & Service Delivery,5105691108,24.11.2021,FNC IWC funded clients,Charges from Independent Providers,750.40,BUCKLAND CARE LTD
Revenue,Adult Services,Adult Social Care,Commissioning & Service Delivery,5105691108,24.11.2021,FNC IWC funded clients,Charges from Independent Providers,750.40,BUCKLAND CARE LTD
Revenue,Adult Services,Adult Social Care,Commissioning & Service Delivery,5105691108,24.11.2021,FNC IWC funded clients,Charges from Independent Providers,750.40,BUCKLAND CARE LTD
Revenue,Adult Services,Adult Social Care,Commissioning & Service Delivery,5105691108,24.11.2021,FNC IWC funded clients,Charges from Independent Providers,750.40,BUCKLAND CARE LTD
Revenue,Adult Services,Adult Social Care,Commissioning & Service Delivery,5105691108,24.11.2021,FNC IWC funded clients,Charges from Independent Providers,750.40,BUCKLAND CARE LTD
Revenue,Adult Services,Adult Social Care,Physical Support - older people (65+),5105691253,24.11.2021,Physical Support Nursing 65+,Charges from Independent Providers,607.50,BUCKLAND CARE LTD
Revenue,Adult Services,Adult Social Care,Physical Support - older people (65+),5105691108,24.11.2021,Physical Support Nursing 65+,Charges from Independent Providers,"2,835.00",BUCKLAND CARE LTD
Revenue,Adult Services,Adult Social Care,Physical Support - older people (65+),5105691108,24.11.2021,Physical Support Nursing 65+,Charges from Independent Providers,"2,835.00",BUCKLAND CARE LTD
Revenue,Adult Services,Adult Social Care,Physical Support - older people (65+),5105691108,24.11.2021,Physical Support Nursing 65+,Charges from Independent Providers,"2,835.00",BUCKLAND CARE LTD
Revenue,Adult Services,Adult Social Care,Physical Support - older people (65+),5105691108,24.11.2021,Physical Support Nursing 65+,Charges from Independent Providers,"2,835.00",BUCKLAND CARE LTD
Revenue,Adult Services,Adult Social Care,Physical Support - older people (65+),5105691108,24.11.2021,Physical Support Nursing 65+,Charges from Independent Providers,"2,835.00",BUCKLAND CARE LTD
Revenue,Adult Services,Adult Social Care,Physical Support - older people (65+),5105691108,24.11.2021,Physical Support Nursing 65+,Charges from Independent Providers,"2,835.00",BUCKLAND CARE LTD
Revenue,Adult Services,Adult Social Care,Physical Support - older people (65+),5105691108,24.11.2021,Physical Support Nursing 65+,Charges from Independent Providers,"2,835.00",BUCKLAND CARE LTD
Revenue,Adult Services,Adult Social Care,Physical Support - older people (65+),5105691108,24.11.2021,Physical Support Nursing 65+,Charges from Independent Providers,"2,835.00",BUCKLAND CARE LTD
Revenue,Adult Services,Adult Social Care,Physical Support - older people (65+),5105690959,19.11.2021,Physical Support Nursing 65+,Charges from Independent Providers,"2,733.75",BUCKLAND CARE LTD
Revenue,Adult Services,Adult Social Care,Physical Support - older people (65+),5105689430,05.11.2021,Physical Support Nursing 65+,Charges from Independent Providers,"10,530.00",BUCKLAND CARE LTD
Revenue,Adult Services,Adult Social Care,Physical Support - older people (65+),5105691734,26.11.2021,Physical Support Nursing 65+,Charges from Independent Providers,101.25,BUCKLAND CARE LTD
Revenue,Adult Services,Adult Social Care,Physical Support - adults (18-64),5105691108,24.11.2021,Physical Support Nursing 18-64,Charges from Independent Providers,"2,835.00",BUCKLAND CARE LTD
Revenue,Adult Services,Adult Social Care,Commissioning & Service Delivery,5105691108,24.11.2021,CHC Nursing Care,Charges from Independent Providers,"3,585.40",BUCKLAND CARE LTD
Revenue,Adult Services,Adult Social Care,Commissioning & Service Delivery,5105691108,24.11.2021,CHC Nursing Care,Charges from Independent Providers,"3,585.40",BUCKLAND CARE LTD
Revenue,Adult Services,Adult Social Care,Commissioning & Service Delivery,5105691108,24.11.2021,CHC Nursing Care,Charges from Independent Providers,"3,585.40",BUCKLAND CARE LTD
Revenue,Adult Services,Adult Social Care,Commissioning & Service Delivery,5105691108,24.11.2021,CHC Nursing Care,Charges from Independent Providers,"3,585.40",BUCKLAND CARE LTD
Revenue,Adult Services,Adult Social Care,Commissioning & Service Delivery,5105691108,24.11.2021,CHC Nursing Care,Charges from Independent Providers,"13,224.96",BUCKLAND CARE LTD
Revenue,Adult Services,Adult Social Care,Commissioning & Service Delivery,5105691108,24.11.2021,CHC Nursing Care,Charges from Independent Providers,"3,585.40",BUCKLAND CARE LTD
Revenue,Adult Services,Adult Social Care,Commissioning & Service Delivery,5105691108,24.11.2021,CHC Nursing Care,Charges from Independent Providers,"3,585.40",BUCKLAND CARE LTD
Revenue,Adult Services,Adult Social Care,Commissioning & Service Delivery,5105691108,24.11.2021,CHC Nursing Care,Charges from Independent Providers,"11,424.00",BUCKLAND CARE LTD
Revenue,Adult Services,Adult Social Care,Commissioning & Service Delivery,5105691108,24.11.2021,CHC Nursing Care,Charges from Independent Providers,"3,585.40",BUCKLAND CARE LTD
Revenue,Adult Services,Adult Social Care,Commissioning & Service Delivery,5105691108,24.11.2021,CHC Nursing Care,Charges from Independent Providers,"14,985.60",BUCKLAND CARE LTD
Revenue,Adult Services,Adult Social Care,Physical Support - older people (65+),5105691108,24.11.2021,Physical Support Residential 65+,Charges from Independent Providers,"2,529.52",BUCKLAND CARE LTD
Revenue,Adult Services,Adult Social Care,Support - Memory /Cognition-older people (65+),5105691108,24.11.2021,Memory & Cognition Nursing 65+,Charges from Independent Providers,"3,271.24",BUCKLAND CARE LTD
Revenue,Adult Services,Adult Social Care,Support - Memory /Cognition-older people (65+),5105691108,24.11.2021,Memory & Cognition Nursing 65+,Charges from Independent Providers,"2,835.00",BUCKLAND CARE LTD
Revenue,Adult Services,Adult Social Care,Support - Memory /Cognition-older people (65+),5105691108,24.11.2021,Memory & Cognition Nursing 65+,Regular Respite Care,"2,835.00",BUCKLAND CARE LTD
Revenue,Adult Services,Adult Social Care,Physical Support - older people (65+),5105691130,24.11.2021,Physical Support Nursing 65+,Charges from Independent Providers,"3,953.88",BUPA CARE HOME (BNH) LTD
Capital,Place,Capital,Capital,5105691821,26.11.2021,Parks and Gardens Capital,External Design and Supervision Fees,"1,250.00",BUREAU VERITAS BUILDING CONTROL UK
Capital,Place,Capital,Capital,5105689810,10.11.2021,Parks and Gardens Capital,External Design and Supervision Fees,"1,250.00",BUREAU VERITAS BUILDING CONTROL UK
Revenue,Childrens Services,Children's & Education Services,Children Looked After,5105691535,26.11.2021,Leaving Care Costs,Support Children,19.99,REDACTED PERSONAL DATA
Revenue,Childrens Services,Children's & Education Services,Children Looked After,5105690766,19.11.2021,Special Guardianship Order Costs,Support Children,161.49,REDACTED PERSONAL DATA
Revenue,Childrens Services,Children's & Education Services,Children Looked After,5105689998,12.11.2021,Special Guardianship Order Costs,Support Children,161.49,REDACTED PERSONAL DATA
Revenue,Childrens Services,Children's & Education Services,Children Looked After,5105691406,26.11.2021,Special Guardianship Order Costs,Support Children,161.49,REDACTED PERSONAL DATA
Revenue,Childrens Services,Children's & Education Services,Children Looked After,5105689459,05.11.2021,Special Guardianship Order Costs,Support Children,161.49,REDACTED PERSONAL DATA
Revenue,Childrens Services,Children's & Education Services,Children Looked After,5105690789,19.11.2021,Children placed with Family&Friends,Boarding Out Allowances,247.89,REDACTED PERSONAL DATA
Revenue,Childrens Services,Children's & Education Services,Children Looked After,5105690021,12.11.2021,Children placed with Family&Friends,Boarding Out Allowances,247.89,REDACTED PERSONAL DATA
Revenue,Childrens Services,Children's & Education Services,Children Looked After,5105689483,05.11.2021,Children placed with Family&Friends,Boarding Out Allowances,247.89,REDACTED PERSONAL DATA
Revenue,Childrens Services,Children's & Education Services,Children Looked After,5105691429,26.11.2021,Children placed with Family&Friends,Boarding Out Allowances,247.89,REDACTED PERSONAL DATA
Revenue,Childrens Services,Children's & Education Services,Children Looked After,5105691423,26.11.2021,Adoption Costs,Support Children,200.83,REDACTED PERSONAL DATA
Revenue,Childrens Services,Children's & Education Services,Children Looked After,5105691423,26.11.2021,Adoption Costs,Support Children,168.09,REDACTED PERSONAL DATA
Revenue,Childrens Services,Children's & Education Services,Children Looked After,5105690783,19.11.2021,Adoption Costs,Support Children,200.83,REDACTED PERSONAL DATA
Revenue,Childrens Services,Children's & Education Services,Children Looked After,5105690783,19.11.2021,Adoption Costs,Support Children,168.09,REDACTED PERSONAL DATA
Revenue,Childrens Services,Children's & Education Services,Children Looked After,5105690015,12.11.2021,Adoption Costs,Support Children,200.83,REDACTED PERSONAL DATA
Revenue,Childrens Services,Children's & Education Services,Children Looked After,5105690015,12.11.2021,Adoption Costs,Support Children,168.09,REDACTED PERSONAL DATA
Revenue,Childrens Services,Children's & Education Services,Children Looked After,5105689477,05.11.2021,Adoption Costs,Support Children,200.83,REDACTED PERSONAL DATA
Revenue,Childrens Services,Children's & Education Services,Children Looked After,5105689477,05.11.2021,Adoption Costs,Support Children,168.09,REDACTED PERSONAL DATA
Revenue,Childrens Services,Children's & Education Services,Children Looked After,5105690005,12.11.2021,Special Guardianship Order Costs,Support Children,31.36,REDACTED PERSONAL DATA
Revenue,Childrens Services,Children's & Education Services,Children Looked After,5105689466,05.11.2021,Special Guardianship Order Costs,Support Children,31.36,REDACTED PERSONAL DATA
Revenue,Childrens Services,Children's & Education Services,Children Looked After,5105690773,19.11.2021,Special Guardianship Order Costs,Support Children,31.36,REDACTED PERSONAL DATA
Revenue,Childrens Services,Children's & Education Services,Children Looked After,5105691413,26.11.2021,Special Guardianship Order Costs,Support Children,31.36,REDACTED PERSONAL DATA
Revenue,Childrens Services,Children's & Education Services,Children Looked After,5105690787,19.11.2021,In-house Fostering,Boarding Out Allowances,337.35,REDACTED PERSONAL DATA
Revenue,Childrens Services,Children's & Education Services,Children Looked After,5105690787,19.11.2021,In-house Fostering,Boarding Out Allowances,247.89,REDACTED PERSONAL DATA
Revenue,Childrens Services,Children's & Education Services,Children Looked After,5105690787,19.11.2021,In-house Fostering,Boarding Out Allowances,247.89,REDACTED PERSONAL DATA
Revenue,Childrens Services,Children's & Education Services,Children Looked After,5105690019,12.11.2021,In-house Fostering,Boarding Out Allowances,337.35,REDACTED PERSONAL DATA
Revenue,Childrens Services,Children's & Education Services,Children Looked After,5105690019,12.11.2021,In-house Fostering,Boarding Out Allowances,247.89,REDACTED PERSONAL DATA
Revenue,Childrens Services,Children's & Education Services,Children Looked After,5105690019,12.11.2021,In-house Fostering,Boarding Out Allowances,247.89,REDACTED PERSONAL DATA
Revenue,Childrens Services,Children's & Education Services,Children Looked After,5105689481,05.11.2021,In-house Fostering,Boarding Out Allowances,337.35,REDACTED PERSONAL DATA
Revenue,Childrens Services,Children's & Education Services,Children Looked After,5105689481,05.11.2021,In-house Fostering,Boarding Out Allowances,247.89,REDACTED PERSONAL DATA
Revenue,Childrens Services,Children's & Education Services,Children Looked After,5105689481,05.11.2021,In-house Fostering,Boarding Out Allowances,247.89,REDACTED PERSONAL DATA
Revenue,Childrens Services,Children's & Education Services,Children Looked After,5105691427,26.11.2021,In-house Fostering,Boarding Out Allowances,337.35,REDACTED PERSONAL DATA
Revenue,Childrens Services,Children's & Education Services,Children Looked After,5105691427,26.11.2021,In-house Fostering,Boarding Out Allowances,247.89,REDACTED PERSONAL DATA
Revenue,Childrens Services,Children's & Education Services,Children Looked After,5105691427,26.11.2021,In-house Fostering,Boarding Out Allowances,247.89,REDACTED PERSONAL DATA
Revenue,Childrens Services,Children's & Education Services,Children Looked After,5105689493,05.11.2021,Special Guardianship Order Costs,Support Children,213.30,REDACTED PERSONAL DATA
Revenue,Childrens Services,Children's & Education Services,Children Looked After,5105690799,19.11.2021,Special Guardianship Order Costs,Support Children,213.30,REDACTED PERSONAL DATA
Revenue,Childrens Services,Children's & Education Services,Children Looked After,5105690031,12.11.2021,Special Guardianship Order Costs,Support Children,213.30,REDACTED PERSONAL DATA
Revenue,Childrens Services,Children's & Education Services,Children Looked After,5105691439,26.11.2021,Special Guardianship Order Costs,Support Children,213.30,REDACTED PERSONAL DATA
Revenue,Childrens Services,Children's & Education Services,Children Looked After,5105690754,19.11.2021,In-house Fostering,Boarding Out Allowances,481.93,REDACTED PERSONAL DATA
Revenue,Childrens Services,Children's & Education Services,Children Looked After,5105690760,19.11.2021,In-house Fostering,Boarding Out Allowances,290.48,REDACTED PERSONAL DATA
Revenue,Childrens Services,Children's & Education Services,Children Looked After,5105690760,19.11.2021,In-house Fostering,Boarding Out Allowances,337.35,REDACTED PERSONAL DATA
Revenue,Childrens Services,Children's & Education Services,Children Looked After,5105689992,12.11.2021,In-house Fostering,Boarding Out Allowances,290.48,REDACTED PERSONAL DATA
Revenue,Childrens Services,Children's & Education Services,Children Looked After,5105689992,12.11.2021,In-house Fostering,Boarding Out Allowances,337.35,REDACTED PERSONAL DATA
Revenue,Childrens Services,Children's & Education Services,Children Looked After,5105689453,05.11.2021,In-house Fostering,Boarding Out Allowances,290.48,REDACTED PERSONAL DATA
Revenue,Childrens Services,Children's & Education Services,Children Looked After,5105689453,05.11.2021,In-house Fostering,Boarding Out Allowances,337.35,REDACTED PERSONAL DATA
Revenue,Childrens Services,Children's & Education Services,Children Looked After,5105691400,26.11.2021,In-house Fostering,Boarding Out Allowances,290.48,REDACTED PERSONAL DATA
Revenue,Childrens Services,Children's & Education Services,Children Looked After,5105691400,26.11.2021,In-house Fostering,Boarding Out Allowances,337.35,REDACTED PERSONAL DATA
Revenue,Childrens Services,Children's & Education Services,Children Looked After,5105690750,19.11.2021,In-house Fostering,Boarding Out Allowances,320.85,REDACTED PERSONAL DATA
Revenue,Childrens Services,Children's & Education Services,Children Looked After,5105689983,12.11.2021,In-house Fostering,Boarding Out Allowances,320.85,REDACTED PERSONAL DATA
Revenue,Childrens Services,Children's & Education Services,Children Looked After,5105689444,05.11.2021,In-house Fostering,Boarding Out Allowances,320.85,REDACTED PERSONAL DATA
Revenue,Childrens Services,Children's & Education Services,Children Looked After,5105691391,26.11.2021,In-house Fostering,Boarding Out Allowances,320.85,REDACTED PERSONAL DATA
Revenue,Childrens Services,Children's & Education Services,Children Looked After,5105689472,05.11.2021,Special Guardianship Order Costs,Support Children,200.83,REDACTED PERSONAL DATA
Revenue,Childrens Services,Children's & Education Services,Children Looked After,5105690764,19.11.2021,Adoption Costs,Support Children,207.13,REDACTED PERSONAL DATA
Revenue,Childrens Services,Children's & Education Services,Children Looked After,5105689996,12.11.2021,Adoption Costs,Support Children,207.13,REDACTED PERSONAL DATA
Revenue,Childrens Services,Children's & Education Services,Children Looked After,5105689457,05.11.2021,Adoption Costs,Support Children,207.13,REDACTED PERSONAL DATA
Revenue,Childrens Services,Children's & Education Services,Children Looked After,5105691404,26.11.2021,Adoption Costs,Support Children,207.13,REDACTED PERSONAL DATA
Revenue,Regeneration,Planning services,Economic Development,5105690209,12.11.2021,Director of Regeneration,Publications,"2,500.00",CACI LIMITED
Revenue,Childrens Services,Children's & Education Services,Support Services,5105689833,12.11.2021,Learning & Development Running Costs,Gas,14.71,CALOR GAS LIMITED
Revenue,Neighbourhoods,Cultural and Related Services,Open Spaces,5105689832,10.11.2021,Rights of Way Operations,Gas,14.71,CALOR GAS LIMITED
Revenue,Adult Services,Adult Social Care,Learning Disability Suppt-adults (18-64),5105689820,10.11.2021,Learning Disability Residential 18-64,Charges from Independent Providers,"12,464.34",CAMBIAN ASPERGER SYNDROME SERVICES LTD
Revenue,Childrens Services,Children's & Education Services,Post-16 Provision,5105689820,10.11.2021,Post 16 Independ. & Non-Maint. Special Schls & Independ. Specialist Provision,Charges from Independent Providers,"6,461.16",CAMBIAN ASPERGER SYNDROME SERVICES LTD
Revenue,Childrens Services,Children's & Education Services,Children Looked After,5105690192,17.11.2021,Purchased Residential,Charges from Independent Providers,"19,500.00",CAMBIAN CHILDCARE LTD
Revenue,Childrens Services,Children's & Education Services,Children Looked After,5105690170,12.11.2021,Purchased Residential,Charges from Independent Providers,"16,928.70",CAMBIAN CHILDCARE LTD
Revenue,Childrens Services,Children's & Education Services,Children Looked After,5105690183,12.11.2021,Purchased Residential,Charges from Independent Providers,"19,928.70",CAMBIAN CHILDCARE LTD
Revenue,Childrens Services,Children's & Education Services,Children Looked After,5105690186,12.11.2021,Purchased Residential,Charges from Independent Providers,"18,000.00",CAMBIAN CHILDCARE LTD
Revenue,Childrens Services,Children's & Education Services,Management & Support Services,5105690166,12.11.2021,Independent Schools Non-Special Educational Needs,Charges from Independent Providers,"3,428.70",CAMBIAN CHILDCARE LTD
Revenue,Childrens Services,Children's & Education Services,Safeguarding Children/Young Peoples Svs,5105690536,17.11.2021,Court Work & Consultancy Services,Professional Services,132.50,CANSFORD LABORATORIES LTD
Revenue,Neighbourhoods,Highways and Transport Services,"Airports, Harbours & Toll Facilities",5105689633,05.11.2021,Ferry Operation,Payment to Private Contractors,40.50,CAPCOM LAND SEA & AIR COMMUN.LTD
Revenue,Neighbourhoods,Highways and Transport Services,"Airports, Harbours & Toll Facilities",5105689634,05.11.2021,Ferry Operation,Payment to Private Contractors,-40.50,CAPCOM LAND SEA & AIR COMMUN.LTD
Revenue,Neighbourhoods,Highways and Transport Services,"Airports, Harbours & Toll Facilities",5105689635,05.11.2021,Ferry Operation,Payment to Private Contractors,40.50,CAPCOM LAND SEA & AIR COMMUN.LTD
Revenue,Childrens Services,Children's & Education Services,Family Support Services,5105691796,26.11.2021,Short Breaks,Charges from Independent Providers,"1,723.86",CARE CONNECT IOW CIC
Revenue,Adult Services,Adult Social Care,Social Support - Support for Carer,5105690524,17.11.2021,Westminster House,Grounds Maintenance,270.00,CARE IN THE GARDEN
Revenue,Adult Services,Adult Social Care,Learning Disab Supp (to be reallocated),5105690524,17.11.2021,Plean Dene,Grounds Maintenance,504.00,CARE IN THE GARDEN
Revenue,Adult Services,Adult Social Care,Central Codes (to be reallocated),5105690311,12.11.2021,Gouldings Resource Centre,Professional Subscriptions,"5,023.00",CARE QUALITY COMMISSION
Revenue,Adult Services,Adult Social Care,Social Support - Support for Carer,5105690311,12.11.2021,Westminster House,Professional Subscriptions,816.00,CARE QUALITY COMMISSION
Revenue,Adult Services,Adult Social Care,Learning Disab Supp (to be reallocated),5105690311,12.11.2021,Plean Dene,Professional Subscriptions,"1,634.00",CARE QUALITY COMMISSION
Revenue,Adult Services,Adult Social Care,Learning Disab Supp (to be reallocated),5105690311,12.11.2021,Saxonbury,Professional Subscriptions,816.00,CARE QUALITY COMMISSION
Revenue,Adult Services,Adult Social Care,Central Codes (to be reallocated),5105690311,12.11.2021,Community Reablement,Professional Subscriptions,"6,430.00",CARE QUALITY COMMISSION
Revenue,Adult Services,Adult Social Care,Central Codes (to be reallocated),5105690311,12.11.2021,Adelaide Resource Centre,Professional Subscriptions,"3,268.00",CARE QUALITY COMMISSION
Revenue,Adult Services,Adult Social Care,Social Care Activities,5105690311,12.11.2021,ASC Social Work Out of Hours,Professional Subscriptions,402.00,CARE QUALITY COMMISSION
Revenue,Adult Services,Adult Social Care,Commissioning & Service Delivery,5105691990,29.11.2021,CHC Nursing Care,Charges from Independent Providers,471.45,CAREBASE (GUILDFORD) LTD
Revenue,Adult Services,Adult Social Care,Commissioning & Service Delivery,5105691260,24.11.2021,CHC Nursing Care,Charges from Independent Providers,"4,400.20",CAREBASE (GUILDFORD) LTD
Revenue,Adult Services,Adult Social Care,Social Support - Support for Carer,5105690345,24.11.2021,BCF Carers Services,Grants to External Bodies,"70,361.50",CARERS IW
Revenue,Neighbourhoods,Cultural and Related Services,Recreation and Sport,5105690168,11.11.2021,Medina Leisure Centre,Maintenance of Operational Equipment,-625.69,CARETECH UK LTD
Revenue,Neighbourhoods,Cultural and Related Services,Recreation and Sport,5105690169,11.11.2021,Medina Leisure Centre,Maintenance of Operational Equipment,625.69,CARETECH UK LTD
Revenue,Neighbourhoods,Cultural and Related Services,Recreation and Sport,5105690167,11.11.2021,The Heights,Maintenance of Operational Equipment,639.92,CARETECH UK LTD
Revenue,Neighbourhoods,Cultural and Related Services,Recreation and Sport,5105690165,11.11.2021,The Heights,Maintenance of Operational Equipment,-639.92,CARETECH UK LTD
Revenue,Childrens Services,Children's & Education Services,Children Looked After,5105690268,12.11.2021,Support for LAC CWD,Support Children,325.00,CARISBROOKE CEP SCHOOL
Revenue,Resources,Central Services,Support Services,5105691069,24.11.2021,Staff Benefits,Payment to Private Contractors,90.00,CARISBROOKE CEP SCHOOL
Revenue,Childrens Services,Children's & Education Services,Family Support Services,5105691782,26.11.2021,S17 Child Protection,Professional Services,"2,340.00",CARTER BROWN THE EXPERT SERVICE
Revenue,Childrens Services,Children's & Education Services,Children Looked After,5105692034,29.11.2021,Support for LAC CWD,Professional Services,"2,318.40",CARTER BROWN THE EXPERT SERVICE
Revenue,Neighbourhoods,Cultural and Related Services,Culture and Heritage,5105688552,03.11.2021,Dinosaur Isle Museum (Sandown Geology),Stock Purchases,432.36,CASA GRANDE LIMITED
Revenue,Regeneration,Central Services,Support Services,5105689282,03.11.2021,Aylesford Access 420,Marketing Costs,25.00,CAXTONS COMMERCIAL LIMITED
Revenue,Regeneration,Central Services,Support Services,5105690979,19.11.2021,Aylesford Access 420,Professional Services,"1,388.30",CAXTONS COMMERCIAL LIMITED
Revenue,Neighbourhoods,Environmental & Regulatory Services,Service Management and Support Services,5105691907,29.11.2021,Environment officers,Vehicle Maintenance Costs,22.48,CENTRAL GARAGE (NEWPORT) LTD
Revenue,Resources,Central Services,Support Services,5105691714,26.11.2021,Specialist Cross-Council Training,Training,390.00,CENTRE FOR PUBLIC SCRUTINY
Revenue,Adult Services,Housing Services,Homelessness,5105690590,17.11.2021,B&B Properties,Accommodation Costs - Bed & Breakfast,440.00,CHANNEL VIEW HOTEL
Revenue,Neighbourhoods,Cultural and Related Services,Library Service,5105691727,26.11.2021,Cowes Library,Property Services - Day to day Maintenance,34.00,CHANT LOCK & SECURITY SERVICE
Revenue,Neighbourhoods,Cultural and Related Services,Recreation and Sport,5105690341,12.11.2021,Beach Safety & Inspection / Beach Awards,Operational Equipment,67.97,CHANT LOCK & SECURITY SERVICE
Revenue,Neighbourhoods,Cultural and Related Services,Recreation and Sport,5105690935,19.11.2021,The Heights,Property Services - Day to day Maintenance,164.92,CHANT LOCK & SECURITY SERVICE
Revenue,Adult Services,Adult Social Care,Central Codes (to be reallocated),5105689257,03.11.2021,Gouldings Resource Centre,Catering Purchases,57.70,CHAPEL NURSERIES
Revenue,Adult Services,Adult Social Care,Central Codes (to be reallocated),5105689259,03.11.2021,Gouldings Resource Centre,Catering Purchases,65.20,CHAPEL NURSERIES
Revenue,Adult Services,Adult Social Care,Central Codes (to be reallocated),5105689260,03.11.2021,Gouldings Resource Centre,Catering Purchases,45.40,CHAPEL NURSERIES
Revenue,Adult Services,Adult Social Care,Central Codes (to be reallocated),5105691597,26.11.2021,Gouldings Resource Centre,Catering Purchases,67.40,CHAPEL NURSERIES
Revenue,Adult Services,Adult Social Care,Central Codes (to be reallocated),5105692038,29.11.2021,Gouldings Resource Centre,Catering Purchases,38.40,CHAPEL NURSERIES
Revenue,Adult Services,Adult Social Care,Central Codes (to be reallocated),5105692044,29.11.2021,Gouldings Resource Centre,Catering Purchases,52.70,CHAPEL NURSERIES
Revenue,Adult Services,Adult Social Care,Central Codes (to be reallocated),5105692045,29.11.2021,Gouldings Resource Centre,Catering Purchases,64.30,CHAPEL NURSERIES
Revenue,Adult Services,Adult Social Care,Central Codes (to be reallocated),5105691184,24.11.2021,Gouldings Resource Centre,Catering Purchases,41.20,CHAPEL NURSERIES
Revenue,Adult Services,Adult Social Care,Central Codes (to be reallocated),5105690293,12.11.2021,Gouldings Resource Centre,Catering Purchases,55.60,CHAPEL NURSERIES
Revenue,Adult Services,Adult Social Care,Central Codes (to be reallocated),5105689836,10.11.2021,Gouldings Resource Centre,Catering Purchases,42.30,CHAPEL NURSERIES
Revenue,Adult Services,Adult Social Care,Learning Disab Supp (to be reallocated),5105690439,17.11.2021,Saxonbury,Catering Purchases,30.20,CHAPEL NURSERIES
Revenue,Adult Services,Adult Social Care,Learning Disab Supp (to be reallocated),5105690440,17.11.2021,Saxonbury,Catering Purchases,27.20,CHAPEL NURSERIES
Revenue,Adult Services,Adult Social Care,Learning Disab Supp (to be reallocated),5105690438,17.11.2021,Plean Dene,Catering Purchases,33.80,CHAPEL NURSERIES
Revenue,Adult Services,Adult Social Care,Learning Disab Supp (to be reallocated),5105690441,17.11.2021,Plean Dene,Catering Purchases,38.90,CHAPEL NURSERIES
Revenue,Resources,Central Services,Support Services,5105691299,24.11.2021,Litigation Costs,Legal Fees - Other Parties,700.00,COLLEGE CHAMBERS BARRISTERS
Revenue,Resources,Central Services,Support Services,5105689844,10.11.2021,Specialist Cross-Council Training,Training,43.00,CHARTERED TRADING STANDARDS
Revenue,Resources,Central Services,Support Services,5105689962,12.11.2021,Specialist Cross-Council Training,Training,43.00,CHARTERED TRADING STANDARDS
Revenue,Childrens Services,Children's & Education Services,Family Support Services,5105691576,26.11.2021,S17 Child Protection,Support Children,459.00,CHATTERBOX NURSERY LTD
Revenue,Resources,Central Services,Support Services,5105691979,29.11.2021,Staff Benefits,Payment to Private Contractors,124.00,CHATTERBOX NURSERY LTD
Revenue,Adult Services,Adult Social Care,Support - Memory /Cognition-older people (65+),5105691144,24.11.2021,Memory & Cognition Residential 65+,Charges from Independent Providers,"3,449.32",CHD CARE LTD
Revenue,Neighbourhoods,Highways and Transport Services,"Airports, Harbours & Toll Facilities",5105691300,24.11.2021,Ventnor Haven - General,Payment to Private Contractors,"7,285.00",CHEETAH MARINE LLP
Revenue,Childrens Services,Children's & Education Services,Children Looked After,5105690099,12.11.2021,Special Guardianship Order Costs,Support Children,223.42,REDACTED PERSONAL DATA
Revenue,Childrens Services,Children's & Education Services,Children Looked After,5105689562,05.11.2021,Special Guardianship Order Costs,Support Children,223.42,REDACTED PERSONAL DATA
Revenue,Childrens Services,Children's & Education Services,Children Looked After,5105690870,19.11.2021,Special Guardianship Order Costs,Support Children,223.42,REDACTED PERSONAL DATA
Revenue,Childrens Services,Children's & Education Services,Children Looked After,5105691508,26.11.2021,Special Guardianship Order Costs,Support Children,223.42,REDACTED PERSONAL DATA
Revenue,Adult Services,Adult Social Care,Support - Memory /Cognition-older people (65+),5105691030,24.11.2021,Memory & Cognition Residential 65+,Charges from Independent Providers,"4,788.02",CHERRY TREES I.W. LTD
Revenue,Adult Services,Adult Social Care,Support - Memory /Cognition-older people (65+),5105691084,24.11.2021,Memory & Cognition Residential 65+,Charges from Independent Providers,"2,529.52",CHERRY TREES I.W. LTD
Revenue,Adult Services,Adult Social Care,Support - Memory /Cognition-older people (65+),5105691084,24.11.2021,Memory & Cognition Residential 65+,Charges from Independent Providers,"2,529.52",CHERRY TREES I.W. LTD
Revenue,Adult Services,Central Services,Emergency Planning,5105691030,24.11.2021,NHS C19 Residential,Charges from Independent Providers,"3,240.16",CHERRY TREES I.W. LTD
Revenue,Adult Services,Central Services,Emergency Planning,5105691030,24.11.2021,NHS C19 Residential,Charges from Independent Providers,"3,240.16",CHERRY TREES I.W. LTD
Revenue,Adult Services,Adult Social Care,Commissioning & Service Delivery,5105691084,24.11.2021,CHC Residential Care,Charges from Independent Providers,"2,529.52",CHERRY TREES I.W. LTD
Revenue,Adult Services,Adult Social Care,Physical Support - older people (65+),5105691084,24.11.2021,Physical Support Residential 65+,Charges from Independent Providers,"2,054.64",CHERRY TREES I.W. LTD
Revenue,Adult Services,Adult Social Care,Physical Support - older people (65+),5105691084,24.11.2021,Physical Support Residential 65+,Charges from Independent Providers,"2,054.64",CHERRY TREES I.W. LTD
Revenue,Adult Services,Adult Social Care,Physical Support - older people (65+),5105691084,24.11.2021,Physical Support Residential 65+,Charges from Independent Providers,"2,529.52",CHERRY TREES I.W. LTD
Revenue,Adult Services,Adult Social Care,Physical Support - older people (65+),5105691084,24.11.2021,Physical Support Residential 65+,Charges from Independent Providers,"2,151.52",CHERRY TREES I.W. LTD
Revenue,Adult Services,Adult Social Care,Physical Support - older people (65+),5105691084,24.11.2021,Physical Support Residential 65+,Charges from Independent Providers,300.16,CHERRY TREES I.W. LTD
Revenue,Adult Services,Adult Social Care,Physical Support - older people (65+),5105691084,24.11.2021,Physical Support Residential 65+,Charges from Independent Providers,"2,054.64",CHERRY TREES I.W. LTD
Revenue,Adult Services,Housing Services,Homelessness,5105686772,17.11.2021,B&B Properties,Accommodation Costs - Bed & Breakfast,"1,440.00",CHERRYLEE B&B
Revenue,Neighbourhoods,Highways and Transport Services,Parking Services,5105691610,26.11.2021,Car Park Permits,Printing Costs,588.33,CHIPSIDE LIMITED
Revenue,Neighbourhoods,Highways and Transport Services,Parking Services,5105688534,05.11.2021,Car Park Permits,Printing Costs,602.44,CHIPSIDE LIMITED
Revenue,Resources,Highways and Transport Services,Off Street Parking,5105690573,24.11.2021,Parking Services,Licences,525.00,CHIPSIDE LIMITED
Revenue,Resources,Highways and Transport Services,Off Street Parking,5105690595,17.11.2021,Parking Services,Professional Services,87.70,CHIPSIDE LIMITED
Revenue,Resources,Highways and Transport Services,Off Street Parking,5105691820,26.11.2021,Parking Services,Payment to Private Contractors,"1,088.39",CHIPSIDE LIMITED
Revenue,Adult Services,Adult Social Care,Commissioning & Service Delivery,5105691157,24.11.2021,CHC Residential Care,Charges from Independent Providers,"11,924.08",CHOICE CARE (WOODLANDS)
Revenue,Adult Services,Adult Social Care,Learning Disability Suppt-adults (18-64),5105691146,24.11.2021,Learning Disability Residential 18-64,Charges from Independent Providers,"7,190.12",CHOICE LTD
Revenue,Childrens Services,Children's & Education Services,Special Schools & Alternative Provision,5105689390,03.11.2021,Island Learning Centre,Bought in Prof Services - Curriculum (Schools),160.00,REDACTED PERSONAL DATA
Revenue,Childrens Services,Children's & Education Services,Special Schools & Alternative Provision,5105689390,03.11.2021,Island Learning Centre,Bought in Prof Services - Curriculum (Schools),55.00,REDACTED PERSONAL DATA
Revenue,Neighbourhoods,Cultural and Related Services,Recreation and Sport,5105691607,26.11.2021,Shanklin Lift,Property Services - Day to day Maintenance,515.90,CHUBB FIRE AND SECURITY LTD
Revenue,Childrens Services,Children's & Education Services,Safeguarding Children/Young Peoples Svs,5105691748,26.11.2021,Court Work & Consultancy Services,Legal Fees - Other Parties,167.00,CHURCHERS BOLITHO WAY
Revenue,Childrens Services,Children's & Education Services,Other Education and Community Budget,5105690508,17.11.2021,Adult Community Learning,Licences,9.25,CITY AND GUILDS
Revenue,Childrens Services,Children's & Education Services,Other Education and Community Budget,5105691740,26.11.2021,Adult Community Learning,Training,84.00,CITY AND GUILDS
Revenue,Childrens Services,Children's & Education Services,Other Education and Community Budget,5105691014,24.11.2021,Adult Community Learning,Licences,9.25,CITY AND GUILDS
Revenue,Childrens Services,Children's & Education Services,Other Education and Community Budget,5105691016,24.11.2021,Adult Community Learning,Licences,18.50,CITY AND GUILDS
Revenue,Childrens Services,Children's & Education Services,Other Education and Community Budget,5105691018,24.11.2021,Adult Community Learning,Licences,18.50,CITY AND GUILDS
Revenue,Adult Services,Adult Social Care,Central Codes (to be reallocated),5105689232,03.11.2021,Adelaide Resource Centre,Fixtures and Fittings,28.50,CITY ELECTRICAL FACTORS LTD
Revenue,Resources,Central Services,Central Services to the Public,5105689292,03.11.2021,Electoral Registration Office,Printing Costs,864.65,ELECTORAL REFORM SERVICES
Revenue,Resources,Central Services,Central Services to the Public,5105692019,29.11.2021,Electoral Registration Canvassing,Printing Costs,"1,163.71",ELECTORAL REFORM SERVICES
Revenue,Resources,Central Services,Central Services to the Public,5105692019,29.11.2021,Electoral Registration Canvassing,Postage,"4,655.14",ELECTORAL REFORM SERVICES
Revenue,Resources,Central Services,Support Services,5105684129,26.11.2021,ICT Contracts,Computer Maintenance,543.38,CIVICA UK LTD
Revenue,Resources,Central Services,Support Services,5105691726,26.11.2021,ICT Contracts,Computer Maintenance,-543.38,CIVICA UK LTD
Revenue,Childrens Services,Children's & Education Services,Children Looked After,5105691198,24.11.2021,Support for LAC CWD,Support Children,72.58,CLEVER CLOGGS DAY CARE
Revenue,Neighbourhoods,Cultural and Related Services,Open Spaces,5105690685,19.11.2021,Rights of Way Operations,Payment to Private Contractors,"1,440.00",CLIFFORD J. MATTHEWS LTD
